Workbook

Sheet Introduction
B2: A practical tool for establishing the health benefits of research to support research prioritisation
B4: This tool provides an intuitive illustration of how to estimate the health benefits of research and a practical means for estimating the value of collecting further information on a study endpoint in certain circumstances (often called the Expected Value of Partial Perfect Information, EVPPI). It is intended to be used when standard approaches, which require probabilistic analyses of a model already addressing the policy question of interest, are not feasible.
B9: This tool should be used with reference to the accompanying paper: Woods, Beth; Schmitt, Laetitia; Rothery, Claire; Phillips, Andrew; Hallett, Timothy B; Revill, Paul; Claxton, Karl. Practical metrics for establishing the health benefits of research to support research prioritisation. BMJ Global Health (under review).
B13: If you get stuck or something doesn't work with the tool please let us know via the corresponding author: beth.woods@york.ac.uk

Sheet User_entry
B2: Instructions
B3: Please insert information in to the green cells
B4: When you have filled in the information required you can view the results on the "Results" tab
B5: Note that although the tool refers to DALYs averted, it can be used with data on QALYs gained without modification.
B6: Note that although the tool users US$ for illustration, it can be used to make calculations in any currency.
B8: Current understanding of the study endpoint | F8: Notes:
B9: What type of endpoint is this? | E9: Proportion or probability
B10: Distribution selected | E10: =selected_dist -> Beta
B11: What is themean value of this endpoint? | E11: 0.1 | F11: Enter values on natural (not log) scale
B12: What is the standard error for this endpoint? | E12: 0.04 | F12: Enter values on natural (not log) scale
B13: Here is a summary of the data you have entered on the natural scale | E13: ="Mean: "&TEXT(Computations!D6,"#,##0.00")&", 95% confidence interval: "&TEXT(Computations!D7,"#,##0.00")&" to "&TEXT(Computations!D8,"#,##0.00") -> Mean: 0.10, 95% confidence interval: 0.04 to 0.19
B15: Cost-effectiveness of intervention of interest | F15: Notes
B16: How many DALYs is the intervention expected to avert on average compared to current care | E16: 2000 | F16: Enter discounted value
B17: What are the total incremental costs of the intervention on average compared to current care? | E17: 450000 | F17: Enter discounted value
B18: Enter a cost-effectiveness threshold describing the opportunity cost of health care funds | E18: 300 | F18: per DALY averted
B19: Are the numbers above for one patient or all patients expected to receive the intervention over time | E19: All patients
B20: =IF(E19="One patient", "OK, please enter the number of patients you expect to receive the intervention per year","") -> 
B21: =IF(E19="One patient", "OK, please enter the time period over which you expect this intervention to be in use","") ->  | F21: years
B22: =IF(E19="One patient", "OK, please enter the discount rate","") ->  | F22: per annum
B24: Impact of changes in endpoint on DALYs averted and costs
B25: In the tables below describe how DALYs averted and costs change for different values of the endpoint
B26: Notes: data can be entered for between 2 and 20 values of the endpoint, the values of the endpoint used for costs and DALYs do not have to match
B27: For hazard ratio, relative risk and odds ratio endpoints please enter values of the endpoint on the natural (i.e. not log) scale
B29: Values of endpoint | C29: DALYs averted compared to current care | E29: Values of endpoint | F29: Total costs compared to current care
A30: 1 | B30: =E11 -> 0.1 | C30: =E16 -> 2000 | D30: 1 | E30: =B30 -> 0.1 | F30: =E17 -> 450000
A31: 2 | B31: 0.04 | C31: 1000 | D31: 2
A32: 3 | B32: 0.19 | C32: 3000 | D32: 3
A33: 4 | D33: 4
A34: 5 | D34: 5
A35: 6 | D35: 6
A36: 7 | D36: 7
A37: 8 | D37: 8
A38: 9 | D38: 9
A39: 10 | D39: 10
A40: 11 | D40: 11
A41: 12 | D41: 12
A42: 13 | D42: 13
A43: 14 | D43: 14
A44: 15 | D44: 15
A45: 16 | D45: 16
A46: 17 | D46: 17
A47: 18 | D47: 18
A48: 19 | D48: 19
A49: 20 | D49: 20
B51: Preferred function fitted to model how DALYs averted change with the endpoint | E51: Preferred function fitted to model how costs incurred change with endpoint
B52: Notes: The options below fit a regression model to the estimates provided. Users can specify different functional forms for these regressions. Users should review the correspondence between the information they have entered (blue dots) and the regression predictions (grey line), R-squared values are alo provided. Users should also consider carefully whether the relationship between DALYs averted/costs and the endpoint implied by the regression model (grey line) seem realistic.
B56: Linear | E56: Linear

Sheet Results
B2: Net health benefit of intervention | I2: =Computations!B38 -> Summary of value of information analysis
I4: =Computations!B39 -> Implications of decision making without further research
I5: =Computations!B40 -> Expected DALYs averted by programme | J5: =Computations!E40 -> 1867.947768
I6: =Computations!B41 -> Expected additional long-term costs associated with programme | J6: =Computations!E41 -> 449955
I7: =Computations!B42 -> Expected health opportunity costs of funding programme | J7: =Computations!E42 -> 1499.85
I8: =Computations!B43 -> Incremental cost-effectiveness ratio ($/DALY) | J8: =Computations!E43 -> 240.8820031
I9: =Computations!B44 -> Expected net DALYs averted by implementation | J9: =Computations!E44 -> 368.097768
B13: Current understanding of the study endpoint | I13: =Computations!B46 -> Implications of decision making informed by further research
I14: =Computations!B47 -> Value of endpoint at which decision changes | J14: =Computations!E47 -> 0.07223068483
I15: =Computations!B48 -> Probability further research could change decision | J15: =Computations!E48 -> 0.2627549286
I16: =Computations!B49 -> Expected net DALYs averted via research | J16: =Computations!E49 -> 59.38718323
I17: =Computations!B50 -> Potential maximum expenditure on study | J17: =Computations!E50 -> 17816.15497
I18: =Computations!B51 -> Total expected net DALYs averted | J18: =Computations!E51 -> 427.4849512
B27: Note: if the trigger point is outside the plausible range for the endpoint (i.e. not between the 0.01% to 99.99% confidence bounds) then it is not shown. The tool is not currently set up for contexts where there are multiple values of the endpoint at which the decision changes as these are, from our experience, unusual in practise.

Sheet Computations
B2: Information relating to the prior
B3: Distribution selected for prior | D3: =VLOOKUP(User_entry!E9,Controls!B2:C5,2,FALSE) -> Beta
B4: Parameter 1 | C4: =IF(OR(D3="Lognorm",D3="Normal"),"Mean","Alpha") -> Alpha | D4: =IF(D3="Beta",(mean*(1-mean)/(se^2)-1)*mean,IF(D3="Gamma",mean^2/se^2,IF(selected_dist="Lognorm",LN(mean),mean))) -> 5.525
B5: Parameter 2 | C5: =IF(OR(D3="Lognorm",D3="Normal"),"Standard error","Beta") -> Beta | D5: =IF(D3="Beta",(mean*(1-mean)/(se^2)-1)-D4,IF(D3="Gamma",se^2/mean,IF(selected_dist="Lognorm",(LN(mean+1.96*se)-LN(mean-1.96*se))/(2*1.96),se))) -> 49.725
B6: Mean on natural scale | D6: =mean -> 0.1
B7: 95% CI | C7: 2.5% on distribution | D7: =IF(D3="Beta",_xlfn.BETA.INV(0.025,D4,D5),IF(D3="Gamma",_xlfn.GAMMA.INV(0.025,D4,D5),IF(D3="Lognorm", _xlfn.LOGNORM.INV(0.025,D4,D5),_xlfn.NORM.INV(0.025,D4,D5)))) -> 0.03632300795
C8: 97.5% on distribution | D8: =IF(D3="Beta",_xlfn.BETA.INV(0.975,D4,D5),IF(D3="Gamma",_xlfn.GAMMA.INV(0.975,D4,D5),IF(D3="Lognorm",_xlfn.LOGNORM.INV(0.975,D4,D5),_xlfn.NORM.INV(0.975,D4,D5)))) -> 0.1908451724
B9: Lowest bound for calculations | C9: 0.01% on distribution | D9: =IF(D3="Beta",_xlfn.BETA.INV(0.0001,D4,D5),IF(D3="Gamma",_xlfn.GAMMA.INV(0.0001,D4,D5), IF(D3="Lognorm",_xlfn.LOGNORM.INV(0.0001,D4,D5),_xlfn.NORM.INV(0.0001,D4,D5)))) -> 0.0110886845
B10: Highest bound for calculations | C10: 99.99% on distribution | D10: =IF(D3="Beta",_xlfn.BETA.INV(0.9999,D4,D5),IF(D3="Gamma",_xlfn.GAMMA.INV(0.9999,D4,D5), IF(D3="Lognorm",_xlfn.LOGNORM.INV(0.9999,D4,D5),_xlfn.NORM.INV(0.9999,D4,D5)))) -> 0.3029359414
B11: Interval for discretising distribution | D11: =(D10-D9)/1000 -> 0.0002918472569
B13: Functions fitted to cost and DALY data
C14: Outcomes model | G14: Costs model
B15: =Controls!B10 -> Linear | E15: =LINEST(OFFSET(User_entry!C30,0,0,COUNTA(DALYs_varied)),OFFSET(User_entry!B30,0,0,COUNTA(endpoint_DALYs)),TRUE,FALSE) -> 13157.89474 | F15: 552.6315789 | I15: =LINEST(OFFSET(User_entry!F30,0,0,COUNTA(Costs_varied)),OFFSET(User_entry!E30,0,0,COUNTA(endpoint_costs)),TRUE,FALSE) -> 0 | J15: 450000
B16: =Controls!B11 -> Exponential | E16: =LINEST(LN(OFFSET(User_entry!C30,0,0,COUNTA(DALYs_varied))),OFFSET(User_entry!B30,0,0,COUNTA(endpoint_DALYs)),TRUE,FALSE) -> 7.101536078 | F16: 6.723839467 | I16: =LINEST(LN(OFFSET(User_entry!F30,0,0,COUNTA(Costs_varied))),OFFSET(User_entry!E30,0,0,COUNTA(endpoint_costs)),TRUE,FALSE) -> 0 | J16: 13.01700286
B17: =Controls!B12 -> Logarithmic | E17: =LINEST(OFFSET(User_entry!C30,0,0,COUNTA(DALYs_varied)),LN(OFFSET(User_entry!B30,0,0,COUNTA(endpoint_DALYs))),TRUE,FALSE) -> 1270.440713 | F17: 5041.516427 | I17: =LINEST(OFFSET(User_entry!F30,0,0,COUNTA(Costs_varied)),LN(OFFSET(User_entry!E30,0,0,COUNTA(endpoint_costs))),TRUE,FALSE) -> 0 | J17: 450000
B18: =Controls!B13 -> Polynomial - quadratic | D18: =LINEST(OFFSET(User_entry!C30,0,0,COUNTA(DALYs_varied)),OFFSET(User_entry!B30,0,0,COUNTA(endpoint_DALYs))^{1,2},TRUE,FALSE) -> -37037.03704 | E18: 21851.85185 | F18: 185.1851852 | H18: =LINEST(OFFSET(User_entry!F30,0,0,COUNTA(Costs_varied)),OFFSET(User_entry!E30,0,0,COUNTA(endpoint_costs))^{1,2},TRUE,FALSE) -> 0 | I18: 0 | J18: 450000
B19: =Controls!B14 -> Polynomial - cubic | C19: =LINEST(OFFSET(User_entry!C30,0,0,COUNTA(DALYs_varied)),OFFSET(User_entry!B30,0,0,COUNTA(endpoint_DALYs))^{1,2,3},TRUE,FALSE) -> 0 | D19: -37037.03704 | E19: 21851.85185 | F19: 185.1851852 | G19: =LINEST(OFFSET(User_entry!F30,0,0,COUNTA(Costs_varied)),OFFSET(User_entry!E30,0,0,COUNTA(endpoint_costs))^{1,2,3},TRUE,FALSE) -> 0 | H19: 0 | I19: 0 | J19: 450000
B21: Fit statistics for selected models
B22: Selected model outcomes | C22: =User_entry!B56 -> Linear | D22: =C22&" (R-squared="&TEXT(B25,"0.00")&")" -> Linear (R-squared=0.99) | G22: Selected model costs | H22: =User_entry!E56 -> Linear | I22: =H22&" (R-squared="&TEXT(G25,"0.00")&")" -> Linear (R-squared=1.00)
B23: =LINEST(IF(C22=B16,LN(OFFSET(User_entry!C30,0,0,COUNTA(DALYs_varied))),OFFSET(User_entry!C30,0,0,COUNTA(DALYs_varied))),IF(C22=B19,OFFSET(User_entry!B30,0,0,COUNTA(endpoint_DALYs))^{1,2,3},IF(C22=B18,OFFSET(User_entry!B30,0,0,COUNTA(endpoint_DALYs))^{1,2},IF(C22=B17,LN(OFFSET(User_entry!B30,0,0,COUNTA(endpoint_DALYs))),OFFSET(User_entry!B30,0,0,COUNTA(endpoint_DALYs))))),TRUE,TRUE) -> 13157.89474 | C23: 552.6315789 | G23: =LINEST(IF(H22=B16,LN(OFFSET(User_entry!F30,0,0,COUNTA(Costs_varied))),OFFSET(User_entry!F30,0,0,COUNTA(Costs_varied))),IF(H22=B19,OFFSET(User_entry!E30,0,0,COUNTA(endpoint_costs))^{1,2,3},IF(H22=B18,OFFSET(User_entry!E30,0,0,COUNTA(endpoint_costs))^{1,2},IF(H22=B17,LN(OFFSET(User_entry!E30,0,0,COUNTA(endpoint_costs))),OFFSET(User_entry!E30,0,0,COUNTA(endpoint_costs))))),TRUE,TRUE) -> 0 | H23: 450000
B24: 1519.342814 | C24: 191.5818392 | G24: 0 | H24: 0
B25: 0.9868421053 | C25: 162.2214211 | G25: 1 | H25: 0
B26: 75 | C26: 1 | H26: 0
B27: 1973684.211 | C27: 26315.78947 | G27: 0 | H27: 0
B33: Multiplier for population size | E33: =IF(User_entry!E19="One patient",User_entry!E20*(1-(1/(1+User_entry!E22))^(User_entry!E21))/(1-1/(1+User_entry!E22)),1) -> 1 | F33: This calculates the net present value for the time horizon specified assuming a constant flow of patients
B34: Intervention expected to be cost-effective: | E34: =IF(SUMPRODUCT(F55:F1054,I55:I1054)>0,"Yes","No") -> Yes
B35: Always cost-effective? | E35: =COUNTIF(I55:I1054,">0")=1000 -> FALSE
B36: Never cost-effective? | E36: =COUNTIF(I55:I1054,"<=0")=1000 -> FALSE
B38: Summary of value of information analysis
B39: Implications of decision making without further research
B40: Expected DALYs averted by programme | E40: =SUMPRODUCT(F55:F1054,G55:G1054)*E33 -> 1867.947768
B41: Expected additional long-term costs associated with programme | E41: =SUMPRODUCT(F55:F1054,H55:H1054)*E33 -> 449955
B42: Expected health opportunity costs of funding programme | E42: =E41/User_entry!E18 -> 1499.85
B43: Incremental cost-effectiveness ratio ($/DALY) | E43: =E41/E40 -> 240.8820031
B44: Expected net DALYs averted by implementation | E44: =E40-E41/User_entry!E18 -> 368.097768
B46: Implications of decision making informed by further research
B47: Value of endpoint at which decision changes | E47: =IF(OR(E35,E36),"Not applicable",INDEX(D55:D1054,MATCH(TRUE,IF(I55<=0,I55:I1054>0,I55:I1054<=0),0))) -> 0.07223068483
B48: Probability further research could change decision | E48: =IF(E34="Yes",SUMIF(I55:I1054,"<=0",F55:F1054),SUMIF(I55:I1054,">0",F55:F1054)) -> 0.2627549286
B49: Expected net DALYs averted via research | E49: =E51-E44 -> 59.38718323
B50: Potential maximum expenditure on study | E50: =E49*User_entry!E18 -> 17816.15497
B51: Total expected net DALYs averted | E51: =SUMPRODUCT(F55:F1054,J55:J1054)*E33 -> 427.4849512
A53: Index | B53: Lower bound interval | C53: Upper bound interval | D53: Midpoint | E53: Cumulative density | F53: Density within interval | G53: Predicted DALYs averted | H53: Predicted costs incurred | I53: Net DALYs | endpoint | J53: Net DALYs with research | L53: Selected models | N53: Outcomes predicted by different functions | S53: Costs predicted by different functions
L54: Outcomes | M54: Costs | N54: =TRANSPOSE(Controls!B10:B14) -> Linear | O54: Exponential | P54: Logarithmic | Q54: Polynomial - quadratic | R54: Polynomial - cubic | S54: =N54 -> Linear | T54: =O54 -> Exponential | U54: Logarithmic | V54: Polynomial - quadratic | W54: Polynomial - cubic
A55: 1 | B55: =D9 -> 0.0110886845 | C55: =B55+$D$11 -> 0.01138053176 | D55: =AVERAGE(B55:C55) -> 0.01123460813 | E55: =IF($D$3="Beta",_xlfn.BETA.DIST(C55,$D$4,$D$5,TRUE),IF($D$3="Gamma",_xlfn.GAMMA.DIST(C55,$D$4,$D$5,TRUE),IF($D$3="Lognorm",_xlfn.LOGNORM.DIST(C55,$D$4,$D$5,TRUE),_xlfn.NORM.DIST(C55,$D$4,$D$5,TRUE)))) -> 0.0001140559104 | F55: =E55-E54 -> 0.0001140559104 | G55: =L55 -> 700.4553701 | H55: =M55 -> 450000 | I55: =G55-H55/User_entry!$E$18 -> -799.5446299 | J55: =MAX(I55,0) -> 0 | L55: =HLOOKUP(User_entry!$B$56,Computations!$N$54:$R$1054,Computations!A55+1,FALSE) -> 700.4553701 | M55: =HLOOKUP(User_entry!$E$56,Computations!$S$54:$W$1054,Computations!A55+1,FALSE) -> 450000 | N55: =Computations!$F$15+Computations!$E$15*D55 -> 700.4553701 | O55: =EXP(Computations!$F$16)*EXP(Computations!$E$16)^Computations!D55 -> 901.1055891 | P55: =Computations!$F$17+Computations!$E$17*LN(Computations!D55) -> -661.1822666 | Q55: =Computations!$F$18+Computations!$E$18*Computations!D55+Computations!$D$18*Computations!D55^2 -> 426.0074954 | R55: =Computations!$F$19+Computations!$E$19*Computations!D55+Computations!$D$19*Computations!D55^2+Computations!$C$19*Computations!D55^3 -> 426.0074954 | S55: =Computations!$J$15+Computations!$I$15*D55 -> 450000 | T55: =EXP(Computations!$J$16)*EXP(Computations!$I$16)^Computations!D55 -> 450000 | U55: =Computations!$J$17+Computations!$I$17*LN(Computations!D55) -> 450000 | V55: =Computations!$J$18+Computations!$I$18*Computations!D55+Computations!$H$18*Computations!D55^2 -> 450000 | W55: =Computations!$J$19+Computations!$I$19*Computations!D55+Computations!$H$19*Computations!D55^2+Computations!$G$19*Computations!D55^3 -> 450000
A56: 2 | B56: =C55 -> 0.01138053176 | C56: =B56+$D$11 -> 0.01167237902 | D56: =AVERAGE(B56:C56) -> 0.01152645539 | E56: =IF($D$3="Beta",_xlfn.BETA.DIST(C56,$D$4,$D$5,TRUE),IF($D$3="Gamma",_xlfn.GAMMA.DIST(C56,$D$4,$D$5,TRUE),IF($D$3="Lognorm",_xlfn.LOGNORM.DIST(C56,$D$4,$D$5,TRUE),_xlfn.NORM.DIST(C56,$D$4,$D$5,TRUE)))) -> 0.0001296156618 | F56: =E56-E55 -> 1.55597514e-05 | G56: =L56 -> 704.2954656 | H56: =M56 -> 450000 | I56: =G56-H56/User_entry!$E$18 -> -795.7045344 | J56: =MAX(I56,0) -> 0 | L56: =HLOOKUP(User_entry!$B$56,Computations!$N$54:$R$1054,Computations!A56+1,FALSE) -> 704.2954656 | M56: =HLOOKUP(User_entry!$E$56,Computations!$S$54:$W$1054,Computations!A56+1,FALSE) -> 450000 | N56: =Computations!$F$15+Computations!$E$15*D56 -> 704.2954656 | O56: =EXP(Computations!$F$16)*EXP(Computations!$E$16)^Computations!D56 -> 902.9751247 | P56: =Computations!$F$17+Computations!$E$17*LN(Computations!D56) -> -628.6007523 | Q56: =Computations!$F$18+Computations!$E$18*Computations!D56+Computations!$D$18*Computations!D56^2 -> 432.1388705 | R56: =Computations!$F$19+Computations!$E$19*Computations!D56+Computations!$D$19*Computations!D56^2+Computations!$C$19*Computations!D56^3 -> 432.1388705 | S56: =Computations!$J$15+Computations!$I$15*D56 -> 450000 | T56: =EXP(Computations!$J$16)*EXP(Computations!$I$16)^Computations!D56 -> 450000 | U56: =Computations!$J$17+Computations!$I$17*LN(Computations!D56) -> 450000 | V56: =Computations!$J$18+Computations!$I$18*Computations!D56+Computations!$H$18*Computations!D56^2 -> 450000 | W56: =Computations!$J$19+Computations!$I$19*Computations!D56+Computations!$H$19*Computations!D56^2+Computations!$G$19*Computations!D56^3 -> 450000
A57: 3 | B57: =C56 -> 0.01167237902 | C57: 0.01196422627 | D57: 0.01181830264 | E57: 0.0001467901916 | F57: 1.717452978e-05 | G57: 708.1355611 | H57: 450000 | I57: =G57-H57/User_entry!$E$18 -> -791.8644389 | J57: 0 | L57: =HLOOKUP(User_entry!$B$56,Computations!$N$54:$R$1054,Computations!A57+1,FALSE) -> 708.1355611 | M57: =HLOOKUP(User_entry!$E$56,Computations!$S$54:$W$1054,Computations!A57+1,FALSE) -> 450000 | N57: =Computations!$F$15+Computations!$E$15*D57 -> 708.1355611 | O57: =EXP(Computations!$F$16)*EXP(Computations!$E$16)^Computations!D57 -> 904.848539 | P57: =Computations!$F$17+Computations!$E$17*LN(Computations!D57) -> -596.8339673 | Q57: =Computations!$F$18+Computations!$E$18*Computations!D57+Computations!$D$18*Computations!D57^2 -> 438.2639364 | R57: =Computations!$F$19+Computations!$E$19*Computations!D57+Computations!$D$19*Computations!D57^2+Computations!$C$19*Computations!D57^3 -> 438.2639364 | S57: =Computations!$J$15+Computations!$I$15*D57 -> 450000 | T57: =EXP(Computations!$J$16)*EXP(Computations!$I$16)^Computations!D57 -> 450000 | U57: =Computations!$J$17+Computations!$I$17*LN(Computations!D57) -> 450000 | V57: =Computations!$J$18+Computations!$I$18*Computations!D57+Computations!$H$18*Computations!D57^2 -> 450000 | W57: =Computations!$J$19+Computations!$I$19*Computations!D57+Computations!$H$19*Computations!D57^2+Computations!$G$19*Computations!D57^3 -> 450000
A58: 4 | B58: 0.01196422627 | C58: 0.01225607353 | D58: 0.0121101499 | E58: 0.0001656947707 | F58: 1.890457917e-05 | G58: 711.9756566 | H58: 450000 | I58: =G58-H58/User_entry!$E$18 -> -788.0243434 | J58: 0 | L58: =HLOOKUP(User_entry!$B$56,Computations!$N$54:$R$1054,Computations!A58+1,FALSE) -> 711.9756566 | M58: =HLOOKUP(User_entry!$E$56,Computations!$S$54:$W$1054,Computations!A58+1,FALSE) -> 450000 | N58: =Computations!$F$15+Computations!$E$15*D58 -> 711.9756566 | O58: =EXP(Computations!$F$16)*EXP(Computations!$E$16)^Computations!D58 -> 906.72584 | P58: =Computations!$F$17+Computations!$E$17*LN(Computations!D58) -> -565.8421575 | Q58: =Computations!$F$18+Computations!$E$18*Computations!D58+Computations!$D$18*Computations!D58^2 -> 444.382693 | R58: =Computations!$F$19+Computations!$E$19*Computations!D58+Computations!$D$19*Computations!D58^2+Computations!$C$19*Computations!D58^3 -> 444.382693 | S58: =Computations!$J$15+Computations!$I$15*D58 -> 450000 | T58: =EXP(Computations!$J$16)*EXP(Computations!$I$16)^Computations!D58 -> 450000 | U58: =Computations!$J$17+Computations!$I$17*LN(Computations!D58) -> 450000 | V58: =Computations!$J$18+Computations!$I$18*Computations!D58+Computations!$H$18*Computations!D58^2 -> 450000 | W58: =Computations!$J$19+Computations!$I$19*Computations!D58+Computations!$H$19*Computations!D58^2+Computations!$G$19*Computations!D58^3 -> 450000
A59: 5 | B59: 0.01225607353 | C59: 0.01254792079 | D59: 0.01240199716 | E59: 0.0001864489791 | F59: =E59-E58 -> 2.07542084e-05 | G59: 715.8157521 | H59: 450000 | I59: =G59-H59/User_entry!$E$18 -> -784.1842479 | J59: 0 | L59: =HLOOKUP(User_entry!$B$56,Computations!$N$54:$R$1054,Computations!A59+1,FALSE) -> 715.8157521 | M59: =HLOOKUP(User_entry!$E$56,Computations!$S$54:$W$1054,Computations!A59+1,FALSE) -> 450000 | N59: =Computations!$F$15+Computations!$E$15*D59 -> 715.8157521 | O59: =EXP(Computations!$F$16)*EXP(Computations!$E$16)^Computations!D59 -> 908.607036 | P59: =Computations!$F$17+Computations!$E$17*LN(Computations!D59) -> -535.5884096 | Q59: =Computations!$F$18+Computations!$E$18*Computations!D59+Computations!$D$18*Computations!D59^2 -> 450.4951403 | R59: =Computations!$F$19+Computations!$E$19*Computations!D59+Computations!$D$19*Computations!D59^2+Computations!$C$19*Computations!D59^3 -> 450.4951403 | S59: =Computations!$J$15+Computations!$I$15*D59 -> 450000 | T59: =EXP(Computations!$J$16)*EXP(Computations!$I$16)^Computations!D59 -> 450000 | U59: =Computations!$J$17+Computations!$I$17*LN(Computations!D59) -> 450000 | V59: =Computations!$J$18+Computations!$I$18*Computations!D59+Computations!$H$18*Computations!D59^2 -> 450000 | W59: =Computations!$J$19+Computations!$I$19*Computations!D59+Computations!$H$19*Computations!D59^2+Computations!$G$19*Computations!D59^3 -> 450000
A60: 6 | B60: 0.01254792079 | C60: 0.01283976804 | D60: 0.01269384441 | E60: 0.0002091766744 | F60: 2.27276953e-05 | G60: 719.6558476 | H60: 450000 | I60: =G60-H60/User_entry!$E$18 -> -780.3441524 | J60: 0 | L60: =HLOOKUP(User_entry!$B$56,Computations!$N$54:$R$1054,Computations!A60+1,FALSE) -> 719.6558476 | M60: =HLOOKUP(User_entry!$E$56,Computations!$S$54:$W$1054,Computations!A60+1,FALSE) -> 450000 | N60: =Computations!$F$15+Computations!$E$15*D60 -> 719.6558476 | O60: =EXP(Computations!$F$16)*EXP(Computations!$E$16)^Computations!D60 -> 910.4921349 | P60: =Computations!$F$17+Computations!$E$17*LN(Computations!D60) -> -506.0383862 | Q60: =Computations!$F$18+Computations!$E$18*Computations!D60+Computations!$D$18*Computations!D60^2 -> 456.6012785 | R60: =Computations!$F$19+Computations!$E$19*Computations!D60+Computations!$D$19*Computations!D60^2+Computations!$C$19*Computations!D60^3 -> 456.6012785 | S60: =Computations!$J$15+Computations!$I$15*D60 -> 450000 | T60: =EXP(Computations!$J$16)*EXP(Computations!$I$16)^Computations!D60 -> 450000 | U60: =Computations!$J$17+Computations!$I$17*LN(Computations!D60) -> 450000 | V60: =Computations!$J$18+Computations!$I$18*Computations!D60+Computations!$H$18*Computations!D60^2 -> 450000 | W60: =Computations!$J$19+Computations!$I$19*Computations!D60+Computations!$H$19*Computations!D60^2+Computations!$G$19*Computations!D60^3 -> 450000
A61: 7 | B61: 0.01283976804 | C61: 0.0131316153 | D61: 0.01298569167 | E61: 0.0002340059551 | F61: 2.482928063e-05 | G61: 723.495943 | H61: 450000 | I61: =G61-H61/User_entry!$E$18 -> -776.504057 | J61: 0 | L61: =HLOOKUP(User_entry!$B$56,Computations!$N$54:$R$1054,Computations!A61+1,FALSE) -> 723.495943 | M61: =HLOOKUP(User_entry!$E$56,Computations!$S$54:$W$1054,Computations!A61+1,FALSE) -> 450000 | N61: =Computations!$F$15+Computations!$E$15*D61 -> 723.495943 | O61: =EXP(Computations!$F$16)*EXP(Computations!$E$16)^Computations!D61 -> 912.3811448 | P61: =Computations!$F$17+Computations!$E$17*LN(Computations!D61) -> -477.1600918 | Q61: =Computations!$F$18+Computations!$E$18*Computations!D61+Computations!$D$18*Computations!D61^2 -> 462.7011073 | R61: =Computations!$F$19+Computations!$E$19*Computations!D61+Computations!$D$19*Computations!D61^2+Computations!$C$19*Computations!D61^3 -> 462.7011073 | S61: =Computations!$J$15+Computations!$I$15*D61 -> 450000 | T61: =EXP(Computations!$J$16)*EXP(Computations!$I$16)^Computations!D61 -> 450000 | U61: =Computations!$J$17+Computations!$I$17*LN(Computations!D61) -> 450000 | V61: =Computations!$J$18+Computations!$I$18*Computations!D61+Computations!$H$18*Computations!D61^2 -> 450000 | W61: =Computations!$J$19+Computations!$I$19*Computations!D61+Computations!$H$19*Computations!D61^2+Computations!$G$19*Computations!D61^3 -> 450000
A62: 8 | B62: 0.0131316153 | C62: 0.01342346256 | D62: 0.01327753893 | E62: 0.0002610691174 | F62: 2.70631623e-05 | G62: 727.3360385 | H62: 450000 | I62: =G62-H62/User_entry!$E$18 -> -772.6639615 | J62: 0 | L62: =HLOOKUP(User_entry!$B$56,Computations!$N$54:$R$1054,Computations!A62+1,FALSE) -> 727.3360385 | M62: =HLOOKUP(User_entry!$E$56,Computations!$S$54:$W$1054,Computations!A62+1,FALSE) -> 450000 | N62: =Computations!$F$15+Computations!$E$15*D62 -> 727.3360385 | O62: =EXP(Computations!$F$16)*EXP(Computations!$E$16)^Computations!D62 -> 914.2740739 | P62: =Computations!$F$17+Computations!$E$17*LN(Computations!D62) -> -448.9236646 | Q62: =Computations!$F$18+Computations!$E$18*Computations!D62+Computations!$D$18*Computations!D62^2 -> 468.794627 | R62: =Computations!$F$19+Computations!$E$19*Computations!D62+Computations!$D$19*Computations!D62^2+Computations!$C$19*Computations!D62^3 -> 468.794627 | S62: =Computations!$J$15+Computations!$I$15*D62 -> 450000 | T62: =EXP(Computations!$J$16)*EXP(Computations!$I$16)^Computations!D62 -> 450000 | U62: =Computations!$J$17+Computations!$I$17*LN(Computations!D62) -> 450000 | V62: =Computations!$J$18+Computations!$I$18*Computations!D62+Computations!$H$18*Computations!D62^2 -> 450000 | W62: =Computations!$J$19+Computations!$I$19*Computations!D62+Computations!$H$19*Computations!D62^2+Computations!$G$19*Computations!D62^3 -> 450000
A63: 9 | B63: 0.01342346256 | C63: 0.01371530981 | D63: 0.01356938619 | E63: 0.0002905026071 | F63: 2.943348972e-05 | G63: 731.176134 | H63: 450000 | I63: =G63-H63/User_entry!$E$18 -> -768.823866 | J63: 0 | L63: =HLOOKUP(User_entry!$B$56,Computations!$N$54:$R$1054,Computations!A63+1,FALSE) -> 731.176134 | M63: =HLOOKUP(User_entry!$E$56,Computations!$S$54:$W$1054,Computations!A63+1,FALSE) -> 450000 | N63: =Computations!$F$15+Computations!$E$15*D63 -> 731.176134 | O63: =EXP(Computations!$F$16)*EXP(Computations!$E$16)^Computations!D63 -> 916.1709303 | P63: =Computations!$F$17+Computations!$E$17*LN(Computations!D63) -> -421.3011907 | Q63: =Computations!$F$18+Computations!$E$18*Computations!D63+Computations!$D$18*Computations!D63^2 -> 474.8818373 | R63: =Computations!$F$19+Computations!$E$19*Computations!D63+Computations!$D$19*Computations!D63^2+Computations!$C$19*Computations!D63^3 -> 474.8818373 | S63: =Computations!$J$15+Computations!$I$15*D63 -> 450000 | T63: =EXP(Computations!$J$16)*EXP(Computations!$I$16)^Computations!D63 -> 450000 | U63: =Computations!$J$17+Computations!$I$17*LN(Computations!D63) -> 450000 | V63: =Computations!$J$18+Computations!$I$18*Computations!D63+Computations!$H$18*Computations!D63^2 -> 450000 | W63: =Computations!$J$19+Computations!$I$19*Computations!D63+Computations!$H$19*Computations!D63^2+Computations!$G$19*Computations!D63^3 -> 450000
A64: 10 | B64: 0.01371530981 | C64: 0.01400715707 | D64: 0.01386123344 | E64: 0.0003224469655 | F64: 3.194435841e-05 | G64: 735.0162295 | H64: 450000 | I64: =G64-H64/User_entry!$E$18 -> -764.9837705 | J64: 0 | L64: =HLOOKUP(User_entry!$B$56,Computations!$N$54:$R$1054,Computations!A64+1,FALSE) -> 735.0162295 | M64: =HLOOKUP(User_entry!$E$56,Computations!$S$54:$W$1054,Computations!A64+1,FALSE) -> 450000 | N64: =Computations!$F$15+Computations!$E$15*D64 -> 735.0162295 | O64: =EXP(Computations!$F$16)*EXP(Computations!$E$16)^Computations!D64 -> 918.0717221 | P64: =Computations!$F$17+Computations!$E$17*LN(Computations!D64) -> -394.2665387 | Q64: =Computations!$F$18+Computations!$E$18*Computations!D64+Computations!$D$18*Computations!D64^2 -> 480.9627385 | R64: =Computations!$F$19+Computations!$E$19*Computations!D64+Computations!$D$19*Computations!D64^2+Computations!$C$19*Computations!D64^3 -> 480.9627385 | S64: =Computations!$J$15+Computations!$I$15*D64 -> 450000 | T64: =EXP(Computations!$J$16)*EXP(Computations!$I$16)^Computations!D64 -> 450000 | U64: =Computations!$J$17+Computations!$I$17*LN(Computations!D64) -> 450000 | V64: =Computations!$J$18+Computations!$I$18*Computations!D64+Computations!$H$18*Computations!D64^2 -> 450000 | W64: =Computations!$J$19+Computations!$I$19*Computations!D64+Computations!$H$19*Computations!D64^2+Computations!$G$19*Computations!D64^3 -> 450000
A65: 11 | B65: 0.01400715707 | C65: 0.01429900433 | D65: 0.0141530807 | E65: 0.0003570467703 | F65: 3.459980482e-05 | G65: 738.856325 | H65: 450000 | I65: =G65-H65/User_entry!$E$18 -> -761.143675 | J65: 0 | L65: =HLOOKUP(User_entry!$B$56,Computations!$N$54:$R$1054,Computations!A65+1,FALSE) -> 738.856325 | M65: =HLOOKUP(User_entry!$E$56,Computations!$S$54:$W$1054,Computations!A65+1,FALSE) -> 450000 | N65: =Computations!$F$15+Computations!$E$15*D65 -> 738.856325 | O65: =EXP(Computations!$F$16)*EXP(Computations!$E$16)^Computations!D65 -> 919.9764575 | P65: =Computations!$F$17+Computations!$E$17*LN(Computations!D65) -> -367.7952105 | Q65: =Computations!$F$18+Computations!$E$18*Computations!D65+Computations!$D$18*Computations!D65^2 -> 487.0373303 | R65: =Computations!$F$19+Computations!$E$19*Computations!D65+Computations!$D$19*Computations!D65^2+Computations!$C$19*Computations!D65^3 -> 487.0373303 | S65: =Computations!$J$15+Computations!$I$15*D65 -> 450000 | T65: =EXP(Computations!$J$16)*EXP(Computations!$I$16)^Computations!D65 -> 450000 | U65: =Computations!$J$17+Computations!$I$17*LN(Computations!D65) -> 450000 | V65: =Computations!$J$18+Computations!$I$18*Computations!D65+Computations!$H$18*Computations!D65^2 -> 450000 | W65: =Computations!$J$19+Computations!$I$19*Computations!D65+Computations!$H$19*Computations!D65^2+Computations!$G$19*Computations!D65^3 -> 450000
A66: 12 | B66: 0.01429900433 | C66: 0.01459085158 | D66: 0.01444492796 | E66: 0.0003944505717 | F66: 3.740380135e-05 | G66: 742.6964205 | H66: 450000 | I66: =G66-H66/User_entry!$E$18 -> -757.3035795 | J66: 0 | L66: =HLOOKUP(User_entry!$B$56,Computations!$N$54:$R$1054,Computations!A66+1,FALSE) -> 742.6964205 | M66: =HLOOKUP(User_entry!$E$56,Computations!$S$54:$W$1054,Computations!A66+1,FALSE) -> 450000 | N66: =Computations!$F$15+Computations!$E$15*D66 -> 742.6964205 | O66: =EXP(Computations!$F$16)*EXP(Computations!$E$16)^Computations!D66 -> 921.8851447 | P66: =Computations!$F$17+Computations!$E$17*LN(Computations!D66) -> -341.8642085 | Q66: =Computations!$F$18+Computations!$E$18*Computations!D66+Computations!$D$18*Computations!D66^2 -> 493.105613 | R66: =Computations!$F$19+Computations!$E$19*Computations!D66+Computations!$D$19*Computations!D66^2+Computations!$C$19*Computations!D66^3 -> 493.105613 | S66: =Computations!$J$15+Computations!$I$15*D66 -> 450000 | T66: =EXP(Computations!$J$16)*EXP(Computations!$I$16)^Computations!D66 -> 450000 | U66: =Computations!$J$17+Computations!$I$17*LN(Computations!D66) -> 450000 | V66: =Computations!$J$18+Computations!$I$18*Computations!D66+Computations!$H$18*Computations!D66^2 -> 450000 | W66: =Computations!$J$19+Computations!$I$19*Computations!D66+Computations!$H$19*Computations!D66^2+Computations!$G$19*Computations!D66^3 -> 450000
A67: 13 | B67: 0.01459085158 | C67: 0.01488269884 | D67: 0.01473677521 | E67: 0.0004348108232 | F67: 4.036025154e-05 | G67: 746.536516 | H67: 450000 | I67: =G67-H67/User_entry!$E$18 -> -753.463484 | J67: 0 | L67: =HLOOKUP(User_entry!$B$56,Computations!$N$54:$R$1054,Computations!A67+1,FALSE) -> 746.536516 | M67: =HLOOKUP(User_entry!$E$56,Computations!$S$54:$W$1054,Computations!A67+1,FALSE) -> 450000 | N67: =Computations!$F$15+Computations!$E$15*D67 -> 746.536516 | O67: =EXP(Computations!$F$16)*EXP(Computations!$E$16)^Computations!D67 -> 923.7977918 | P67: =Computations!$F$17+Computations!$E$17*LN(Computations!D67) -> -316.4519153 | Q67: =Computations!$F$18+Computations!$E$18*Computations!D67+Computations!$D$18*Computations!D67^2 -> 499.1675864 | R67: =Computations!$F$19+Computations!$E$19*Computations!D67+Computations!$D$19*Computations!D67^2+Computations!$C$19*Computations!D67^3 -> 499.1675864 | S67: =Computations!$J$15+Computations!$I$15*D67 -> 450000 | T67: =EXP(Computations!$J$16)*EXP(Computations!$I$16)^Computations!D67 -> 450000 | U67: =Computations!$J$17+Computations!$I$17*LN(Computations!D67) -> 450000 | V67: =Computations!$J$18+Computations!$I$18*Computations!D67+Computations!$H$18*Computations!D67^2 -> 450000 | W67: =Computations!$J$19+Computations!$I$19*Computations!D67+Computations!$H$19*Computations!D67^2+Computations!$G$19*Computations!D67^3 -> 450000
A68: 14 | B68: 0.01488269884 | C68: 0.0151745461 | D68: 0.01502862247 | E68: 0.0004782838087 | F68: 4.347298554e-05 | G68: 750.3766114 | H68: 450000 | I68: =G68-H68/User_entry!$E$18 -> -749.6233886 | J68: 0 | L68: =HLOOKUP(User_entry!$B$56,Computations!$N$54:$R$1054,Computations!A68+1,FALSE) -> 750.3766114 | M68: =HLOOKUP(User_entry!$E$56,Computations!$S$54:$W$1054,Computations!A68+1,FALSE) -> 450000 | N68: =Computations!$F$15+Computations!$E$15*D68 -> 750.3766114 | O68: =EXP(Computations!$F$16)*EXP(Computations!$E$16)^Computations!D68 -> 925.7144072 | P68: =Computations!$F$17+Computations!$E$17*LN(Computations!D68) -> -291.5379851 | Q68: =Computations!$F$18+Computations!$E$18*Computations!D68+Computations!$D$18*Computations!D68^2 -> 505.2232505 | R68: =Computations!$F$19+Computations!$E$19*Computations!D68+Computations!$D$19*Computations!D68^2+Computations!$C$19*Computations!D68^3 -> 505.2232505 | S68: =Computations!$J$15+Computations!$I$15*D68 -> 450000 | T68: =EXP(Computations!$J$16)*EXP(Computations!$I$16)^Computations!D68 -> 450000 | U68: =Computations!$J$17+Computations!$I$17*LN(Computations!D68) -> 450000 | V68: =Computations!$J$18+Computations!$I$18*Computations!D68+Computations!$H$18*Computations!D68^2 -> 450000 | W68: =Computations!$J$19+Computations!$I$19*Computations!D68+Computations!$H$19*Computations!D68^2+Computations!$G$19*Computations!D68^3 -> 450000
A69: 15 | B69: 0.0151745461 | C69: 0.01546639336 | D69: 0.01532046973 | E69: 0.0005250295645 | F69: 4.674575577e-05 | G69: 754.2167069 | H69: 450000 | I69: =G69-H69/User_entry!$E$18 -> -745.7832931 | J69: 0 | L69: =HLOOKUP(User_entry!$B$56,Computations!$N$54:$R$1054,Computations!A69+1,FALSE) -> 754.2167069 | M69: =HLOOKUP(User_entry!$E$56,Computations!$S$54:$W$1054,Computations!A69+1,FALSE) -> 450000 | N69: =Computations!$F$15+Computations!$E$15*D69 -> 754.2167069 | O69: =EXP(Computations!$F$16)*EXP(Computations!$E$16)^Computations!D69 -> 927.634999 | P69: =Computations!$F$17+Computations!$E$17*LN(Computations!D69) -> -267.1032465 | Q69: =Computations!$F$18+Computations!$E$18*Computations!D69+Computations!$D$18*Computations!D69^2 -> 511.2726054 | R69: =Computations!$F$19+Computations!$E$19*Computations!D69+Computations!$D$19*Computations!D69^2+Computations!$C$19*Computations!D69^3 -> 511.2726054 | S69: =Computations!$J$15+Computations!$I$15*D69 -> 450000 | T69: =EXP(Computations!$J$16)*EXP(Computations!$I$16)^Computations!D69 -> 450000 | U69: =Computations!$J$17+Computations!$I$17*LN(Computations!D69) -> 450000 | V69: =Computations!$J$18+Computations!$I$18*Computations!D69+Computations!$H$18*Computations!D69^2 -> 450000 | W69: =Computations!$J$19+Computations!$I$19*Computations!D69+Computations!$H$19*Computations!D69^2+Computations!$G$19*Computations!D69^3 -> 450000
A70: 16 | B70: 0.01546639336 | C70: 0.01575824061 | D70: 0.01561231698 | E70: 0.0005752117972 | F70: 5.018223273e-05 | G70: 758.0568024 | H70: 450000 | I70: =G70-H70/User_entry!$E$18 -> -741.9431976 | J70: 0 | L70: =HLOOKUP(User_entry!$B$56,Computations!$N$54:$R$1054,Computations!A70+1,FALSE) -> 758.0568024 | M70: =HLOOKUP(User_entry!$E$56,Computations!$S$54:$W$1054,Computations!A70+1,FALSE) -> 450000 | N70: =Computations!$F$15+Computations!$E$15*D70 -> 758.0568024 | O70: =EXP(Computations!$F$16)*EXP(Computations!$E$16)^Computations!D70 -> 929.5595754 | P70: =Computations!$F$17+Computations!$E$17*LN(Computations!D70) -> -243.1296135 | Q70: =Computations!$F$18+Computations!$E$18*Computations!D70+Computations!$D$18*Computations!D70^2 -> 517.3156511 | R70: =Computations!$F$19+Computations!$E$19*Computations!D70+Computations!$D$19*Computations!D70^2+Computations!$C$19*Computations!D70^3 -> 517.3156511 | S70: =Computations!$J$15+Computations!$I$15*D70 -> 450000 | T70: =EXP(Computations!$J$16)*EXP(Computations!$I$16)^Computations!D70 -> 450000 | U70: =Computations!$J$17+Computations!$I$17*LN(Computations!D70) -> 450000 | V70: =Computations!$J$18+Computations!$I$18*Computations!D70+Computations!$H$18*Computations!D70^2 -> 450000 | W70: =Computations!$J$19+Computations!$I$19*Computations!D70+Computations!$H$19*Computations!D70^2+Computations!$G$19*Computations!D70^3 -> 450000
A71: 17 | B71: 0.01575824061 | C71: 0.01605008787 | D71: 0.01590416424 | E71: 0.0006289977983 | F71: 5.378600109e-05 | G71: 761.8968979 | H71: 450000 | I71: =G71-H71/User_entry!$E$18 -> -738.1031021 | J71: 0 | L71: =HLOOKUP(User_entry!$B$56,Computations!$N$54:$R$1054,Computations!A71+1,FALSE) -> 761.8968979 | M71: =HLOOKUP(User_entry!$E$56,Computations!$S$54:$W$1054,Computations!A71+1,FALSE) -> 450000 | N71: =Computations!$F$15+Computations!$E$15*D71 -> 761.8968979 | O71: =EXP(Computations!$F$16)*EXP(Computations!$E$16)^Computations!D71 -> 931.4881448 | P71: =Computations!$F$17+Computations!$E$17*LN(Computations!D71) -> -219.6000047 | Q71: =Computations!$F$18+Computations!$E$18*Computations!D71+Computations!$D$18*Computations!D71^2 -> 523.3523875 | R71: =Computations!$F$19+Computations!$E$19*Computations!D71+Computations!$D$19*Computations!D71^2+Computations!$C$19*Computations!D71^3 -> 523.3523875 | S71: =Computations!$J$15+Computations!$I$15*D71 -> 450000 | T71: =EXP(Computations!$J$16)*EXP(Computations!$I$16)^Computations!D71 -> 450000 | U71: =Computations!$J$17+Computations!$I$17*LN(Computations!D71) -> 450000 | V71: =Computations!$J$18+Computations!$I$18*Computations!D71+Computations!$H$18*Computations!D71^2 -> 450000 | W71: =Computations!$J$19+Computations!$I$19*Computations!D71+Computations!$H$19*Computations!D71^2+Computations!$G$19*Computations!D71^3 -> 450000
A72: 18 | B72: 0.01605008787 | C72: 0.01634193513 | D72: 0.0161960115 | E72: 0.0006865583543 | F72: 5.756055593e-05 | G72: 765.7369934 | H72: 450000 | I72: =G72-H72/User_entry!$E$18 -> -734.2630066 | J72: 0 | L72: =HLOOKUP(User_entry!$B$56,Computations!$N$54:$R$1054,Computations!A72+1,FALSE) -> 765.7369934 | M72: =HLOOKUP(User_entry!$E$56,Computations!$S$54:$W$1054,Computations!A72+1,FALSE) -> 450000 | N72: =Computations!$F$15+Computations!$E$15*D72 -> 765.7369934 | O72: =EXP(Computations!$F$16)*EXP(Computations!$E$16)^Computations!D72 -> 933.4207154 | P72: =Computations!$F$17+Computations!$E$17*LN(Computations!D72) -> -196.4982712 | Q72: =Computations!$F$18+Computations!$E$18*Computations!D72+Computations!$D$18*Computations!D72^2 -> 529.3828146 | R72: =Computations!$F$19+Computations!$E$19*Computations!D72+Computations!$D$19*Computations!D72^2+Computations!$C$19*Computations!D72^3 -> 529.3828146 | S72: =Computations!$J$15+Computations!$I$15*D72 -> 450000 | T72: =EXP(Computations!$J$16)*EXP(Computations!$I$16)^Computations!D72 -> 450000 | U72: =Computations!$J$17+Computations!$I$17*LN(Computations!D72) -> 450000 | V72: =Computations!$J$18+Computations!$I$18*Computations!D72+Computations!$H$18*Computations!D72^2 -> 450000 | W72: =Computations!$J$19+Computations!$I$19*Computations!D72+Computations!$H$19*Computations!D72^2+Computations!$G$19*Computations!D72^3 -> 450000
A73: 19 | B73: 0.01634193513 | C73: 0.01663378238 | D73: 0.01648785875 | E73: 0.0007480676535 | F73: 6.150929925e-05 | G73: 769.5770889 | H73: 450000 | I73: =G73-H73/User_entry!$E$18 -> -730.4229111 | J73: 0 | L73: =HLOOKUP(User_entry!$B$56,Computations!$N$54:$R$1054,Computations!A73+1,FALSE) -> 769.5770889 | M73: =HLOOKUP(User_entry!$E$56,Computations!$S$54:$W$1054,Computations!A73+1,FALSE) -> 450000 | N73: =Computations!$F$15+Computations!$E$15*D73 -> 769.5770889 | O73: =EXP(Computations!$F$16)*EXP(Computations!$E$16)^Computations!D73 -> 935.3572956 | P73: =Computations!$F$17+Computations!$E$17*LN(Computations!D73) -> -173.8091288 | Q73: =Computations!$F$18+Computations!$E$18*Computations!D73+Computations!$D$18*Computations!D73^2 -> 535.4069326 | R73: =Computations!$F$19+Computations!$E$19*Computations!D73+Computations!$D$19*Computations!D73^2+Computations!$C$19*Computations!D73^3 -> 535.4069326 | S73: =Computations!$J$15+Computations!$I$15*D73 -> 450000 | T73: =EXP(Computations!$J$16)*EXP(Computations!$I$16)^Computations!D73 -> 450000 | U73: =Computations!$J$17+Computations!$I$17*LN(Computations!D73) -> 450000 | V73: =Computations!$J$18+Computations!$I$18*Computations!D73+Computations!$H$18*Computations!D73^2 -> 450000 | W73: =Computations!$J$19+Computations!$I$19*Computations!D73+Computations!$H$19*Computations!D73^2+Computations!$G$19*Computations!D73^3 -> 450000
A74: 20 | B74: 0.01663378238 | C74: 0.01692562964 | D74: 0.01677970601 | E74: 0.0008137031901 | F74: 6.563553656e-05 | G74: 773.4171844 | H74: 450000 | I74: =G74-H74/User_entry!$E$18 -> -726.5828156 | J74: 0 | L74: =HLOOKUP(User_entry!$B$56,Computations!$N$54:$R$1054,Computations!A74+1,FALSE) -> 773.4171844 | M74: =HLOOKUP(User_entry!$E$56,Computations!$S$54:$W$1054,Computations!A74+1,FALSE) -> 450000 | N74: =Computations!$F$15+Computations!$E$15*D74 -> 773.4171844 | O74: =EXP(Computations!$F$16)*EXP(Computations!$E$16)^Computations!D74 -> 937.2978936 | P74: =Computations!$F$17+Computations!$E$17*LN(Computations!D74) -> -151.5180984 | Q74: =Computations!$F$18+Computations!$E$18*Computations!D74+Computations!$D$18*Computations!D74^2 -> 541.4247412 | R74: =Computations!$F$19+Computations!$E$19*Computations!D74+Computations!$D$19*Computations!D74^2+Computations!$C$19*Computations!D74^3 -> 541.4247412 | S74: =Computations!$J$15+Computations!$I$15*D74 -> 450000 | T74: =EXP(Computations!$J$16)*EXP(Computations!$I$16)^Computations!D74 -> 450000 | U74: =Computations!$J$17+Computations!$I$17*LN(Computations!D74) -> 450000 | V74: =Computations!$J$18+Computations!$I$18*Computations!D74+Computations!$H$18*Computations!D74^2 -> 450000 | W74: =Computations!$J$19+Computations!$I$19*Computations!D74+Computations!$H$19*Computations!D74^2+Computations!$G$19*Computations!D74^3 -> 450000
A75: 21 | B75: 0.01692562964 | C75: 0.0172174769 | D75: 0.01707155327 | E75: 0.0008836456639 | F75: 6.994247382e-05 | G75: 777.2572798 | H75: 450000 | I75: =G75-H75/User_entry!$E$18 -> -722.7427202 | J75: 0 | L75: =HLOOKUP(User_entry!$B$56,Computations!$N$54:$R$1054,Computations!A75+1,FALSE) -> 777.2572798 | M75: =HLOOKUP(User_entry!$E$56,Computations!$S$54:$W$1054,Computations!A75+1,FALSE) -> 450000 | N75: =Computations!$F$15+Computations!$E$15*D75 -> 777.2572798 | O75: =EXP(Computations!$F$16)*EXP(Computations!$E$16)^Computations!D75 -> 939.2425178 | P75: =Computations!$F$17+Computations!$E$17*LN(Computations!D75) -> -129.6114496 | Q75: =Computations!$F$18+Computations!$E$18*Computations!D75+Computations!$D$18*Computations!D75^2 -> 547.4362406 | R75: =Computations!$F$19+Computations!$E$19*Computations!D75+Computations!$D$19*Computations!D75^2+Computations!$C$19*Computations!D75^3 -> 547.4362406 | S75: =Computations!$J$15+Computations!$I$15*D75 -> 450000 | T75: =EXP(Computations!$J$16)*EXP(Computations!$I$16)^Computations!D75 -> 450000 | U75: =Computations!$J$17+Computations!$I$17*LN(Computations!D75) -> 450000 | V75: =Computations!$J$18+Computations!$I$18*Computations!D75+Computations!$H$18*Computations!D75^2 -> 450000 | W75: =Computations!$J$19+Computations!$I$19*Computations!D75+Computations!$H$19*Computations!D75^2+Computations!$G$19*Computations!D75^3 -> 450000
A76: 22 | B76: 0.0172174769 | C76: 0.01750932415 | D76: 0.01736340053 | E76: 0.0009580788783 | F76: 7.443321442e-05 | G76: 781.0973753 | H76: 450000 | I76: =G76-H76/User_entry!$E$18 -> -718.9026247 | J76: 0 | L76: =HLOOKUP(User_entry!$B$56,Computations!$N$54:$R$1054,Computations!A76+1,FALSE) -> 781.0973753 | M76: =HLOOKUP(User_entry!$E$56,Computations!$S$54:$W$1054,Computations!A76+1,FALSE) -> 450000 | N76: =Computations!$F$15+Computations!$E$15*D76 -> 781.0973753 | O76: =EXP(Computations!$F$16)*EXP(Computations!$E$16)^Computations!D76 -> 941.1911765 | P76: =Computations!$F$17+Computations!$E$17*LN(Computations!D76) -> -108.0761505 | Q76: =Computations!$F$18+Computations!$E$18*Computations!D76+Computations!$D$18*Computations!D76^2 -> 553.4414308 | R76: =Computations!$F$19+Computations!$E$19*Computations!D76+Computations!$D$19*Computations!D76^2+Computations!$C$19*Computations!D76^3 -> 553.4414308 | S76: =Computations!$J$15+Computations!$I$15*D76 -> 450000 | T76: =EXP(Computations!$J$16)*EXP(Computations!$I$16)^Computations!D76 -> 450000 | U76: =Computations!$J$17+Computations!$I$17*LN(Computations!D76) -> 450000 | V76: =Computations!$J$18+Computations!$I$18*Computations!D76+Computations!$H$18*Computations!D76^2 -> 450000 | W76: =Computations!$J$19+Computations!$I$19*Computations!D76+Computations!$H$19*Computations!D76^2+Computations!$G$19*Computations!D76^3 -> 450000
A77: 23 | B77: 0.01750932415 | C77: 0.01780117141 | D77: 0.01765524778 | E77: 0.001037189635 | F77: 7.91107565e-05 | G77: 784.9374708 | H77: 450000 | I77: =G77-H77/User_entry!$E$18 -> -715.0625292 | J77: 0 | L77: =HLOOKUP(User_entry!$B$56,Computations!$N$54:$R$1054,Computations!A77+1,FALSE) -> 784.9374708 | M77: =HLOOKUP(User_entry!$E$56,Computations!$S$54:$W$1054,Computations!A77+1,FALSE) -> 450000 | N77: =Computations!$F$15+Computations!$E$15*D77 -> 784.9374708 | O77: =EXP(Computations!$F$16)*EXP(Computations!$E$16)^Computations!D77 -> 943.1438781 | P77: =Computations!$F$17+Computations!$E$17*LN(Computations!D77) -> -86.89982075 | Q77: =Computations!$F$18+Computations!$E$18*Computations!D77+Computations!$D$18*Computations!D77^2 -> 559.4403118 | R77: =Computations!$F$19+Computations!$E$19*Computations!D77+Computations!$D$19*Computations!D77^2+Computations!$C$19*Computations!D77^3 -> 559.4403118 | S77: =Computations!$J$15+Computations!$I$15*D77 -> 450000 | T77: =EXP(Computations!$J$16)*EXP(Computations!$I$16)^Computations!D77 -> 450000 | U77: =Computations!$J$17+Computations!$I$17*LN(Computations!D77) -> 450000 | V77: =Computations!$J$18+Computations!$I$18*Computations!D77+Computations!$H$18*Computations!D77^2 -> 450000 | W77: =Computations!$J$19+Computations!$I$19*Computations!D77+Computations!$H$19*Computations!D77^2+Computations!$G$19*Computations!D77^3 -> 450000
A78: 24 | B78: 0.01780117141 | C78: 0.01809301867 | D78: 0.01794709504 | E78: 0.001121167625 | F78: 8.39779903e-05 | G78: 788.7775663 | H78: 450000 | I78: =G78-H78/User_entry!$E$18 -> -711.2224337 | J78: 0 | L78: =HLOOKUP(User_entry!$B$56,Computations!$N$54:$R$1054,Computations!A78+1,FALSE) -> 788.7775663 | M78: =HLOOKUP(User_entry!$E$56,Computations!$S$54:$W$1054,Computations!A78+1,FALSE) -> 450000 | N78: =Computations!$F$15+Computations!$E$15*D78 -> 788.7775663 | O78: =EXP(Computations!$F$16)*EXP(Computations!$E$16)^Computations!D78 -> 945.1006311 | P78: =Computations!$F$17+Computations!$E$17*LN(Computations!D78) -> -66.07068912 | Q78: =Computations!$F$18+Computations!$E$18*Computations!D78+Computations!$D$18*Computations!D78^2 -> 565.4328834 | R78: =Computations!$F$19+Computations!$E$19*Computations!D78+Computations!$D$19*Computations!D78^2+Computations!$C$19*Computations!D78^3 -> 565.4328834 | S78: =Computations!$J$15+Computations!$I$15*D78 -> 450000 | T78: =EXP(Computations!$J$16)*EXP(Computations!$I$16)^Computations!D78 -> 450000 | U78: =Computations!$J$17+Computations!$I$17*LN(Computations!D78) -> 450000 | V78: =Computations!$J$18+Computations!$I$18*Computations!D78+Computations!$H$18*Computations!D78^2 -> 450000 | W78: =Computations!$J$19+Computations!$I$19*Computations!D78+Computations!$H$19*Computations!D78^2+Computations!$G$19*Computations!D78^3 -> 450000
A79: 25 | B79: 0.01809301867 | C79: 0.01838486592 | D79: 0.0182389423 | E79: 0.001210205321 | F79: 8.903769586e-05 | G79: 792.6176618 | H79: 450000 | I79: =G79-H79/User_entry!$E$18 -> -707.3823382 | J79: 0 | L79: =HLOOKUP(User_entry!$B$56,Computations!$N$54:$R$1054,Computations!A79+1,FALSE) -> 792.6176618 | M79: =HLOOKUP(User_entry!$E$56,Computations!$S$54:$W$1054,Computations!A79+1,FALSE) -> 450000 | N79: =Computations!$F$15+Computations!$E$15*D79 -> 792.6176618 | O79: =EXP(Computations!$F$16)*EXP(Computations!$E$16)^Computations!D79 -> 947.0614437 | P79: =Computations!$F$17+Computations!$E$17*LN(Computations!D79) -> -45.57755397 | Q79: =Computations!$F$18+Computations!$E$18*Computations!D79+Computations!$D$18*Computations!D79^2 -> 571.4191459 | R79: =Computations!$F$19+Computations!$E$19*Computations!D79+Computations!$D$19*Computations!D79^2+Computations!$C$19*Computations!D79^3 -> 571.4191459 | S79: =Computations!$J$15+Computations!$I$15*D79 -> 450000 | T79: =EXP(Computations!$J$16)*EXP(Computations!$I$16)^Computations!D79 -> 450000 | U79: =Computations!$J$17+Computations!$I$17*LN(Computations!D79) -> 450000 | V79: =Computations!$J$18+Computations!$I$18*Computations!D79+Computations!$H$18*Computations!D79^2 -> 450000 | W79: =Computations!$J$19+Computations!$I$19*Computations!D79+Computations!$H$19*Computations!D79^2+Computations!$G$19*Computations!D79^3 -> 450000
A80: 26 | B80: 0.01838486592 | C80: 0.01867671318 | D80: 0.01853078955 | E80: 0.001304497862 | F80: 9.429254075e-05 | G80: 796.4577573 | H80: 450000 | I80: =G80-H80/User_entry!$E$18 -> -703.5422427 | J80: 0 | L80: =HLOOKUP(User_entry!$B$56,Computations!$N$54:$R$1054,Computations!A80+1,FALSE) -> 796.4577573 | M80: =HLOOKUP(User_entry!$E$56,Computations!$S$54:$W$1054,Computations!A80+1,FALSE) -> 450000 | N80: =Computations!$F$15+Computations!$E$15*D80 -> 796.4577573 | O80: =EXP(Computations!$F$16)*EXP(Computations!$E$16)^Computations!D80 -> 949.0263245 | P80: =Computations!$F$17+Computations!$E$17*LN(Computations!D80) -> -25.4097472 | Q80: =Computations!$F$18+Computations!$E$18*Computations!D80+Computations!$D$18*Computations!D80^2 -> 577.3990991 | R80: =Computations!$F$19+Computations!$E$19*Computations!D80+Computations!$D$19*Computations!D80^2+Computations!$C$19*Computations!D80^3 -> 577.3990991 | S80: =Computations!$J$15+Computations!$I$15*D80 -> 450000 | T80: =EXP(Computations!$J$16)*EXP(Computations!$I$16)^Computations!D80 -> 450000 | U80: =Computations!$J$17+Computations!$I$17*LN(Computations!D80) -> 450000 | V80: =Computations!$J$18+Computations!$I$18*Computations!D80+Computations!$H$18*Computations!D80^2 -> 450000 | W80: =Computations!$J$19+Computations!$I$19*Computations!D80+Computations!$H$19*Computations!D80^2+Computations!$G$19*Computations!D80^3 -> 450000
A81: 27 | B81: 0.01867671318 | C81: 0.01896856044 | D81: 0.01882263681 | E81: 0.00140424294 | F81: 9.974507808e-05 | G81: 800.2978528 | H81: 450000 | I81: =G81-H81/User_entry!$E$18 -> -699.7021472 | J81: 0 | L81: =HLOOKUP(User_entry!$B$56,Computations!$N$54:$R$1054,Computations!A81+1,FALSE) -> 800.2978528 | M81: =HLOOKUP(User_entry!$E$56,Computations!$S$54:$W$1054,Computations!A81+1,FALSE) -> 450000 | N81: =Computations!$F$15+Computations!$E$15*D81 -> 800.2978528 | O81: =EXP(Computations!$F$16)*EXP(Computations!$E$16)^Computations!D81 -> 950.9952818 | P81: =Computations!$F$17+Computations!$E$17*LN(Computations!D81) -> -5.557100837 | Q81: =Computations!$F$18+Computations!$E$18*Computations!D81+Computations!$D$18*Computations!D81^2 -> 583.372743 | R81: =Computations!$F$19+Computations!$E$19*Computations!D81+Computations!$D$19*Computations!D81^2+Computations!$C$19*Computations!D81^3 -> 583.372743 | S81: =Computations!$J$15+Computations!$I$15*D81 -> 450000 | T81: =EXP(Computations!$J$16)*EXP(Computations!$I$16)^Computations!D81 -> 450000 | U81: =Computations!$J$17+Computations!$I$17*LN(Computations!D81) -> 450000 | V81: =Computations!$J$18+Computations!$I$18*Computations!D81+Computations!$H$18*Computations!D81^2 -> 450000 | W81: =Computations!$J$19+Computations!$I$19*Computations!D81+Computations!$H$19*Computations!D81^2+Computations!$G$19*Computations!D81^3 -> 450000
A82: 28 | B82: 0.01896856044 | C82: 0.0192604077 | D82: 0.01911448407 | E82: 0.001509640684 | F82: 0.0001053977447 | G82: 804.1379483 | H82: 450000 | I82: =G82-H82/User_entry!$E$18 -> -695.8620517 | J82: 0 | L82: =HLOOKUP(User_entry!$B$56,Computations!$N$54:$R$1054,Computations!A82+1,FALSE) -> 804.1379483 | M82: =HLOOKUP(User_entry!$E$56,Computations!$S$54:$W$1054,Computations!A82+1,FALSE) -> 450000 | N82: =Computations!$F$15+Computations!$E$15*D82 -> 804.1379483 | O82: =EXP(Computations!$F$16)*EXP(Computations!$E$16)^Computations!D82 -> 952.9683241 | P82: =Computations!$F$17+Computations!$E$17*LN(Computations!D82) -> 13.99008372 | Q82: =Computations!$F$18+Computations!$E$18*Computations!D82+Computations!$D$18*Computations!D82^2 -> 589.3400777 | R82: =Computations!$F$19+Computations!$E$19*Computations!D82+Computations!$D$19*Computations!D82^2+Computations!$C$19*Computations!D82^3 -> 589.3400777 | S82: =Computations!$J$15+Computations!$I$15*D82 -> 450000 | T82: =EXP(Computations!$J$16)*EXP(Computations!$I$16)^Computations!D82 -> 450000 | U82: =Computations!$J$17+Computations!$I$17*LN(Computations!D82) -> 450000 | V82: =Computations!$J$18+Computations!$I$18*Computations!D82+Computations!$H$18*Computations!D82^2 -> 450000 | W82: =Computations!$J$19+Computations!$I$19*Computations!D82+Computations!$H$19*Computations!D82^2+Computations!$G$19*Computations!D82^3 -> 450000
A83: 29 | B83: 0.0192604077 | C83: 0.01955225495 | D83: 0.01940633132 | E83: 0.001620893544 | F83: 0.0001112528593 | G83: 807.9780437 | H83: 450000 | I83: =G83-H83/User_entry!$E$18 -> -692.0219563 | J83: 0 | L83: =HLOOKUP(User_entry!$B$56,Computations!$N$54:$R$1054,Computations!A83+1,FALSE) -> 807.9780437 | M83: =HLOOKUP(User_entry!$E$56,Computations!$S$54:$W$1054,Computations!A83+1,FALSE) -> 450000 | N83: =Computations!$F$15+Computations!$E$15*D83 -> 807.9780437 | O83: =EXP(Computations!$F$16)*EXP(Computations!$E$16)^Computations!D83 -> 954.94546 | P83: =Computations!$F$17+Computations!$E$17*LN(Computations!D83) -> 33.24106415 | Q83: =Computations!$F$18+Computations!$E$18*Computations!D83+Computations!$D$18*Computations!D83^2 -> 595.3011032 | R83: =Computations!$F$19+Computations!$E$19*Computations!D83+Computations!$D$19*Computations!D83^2+Computations!$C$19*Computations!D83^3 -> 595.3011032 | S83: =Computations!$J$15+Computations!$I$15*D83 -> 450000 | T83: =EXP(Computations!$J$16)*EXP(Computations!$I$16)^Computations!D83 -> 450000 | U83: =Computations!$J$17+Computations!$I$17*LN(Computations!D83) -> 450000 | V83: =Computations!$J$18+Computations!$I$18*Computations!D83+Computations!$H$18*Computations!D83^2 -> 450000 | W83: =Computations!$J$19+Computations!$I$19*Computations!D83+Computations!$H$19*Computations!D83^2+Computations!$G$19*Computations!D83^3 -> 450000
A84: 30 | B84: 0.01955225495 | C84: 0.01984410221 | D84: 0.01969817858 | E84: 0.001738206165 | F84: 0.0001173126213 | G84: 811.8181392 | H84: 450000 | I84: =G84-H84/User_entry!$E$18 -> -688.1818608 | J84: 0 | L84: =HLOOKUP(User_entry!$B$56,Computations!$N$54:$R$1054,Computations!A84+1,FALSE) -> 811.8181392 | M84: =HLOOKUP(User_entry!$E$56,Computations!$S$54:$W$1054,Computations!A84+1,FALSE) -> 450000 | N84: =Computations!$F$15+Computations!$E$15*D84 -> 811.8181392 | O84: =EXP(Computations!$F$16)*EXP(Computations!$E$16)^Computations!D84 -> 956.9266978 | P84: =Computations!$F$17+Computations!$E$17*LN(Computations!D84) -> 52.20468356 | Q84: =Computations!$F$18+Computations!$E$18*Computations!D84+Computations!$D$18*Computations!D84^2 -> 601.2558194 | R84: =Computations!$F$19+Computations!$E$19*Computations!D84+Computations!$D$19*Computations!D84^2+Computations!$C$19*Computations!D84^3 -> 601.2558194 | S84: =Computations!$J$15+Computations!$I$15*D84 -> 450000 | T84: =EXP(Computations!$J$16)*EXP(Computations!$I$16)^Computations!D84 -> 450000 | U84: =Computations!$J$17+Computations!$I$17*LN(Computations!D84) -> 450000 | V84: =Computations!$J$18+Computations!$I$18*Computations!D84+Computations!$H$18*Computations!D84^2 -> 450000 | W84: =Computations!$J$19+Computations!$I$19*Computations!D84+Computations!$H$19*Computations!D84^2+Computations!$G$19*Computations!D84^3 -> 450000
A85: 31 | B85: 0.01984410221 | C85: 0.02013594947 | D85: 0.01999002584 | E85: 0.001861785274 | F85: 0.0001235791091 | G85: 815.6582347 | H85: 450000 | I85: =G85-H85/User_entry!$E$18 -> -684.3417653 | J85: 0 | L85: =HLOOKUP(User_entry!$B$56,Computations!$N$54:$R$1054,Computations!A85+1,FALSE) -> 815.6582347 | M85: =HLOOKUP(User_entry!$E$56,Computations!$S$54:$W$1054,Computations!A85+1,FALSE) -> 450000 | N85: =Computations!$F$15+Computations!$E$15*D85 -> 815.6582347 | O85: =EXP(Computations!$F$16)*EXP(Computations!$E$16)^Computations!D85 -> 958.9120461 | P85: =Computations!$F$17+Computations!$E$17*LN(Computations!D85) -> 70.88939484 | Q85: =Computations!$F$18+Computations!$E$18*Computations!D85+Computations!$D$18*Computations!D85^2 -> 607.2042263 | R85: =Computations!$F$19+Computations!$E$19*Computations!D85+Computations!$D$19*Computations!D85^2+Computations!$C$19*Computations!D85^3 -> 607.2042263 | S85: =Computations!$J$15+Computations!$I$15*D85 -> 450000 | T85: =EXP(Computations!$J$16)*EXP(Computations!$I$16)^Computations!D85 -> 450000 | U85: =Computations!$J$17+Computations!$I$17*LN(Computations!D85) -> 450000 | V85: =Computations!$J$18+Computations!$I$18*Computations!D85+Computations!$H$18*Computations!D85^2 -> 450000 | W85: =Computations!$J$19+Computations!$I$19*Computations!D85+Computations!$H$19*Computations!D85^2+Computations!$G$19*Computations!D85^3 -> 450000
A86: 32 | B86: 0.02013594947 | C86: 0.02042779672 | D86: 0.02028187309 | E86: 0.001991839553 | F86: 0.000130054279 | G86: 819.4983302 | H86: 450000 | I86: =G86-H86/User_entry!$E$18 -> -680.5016698 | J86: 0 | L86: =HLOOKUP(User_entry!$B$56,Computations!$N$54:$R$1054,Computations!A86+1,FALSE) -> 819.4983302 | M86: =HLOOKUP(User_entry!$E$56,Computations!$S$54:$W$1054,Computations!A86+1,FALSE) -> 450000 | N86: =Computations!$F$15+Computations!$E$15*D86 -> 819.4983302 | O86: =EXP(Computations!$F$16)*EXP(Computations!$E$16)^Computations!D86 -> 960.9015135 | P86: =Computations!$F$17+Computations!$E$17*LN(Computations!D86) -> 89.30328333 | Q86: =Computations!$F$18+Computations!$E$18*Computations!D86+Computations!$D$18*Computations!D86^2 -> 613.1463241 | R86: =Computations!$F$19+Computations!$E$19*Computations!D86+Computations!$D$19*Computations!D86^2+Computations!$C$19*Computations!D86^3 -> 613.1463241 | S86: =Computations!$J$15+Computations!$I$15*D86 -> 450000 | T86: =EXP(Computations!$J$16)*EXP(Computations!$I$16)^Computations!D86 -> 450000 | U86: =Computations!$J$17+Computations!$I$17*LN(Computations!D86) -> 450000 | V86: =Computations!$J$18+Computations!$I$18*Computations!D86+Computations!$H$18*Computations!D86^2 -> 450000 | W86: =Computations!$J$19+Computations!$I$19*Computations!D86+Computations!$H$19*Computations!D86^2+Computations!$G$19*Computations!D86^3 -> 450000
A87: 33 | B87: 0.02042779672 | C87: 0.02071964398 | D87: 0.02057372035 | E87: 0.002128579517 | F87: 0.0001367399644 | G87: 823.3384257 | H87: 450000 | I87: =G87-H87/User_entry!$E$18 -> -676.6615743 | J87: 0 | L87: =HLOOKUP(User_entry!$B$56,Computations!$N$54:$R$1054,Computations!A87+1,FALSE) -> 823.3384257 | M87: =HLOOKUP(User_entry!$E$56,Computations!$S$54:$W$1054,Computations!A87+1,FALSE) -> 450000 | N87: =Computations!$F$15+Computations!$E$15*D87 -> 823.3384257 | O87: =EXP(Computations!$F$16)*EXP(Computations!$E$16)^Computations!D87 -> 962.8951084 | P87: =Computations!$F$17+Computations!$E$17*LN(Computations!D87) -> 107.4540878 | Q87: =Computations!$F$18+Computations!$E$18*Computations!D87+Computations!$D$18*Computations!D87^2 -> 619.0821125 | R87: =Computations!$F$19+Computations!$E$19*Computations!D87+Computations!$D$19*Computations!D87^2+Computations!$C$19*Computations!D87^3 -> 619.0821125 | S87: =Computations!$J$15+Computations!$I$15*D87 -> 450000 | T87: =EXP(Computations!$J$16)*EXP(Computations!$I$16)^Computations!D87 -> 450000 | U87: =Computations!$J$17+Computations!$I$17*LN(Computations!D87) -> 450000 | V87: =Computations!$J$18+Computations!$I$18*Computations!D87+Computations!$H$18*Computations!D87^2 -> 450000 | W87: =Computations!$J$19+Computations!$I$19*Computations!D87+Computations!$H$19*Computations!D87^2+Computations!$G$19*Computations!D87^3 -> 450000
A88: 34 | B88: 0.02071964398 | C88: 0.02101149124 | D88: 0.02086556761 | E88: 0.002272217392 | F88: 0.0001436378745 | G88: 827.1785212 | H88: 450000 | I88: =G88-H88/User_entry!$E$18 -> -672.8214788 | J88: 0 | L88: =HLOOKUP(User_entry!$B$56,Computations!$N$54:$R$1054,Computations!A88+1,FALSE) -> 827.1785212 | M88: =HLOOKUP(User_entry!$E$56,Computations!$S$54:$W$1054,Computations!A88+1,FALSE) -> 450000 | N88: =Computations!$F$15+Computations!$E$15*D88 -> 827.1785212 | O88: =EXP(Computations!$F$16)*EXP(Computations!$E$16)^Computations!D88 -> 964.8928395 | P88: =Computations!$F$17+Computations!$E$17*LN(Computations!D88) -> 125.34922 | Q88: =Computations!$F$18+Computations!$E$18*Computations!D88+Computations!$D$18*Computations!D88^2 -> 625.0115918 | R88: =Computations!$F$19+Computations!$E$19*Computations!D88+Computations!$D$19*Computations!D88^2+Computations!$C$19*Computations!D88^3 -> 625.0115918 | S88: =Computations!$J$15+Computations!$I$15*D88 -> 450000 | T88: =EXP(Computations!$J$16)*EXP(Computations!$I$16)^Computations!D88 -> 450000 | U88: =Computations!$J$17+Computations!$I$17*LN(Computations!D88) -> 450000 | V88: =Computations!$J$18+Computations!$I$18*Computations!D88+Computations!$H$18*Computations!D88^2 -> 450000 | W88: =Computations!$J$19+Computations!$I$19*Computations!D88+Computations!$H$19*Computations!D88^2+Computations!$G$19*Computations!D88^3 -> 450000
A89: 35 | B89: 0.02101149124 | C89: 0.02130333849 | D89: 0.02115741487 | E89: 0.002422966986 | F89: 0.0001507495941 | G89: 831.0186167 | H89: 450000 | I89: =G89-H89/User_entry!$E$18 -> -668.9813833 | J89: 0 | L89: =HLOOKUP(User_entry!$B$56,Computations!$N$54:$R$1054,Computations!A89+1,FALSE) -> 831.0186167 | M89: =HLOOKUP(User_entry!$E$56,Computations!$S$54:$W$1054,Computations!A89+1,FALSE) -> 450000 | N89: =Computations!$F$15+Computations!$E$15*D89 -> 831.0186167 | O89: =EXP(Computations!$F$16)*EXP(Computations!$E$16)^Computations!D89 -> 966.8947152 | P89: =Computations!$F$17+Computations!$E$17*LN(Computations!D89) -> 142.9957827 | Q89: =Computations!$F$18+Computations!$E$18*Computations!D89+Computations!$D$18*Computations!D89^2 -> 630.9347617 | R89: =Computations!$F$19+Computations!$E$19*Computations!D89+Computations!$D$19*Computations!D89^2+Computations!$C$19*Computations!D89^3 -> 630.9347617 | S89: =Computations!$J$15+Computations!$I$15*D89 -> 450000 | T89: =EXP(Computations!$J$16)*EXP(Computations!$I$16)^Computations!D89 -> 450000 | U89: =Computations!$J$17+Computations!$I$17*LN(Computations!D89) -> 450000 | V89: =Computations!$J$18+Computations!$I$18*Computations!D89+Computations!$H$18*Computations!D89^2 -> 450000 | W89: =Computations!$J$19+Computations!$I$19*Computations!D89+Computations!$H$19*Computations!D89^2+Computations!$G$19*Computations!D89^3 -> 450000
A90: 36 | B90: 0.02130333849 | C90: 0.02159518575 | D90: 0.02144926212 | E90: 0.002581043568 | F90: 0.0001580765823 | G90: 834.8587121 | H90: 450000 | I90: =G90-H90/User_entry!$E$18 -> -665.1412879 | J90: 0 | L90: =HLOOKUP(User_entry!$B$56,Computations!$N$54:$R$1054,Computations!A90+1,FALSE) -> 834.8587121 | M90: =HLOOKUP(User_entry!$E$56,Computations!$S$54:$W$1054,Computations!A90+1,FALSE) -> 450000 | N90: =Computations!$F$15+Computations!$E$15*D90 -> 834.8587121 | O90: =EXP(Computations!$F$16)*EXP(Computations!$E$16)^Computations!D90 -> 968.9007443 | P90: =Computations!$F$17+Computations!$E$17*LN(Computations!D90) -> 160.4005869 | Q90: =Computations!$F$18+Computations!$E$18*Computations!D90+Computations!$D$18*Computations!D90^2 -> 636.8516225 | R90: =Computations!$F$19+Computations!$E$19*Computations!D90+Computations!$D$19*Computations!D90^2+Computations!$C$19*Computations!D90^3 -> 636.8516225 | S90: =Computations!$J$15+Computations!$I$15*D90 -> 450000 | T90: =EXP(Computations!$J$16)*EXP(Computations!$I$16)^Computations!D90 -> 450000 | U90: =Computations!$J$17+Computations!$I$17*LN(Computations!D90) -> 450000 | V90: =Computations!$J$18+Computations!$I$18*Computations!D90+Computations!$H$18*Computations!D90^2 -> 450000 | W90: =Computations!$J$19+Computations!$I$19*Computations!D90+Computations!$H$19*Computations!D90^2+Computations!$G$19*Computations!D90^3 -> 450000
A91: 37 | B91: 0.02159518575 | C91: 0.02188703301 | D91: 0.02174110938 | E91: 0.002746663741 | F91: 0.0001656201728 | G91: 838.6988076 | H91: 450000 | I91: =G91-H91/User_entry!$E$18 -> -661.3011924 | J91: 0 | L91: =HLOOKUP(User_entry!$B$56,Computations!$N$54:$R$1054,Computations!A91+1,FALSE) -> 838.6988076 | M91: =HLOOKUP(User_entry!$E$56,Computations!$S$54:$W$1054,Computations!A91+1,FALSE) -> 450000 | N91: =Computations!$F$15+Computations!$E$15*D91 -> 838.6988076 | O91: =EXP(Computations!$F$16)*EXP(Computations!$E$16)^Computations!D91 -> 970.9109354 | P91: =Computations!$F$17+Computations!$E$17*LN(Computations!D91) -> 177.5701675 | Q91: =Computations!$F$18+Computations!$E$18*Computations!D91+Computations!$D$18*Computations!D91^2 -> 642.762174 | R91: =Computations!$F$19+Computations!$E$19*Computations!D91+Computations!$D$19*Computations!D91^2+Computations!$C$19*Computations!D91^3 -> 642.762174 | S91: =Computations!$J$15+Computations!$I$15*D91 -> 450000 | T91: =EXP(Computations!$J$16)*EXP(Computations!$I$16)^Computations!D91 -> 450000 | U91: =Computations!$J$17+Computations!$I$17*LN(Computations!D91) -> 450000 | V91: =Computations!$J$18+Computations!$I$18*Computations!D91+Computations!$H$18*Computations!D91^2 -> 450000 | W91: =Computations!$J$19+Computations!$I$19*Computations!D91+Computations!$H$19*Computations!D91^2+Computations!$G$19*Computations!D91^3 -> 450000
A92: 38 | B92: 0.02188703301 | C92: 0.02217888026 | D92: 0.02203295664 | E92: 0.002920045314 | F92: 0.0001733815728 | G92: 842.5389031 | H92: 450000 | I92: =G92-H92/User_entry!$E$18 -> -657.4610969 | J92: 0 | L92: =HLOOKUP(User_entry!$B$56,Computations!$N$54:$R$1054,Computations!A92+1,FALSE) -> 842.5389031 | M92: =HLOOKUP(User_entry!$E$56,Computations!$S$54:$W$1054,Computations!A92+1,FALSE) -> 450000 | N92: =Computations!$F$15+Computations!$E$15*D92 -> 842.5389031 | O92: =EXP(Computations!$F$16)*EXP(Computations!$E$16)^Computations!D92 -> 972.925297 | P92: =Computations!$F$17+Computations!$E$17*LN(Computations!D92) -> 194.5107976 | Q92: =Computations!$F$18+Computations!$E$18*Computations!D92+Computations!$D$18*Computations!D92^2 -> 648.6664162 | R92: =Computations!$F$19+Computations!$E$19*Computations!D92+Computations!$D$19*Computations!D92^2+Computations!$C$19*Computations!D92^3 -> 648.6664162 | S92: =Computations!$J$15+Computations!$I$15*D92 -> 450000 | T92: =EXP(Computations!$J$16)*EXP(Computations!$I$16)^Computations!D92 -> 450000 | U92: =Computations!$J$17+Computations!$I$17*LN(Computations!D92) -> 450000 | V92: =Computations!$J$18+Computations!$I$18*Computations!D92+Computations!$H$18*Computations!D92^2 -> 450000 | W92: =Computations!$J$19+Computations!$I$19*Computations!D92+Computations!$H$19*Computations!D92^2+Computations!$G$19*Computations!D92^3 -> 450000
A93: 39 | B93: 0.02217888026 | C93: 0.02247072752 | D93: 0.02232480389 | E93: 0.003101407178 | F93: 0.0001813618638 | G93: 846.3789986 | H93: 450000 | I93: =G93-H93/User_entry!$E$18 -> -653.6210014 | J93: 0 | L93: =HLOOKUP(User_entry!$B$56,Computations!$N$54:$R$1054,Computations!A93+1,FALSE) -> 846.3789986 | M93: =HLOOKUP(User_entry!$E$56,Computations!$S$54:$W$1054,Computations!A93+1,FALSE) -> 450000 | N93: =Computations!$F$15+Computations!$E$15*D93 -> 846.3789986 | O93: =EXP(Computations!$F$16)*EXP(Computations!$E$16)^Computations!D93 -> 974.9438378 | P93: =Computations!$F$17+Computations!$E$17*LN(Computations!D93) -> 211.228503 | Q93: =Computations!$F$18+Computations!$E$18*Computations!D93+Computations!$D$18*Computations!D93^2 -> 654.5643492 | R93: =Computations!$F$19+Computations!$E$19*Computations!D93+Computations!$D$19*Computations!D93^2+Computations!$C$19*Computations!D93^3 -> 654.5643492 | S93: =Computations!$J$15+Computations!$I$15*D93 -> 450000 | T93: =EXP(Computations!$J$16)*EXP(Computations!$I$16)^Computations!D93 -> 450000 | U93: =Computations!$J$17+Computations!$I$17*LN(Computations!D93) -> 450000 | V93: =Computations!$J$18+Computations!$I$18*Computations!D93+Computations!$H$18*Computations!D93^2 -> 450000 | W93: =Computations!$J$19+Computations!$I$19*Computations!D93+Computations!$H$19*Computations!D93^2+Computations!$G$19*Computations!D93^3 -> 450000
A94: 40 | B94: 0.02247072752 | C94: 0.02276257478 | D94: 0.02261665115 | E94: 0.003290969178 | F94: 0.0001895620003 | G94: 850.2190941 | H94: 450000 | I94: =G94-H94/User_entry!$E$18 -> -649.7809059 | J94: 0 | L94: =HLOOKUP(User_entry!$B$56,Computations!$N$54:$R$1054,Computations!A94+1,FALSE) -> 850.2190941 | M94: =HLOOKUP(User_entry!$E$56,Computations!$S$54:$W$1054,Computations!A94+1,FALSE) -> 450000 | N94: =Computations!$F$15+Computations!$E$15*D94 -> 850.2190941 | O94: =EXP(Computations!$F$16)*EXP(Computations!$E$16)^Computations!D94 -> 976.9665665 | P94: =Computations!$F$17+Computations!$E$17*LN(Computations!D94) -> 227.7290747 | Q94: =Computations!$F$18+Computations!$E$18*Computations!D94+Computations!$D$18*Computations!D94^2 -> 660.4559729 | R94: =Computations!$F$19+Computations!$E$19*Computations!D94+Computations!$D$19*Computations!D94^2+Computations!$C$19*Computations!D94^3 -> 660.4559729 | S94: =Computations!$J$15+Computations!$I$15*D94 -> 450000 | T94: =EXP(Computations!$J$16)*EXP(Computations!$I$16)^Computations!D94 -> 450000 | U94: =Computations!$J$17+Computations!$I$17*LN(Computations!D94) -> 450000 | V94: =Computations!$J$18+Computations!$I$18*Computations!D94+Computations!$H$18*Computations!D94^2 -> 450000 | W94: =Computations!$J$19+Computations!$I$19*Computations!D94+Computations!$H$19*Computations!D94^2+Computations!$G$19*Computations!D94^3 -> 450000
A95: 41 | B95: 0.02276257478 | C95: 0.02305442204 | D95: 0.02290849841 | E95: 0.003488951989 | F95: 0.000197982811 | G95: 854.0591896 | H95: 450000 | I95: =G95-H95/User_entry!$E$18 -> -645.9408104 | J95: 0 | L95: =HLOOKUP(User_entry!$B$56,Computations!$N$54:$R$1054,Computations!A95+1,FALSE) -> 854.0591896 | M95: =HLOOKUP(User_entry!$E$56,Computations!$S$54:$W$1054,Computations!A95+1,FALSE) -> 450000 | N95: =Computations!$F$15+Computations!$E$15*D95 -> 854.0591896 | O95: =EXP(Computations!$F$16)*EXP(Computations!$E$16)^Computations!D95 -> 978.9934918 | P95: =Computations!$F$17+Computations!$E$17*LN(Computations!D95) -> 244.0180807 | Q95: =Computations!$F$18+Computations!$E$18*Computations!D95+Computations!$D$18*Computations!D95^2 -> 666.3412874 | R95: =Computations!$F$19+Computations!$E$19*Computations!D95+Computations!$D$19*Computations!D95^2+Computations!$C$19*Computations!D95^3 -> 666.3412874 | S95: =Computations!$J$15+Computations!$I$15*D95 -> 450000 | T95: =EXP(Computations!$J$16)*EXP(Computations!$I$16)^Computations!D95 -> 450000 | U95: =Computations!$J$17+Computations!$I$17*LN(Computations!D95) -> 450000 | V95: =Computations!$J$18+Computations!$I$18*Computations!D95+Computations!$H$18*Computations!D95^2 -> 450000 | W95: =Computations!$J$19+Computations!$I$19*Computations!D95+Computations!$H$19*Computations!D95^2+Computations!$G$19*Computations!D95^3 -> 450000
A96: 42 | B96: 0.02305442204 | C96: 0.02334626929 | D96: 0.02320034566 | E96: 0.003695576987 | F96: 0.0002066249983 | G96: 857.8992851 | H96: 450000 | I96: =G96-H96/User_entry!$E$18 -> -642.1007149 | J96: 0 | L96: =HLOOKUP(User_entry!$B$56,Computations!$N$54:$R$1054,Computations!A96+1,FALSE) -> 857.8992851 | M96: =HLOOKUP(User_entry!$E$56,Computations!$S$54:$W$1054,Computations!A96+1,FALSE) -> 450000 | N96: =Computations!$F$15+Computations!$E$15*D96 -> 857.8992851 | O96: =EXP(Computations!$F$16)*EXP(Computations!$E$16)^Computations!D96 -> 981.0246224 | P96: =Computations!$F$17+Computations!$E$17*LN(Computations!D96) -> 260.1008776 | Q96: =Computations!$F$18+Computations!$E$18*Computations!D96+Computations!$D$18*Computations!D96^2 -> 672.2202927 | R96: =Computations!$F$19+Computations!$E$19*Computations!D96+Computations!$D$19*Computations!D96^2+Computations!$C$19*Computations!D96^3 -> 672.2202927 | S96: =Computations!$J$15+Computations!$I$15*D96 -> 450000 | T96: =EXP(Computations!$J$16)*EXP(Computations!$I$16)^Computations!D96 -> 450000 | U96: =Computations!$J$17+Computations!$I$17*LN(Computations!D96) -> 450000 | V96: =Computations!$J$18+Computations!$I$18*Computations!D96+Computations!$H$18*Computations!D96^2 -> 450000 | W96: =Computations!$J$19+Computations!$I$19*Computations!D96+Computations!$H$19*Computations!D96^2+Computations!$G$19*Computations!D96^3 -> 450000
A97: 43 | B97: 0.02334626929 | C97: 0.02363811655 | D97: 0.02349219292 | E97: 0.003911066126 | F97: 0.0002154891388 | G97: 861.7393805 | H97: 450000 | I97: =G97-H97/User_entry!$E$18 -> -638.2606195 | J97: 0 | L97: =HLOOKUP(User_entry!$B$56,Computations!$N$54:$R$1054,Computations!A97+1,FALSE) -> 861.7393805 | M97: =HLOOKUP(User_entry!$E$56,Computations!$S$54:$W$1054,Computations!A97+1,FALSE) -> 450000 | N97: =Computations!$F$15+Computations!$E$15*D97 -> 861.7393805 | O97: =EXP(Computations!$F$16)*EXP(Computations!$E$16)^Computations!D97 -> 983.059967 | P97: =Computations!$F$17+Computations!$E$17*LN(Computations!D97) -> 275.9826213 | Q97: =Computations!$F$18+Computations!$E$18*Computations!D97+Computations!$D$18*Computations!D97^2 -> 678.0929887 | R97: =Computations!$F$19+Computations!$E$19*Computations!D97+Computations!$D$19*Computations!D97^2+Computations!$C$19*Computations!D97^3 -> 678.0929887 | S97: =Computations!$J$15+Computations!$I$15*D97 -> 450000 | T97: =EXP(Computations!$J$16)*EXP(Computations!$I$16)^Computations!D97 -> 450000 | U97: =Computations!$J$17+Computations!$I$17*LN(Computations!D97) -> 450000 | V97: =Computations!$J$18+Computations!$I$18*Computations!D97+Computations!$H$18*Computations!D97^2 -> 450000 | W97: =Computations!$J$19+Computations!$I$19*Computations!D97+Computations!$H$19*Computations!D97^2+Computations!$G$19*Computations!D97^3 -> 450000
A98: 44 | B98: 0.02363811655 | C98: 0.02392996381 | D98: 0.02378404018 | E98: 0.00413564181 | F98: 0.0002245756837 | G98: 865.579476 | H98: 450000 | I98: =G98-H98/User_entry!$E$18 -> -634.420524 | J98: 0 | L98: =HLOOKUP(User_entry!$B$56,Computations!$N$54:$R$1054,Computations!A98+1,FALSE) -> 865.579476 | M98: =HLOOKUP(User_entry!$E$56,Computations!$S$54:$W$1054,Computations!A98+1,FALSE) -> 450000 | N98: =Computations!$F$15+Computations!$E$15*D98 -> 865.579476 | O98: =EXP(Computations!$F$16)*EXP(Computations!$E$16)^Computations!D98 -> 985.0995344 | P98: =Computations!$F$17+Computations!$E$17*LN(Computations!D98) -> 291.6682766 | Q98: =Computations!$F$18+Computations!$E$18*Computations!D98+Computations!$D$18*Computations!D98^2 -> 683.9593755 | R98: =Computations!$F$19+Computations!$E$19*Computations!D98+Computations!$D$19*Computations!D98^2+Computations!$C$19*Computations!D98^3 -> 683.9593755 | S98: =Computations!$J$15+Computations!$I$15*D98 -> 450000 | T98: =EXP(Computations!$J$16)*EXP(Computations!$I$16)^Computations!D98 -> 450000 | U98: =Computations!$J$17+Computations!$I$17*LN(Computations!D98) -> 450000 | V98: =Computations!$J$18+Computations!$I$18*Computations!D98+Computations!$H$18*Computations!D98^2 -> 450000 | W98: =Computations!$J$19+Computations!$I$19*Computations!D98+Computations!$H$19*Computations!D98^2+Computations!$G$19*Computations!D98^3 -> 450000
A99: 45 | B99: 0.02392996381 | C99: 0.02422181106 | D99: 0.02407588743 | E99: 0.004369526769 | F99: 0.0002338849593 | G99: 869.4195715 | H99: 450000 | I99: =G99-H99/User_entry!$E$18 -> -630.5804285 | J99: 0 | L99: =HLOOKUP(User_entry!$B$56,Computations!$N$54:$R$1054,Computations!A99+1,FALSE) -> 869.4195715 | M99: =HLOOKUP(User_entry!$E$56,Computations!$S$54:$W$1054,Computations!A99+1,FALSE) -> 450000 | N99: =Computations!$F$15+Computations!$E$15*D99 -> 869.4195715 | O99: =EXP(Computations!$F$16)*EXP(Computations!$E$16)^Computations!D99 -> 987.1433333 | P99: =Computations!$F$17+Computations!$E$17*LN(Computations!D99) -> 307.1626265 | Q99: =Computations!$F$18+Computations!$E$18*Computations!D99+Computations!$D$18*Computations!D99^2 -> 689.819453 | R99: =Computations!$F$19+Computations!$E$19*Computations!D99+Computations!$D$19*Computations!D99^2+Computations!$C$19*Computations!D99^3 -> 689.819453 | S99: =Computations!$J$15+Computations!$I$15*D99 -> 450000 | T99: =EXP(Computations!$J$16)*EXP(Computations!$I$16)^Computations!D99 -> 450000 | U99: =Computations!$J$17+Computations!$I$17*LN(Computations!D99) -> 450000 | V99: =Computations!$J$18+Computations!$I$18*Computations!D99+Computations!$H$18*Computations!D99^2 -> 450000 | W99: =Computations!$J$19+Computations!$I$19*Computations!D99+Computations!$H$19*Computations!D99^2+Computations!$G$19*Computations!D99^3 -> 450000
A100: 46 | B100: 0.02422181106 | C100: 0.02451365832 | D100: 0.02436773469 | E100: 0.004612943937 | F100: 0.0002434171677 | G100: 873.259667 | H100: 450000 | I100: =G100-H100/User_entry!$E$18 -> -626.740333 | J100: 0 | L100: =HLOOKUP(User_entry!$B$56,Computations!$N$54:$R$1054,Computations!A100+1,FALSE) -> 873.259667 | M100: =HLOOKUP(User_entry!$E$56,Computations!$S$54:$W$1054,Computations!A100+1,FALSE) -> 450000 | N100: =Computations!$F$15+Computations!$E$15*D100 -> 873.259667 | O100: =EXP(Computations!$F$16)*EXP(Computations!$E$16)^Computations!D100 -> 989.1913725 | P100: =Computations!$F$17+Computations!$E$17*LN(Computations!D100) -> 322.4702813 | Q100: =Computations!$F$18+Computations!$E$18*Computations!D100+Computations!$D$18*Computations!D100^2 -> 695.6732213 | R100: =Computations!$F$19+Computations!$E$19*Computations!D100+Computations!$D$19*Computations!D100^2+Computations!$C$19*Computations!D100^3 -> 695.6732213 | S100: =Computations!$J$15+Computations!$I$15*D100 -> 450000 | T100: =EXP(Computations!$J$16)*EXP(Computations!$I$16)^Computations!D100 -> 450000 | U100: =Computations!$J$17+Computations!$I$17*LN(Computations!D100) -> 450000 | V100: =Computations!$J$18+Computations!$I$18*Computations!D100+Computations!$H$18*Computations!D100^2 -> 450000 | W100: =Computations!$J$19+Computations!$I$19*Computations!D100+Computations!$H$19*Computations!D100^2+Computations!$G$19*Computations!D100^3 -> 450000
A101: 47 | B101: 0.02451365832 | C101: 0.02480550558 | D101: 0.02465958195 | E101: 0.004866116324 | F101: 0.0002531723873 | G101: 877.0997625 | H101: 450000 | I101: =G101-H101/User_entry!$E$18 -> -622.9002375 | J101: 0 | L101: =HLOOKUP(User_entry!$B$56,Computations!$N$54:$R$1054,Computations!A101+1,FALSE) -> 877.0997625 | M101: =HLOOKUP(User_entry!$E$56,Computations!$S$54:$W$1054,Computations!A101+1,FALSE) -> 450000 | N101: =Computations!$F$15+Computations!$E$15*D101 -> 877.0997625 | O101: =EXP(Computations!$F$16)*EXP(Computations!$E$16)^Computations!D101 -> 991.2436607 | P101: =Computations!$F$17+Computations!$E$17*LN(Computations!D101) -> 337.5956866 | Q101: =Computations!$F$18+Computations!$E$18*Computations!D101+Computations!$D$18*Computations!D101^2 -> 701.5206803 | R101: =Computations!$F$19+Computations!$E$19*Computations!D101+Computations!$D$19*Computations!D101^2+Computations!$C$19*Computations!D101^3 -> 701.5206803 | S101: =Computations!$J$15+Computations!$I$15*D101 -> 450000 | T101: =EXP(Computations!$J$16)*EXP(Computations!$I$16)^Computations!D101 -> 450000 | U101: =Computations!$J$17+Computations!$I$17*LN(Computations!D101) -> 450000 | V101: =Computations!$J$18+Computations!$I$18*Computations!D101+Computations!$H$18*Computations!D101^2 -> 450000 | W101: =Computations!$J$19+Computations!$I$19*Computations!D101+Computations!$H$19*Computations!D101^2+Computations!$G$19*Computations!D101^3 -> 450000
A102: 48 | B102: 0.02480550558 | C102: 0.02509735283 | D102: 0.02495142921 | E102: 0.005129266898 | F102: 0.0002631505737 | G102: 880.939858 | H102: 450000 | I102: =G102-H102/User_entry!$E$18 -> -619.060142 | J102: 0 | L102: =HLOOKUP(User_entry!$B$56,Computations!$N$54:$R$1054,Computations!A102+1,FALSE) -> 880.939858 | M102: =HLOOKUP(User_entry!$E$56,Computations!$S$54:$W$1054,Computations!A102+1,FALSE) -> 450000 | N102: =Computations!$F$15+Computations!$E$15*D102 -> 880.939858 | O102: =EXP(Computations!$F$16)*EXP(Computations!$E$16)^Computations!D102 -> 993.3002069 | P102: =Computations!$F$17+Computations!$E$17*LN(Computations!D102) -> 352.543131 | Q102: =Computations!$F$18+Computations!$E$18*Computations!D102+Computations!$D$18*Computations!D102^2 -> 707.3618301 | R102: =Computations!$F$19+Computations!$E$19*Computations!D102+Computations!$D$19*Computations!D102^2+Computations!$C$19*Computations!D102^3 -> 707.3618301 | S102: =Computations!$J$15+Computations!$I$15*D102 -> 450000 | T102: =EXP(Computations!$J$16)*EXP(Computations!$I$16)^Computations!D102 -> 450000 | U102: =Computations!$J$17+Computations!$I$17*LN(Computations!D102) -> 450000 | V102: =Computations!$J$18+Computations!$I$18*Computations!D102+Computations!$H$18*Computations!D102^2 -> 450000 | W102: =Computations!$J$19+Computations!$I$19*Computations!D102+Computations!$H$19*Computations!D102^2+Computations!$G$19*Computations!D102^3 -> 450000
A103: 49 | B103: 0.02509735283 | C103: 0.02538920009 | D103: 0.02524327646 | E103: 0.005402618459 | F103: 0.000273351561 | G103: 884.7799535 | H103: 450000 | I103: =G103-H103/User_entry!$E$18 -> -615.2200465 | J103: 0 | L103: =HLOOKUP(User_entry!$B$56,Computations!$N$54:$R$1054,Computations!A103+1,FALSE) -> 884.7799535 | M103: =HLOOKUP(User_entry!$E$56,Computations!$S$54:$W$1054,Computations!A103+1,FALSE) -> 450000 | N103: =Computations!$F$15+Computations!$E$15*D103 -> 884.7799535 | O103: =EXP(Computations!$F$16)*EXP(Computations!$E$16)^Computations!D103 -> 995.3610198 | P103: =Computations!$F$17+Computations!$E$17*LN(Computations!D103) -> 367.3167534 | Q103: =Computations!$F$18+Computations!$E$18*Computations!D103+Computations!$D$18*Computations!D103^2 -> 713.1966706 | R103: =Computations!$F$19+Computations!$E$19*Computations!D103+Computations!$D$19*Computations!D103^2+Computations!$C$19*Computations!D103^3 -> 713.1966706 | S103: =Computations!$J$15+Computations!$I$15*D103 -> 450000 | T103: =EXP(Computations!$J$16)*EXP(Computations!$I$16)^Computations!D103 -> 450000 | U103: =Computations!$J$17+Computations!$I$17*LN(Computations!D103) -> 450000 | V103: =Computations!$J$18+Computations!$I$18*Computations!D103+Computations!$H$18*Computations!D103^2 -> 450000 | W103: =Computations!$J$19+Computations!$I$19*Computations!D103+Computations!$H$19*Computations!D103^2+Computations!$G$19*Computations!D103^3 -> 450000
A104: 50 | B104: 0.02538920009 | C104: 0.02568104735 | D104: 0.02553512372 | E104: 0.005686393521 | F104: 0.000283775062 | G104: 888.6200489 | H104: 450000 | I104: =G104-H104/User_entry!$E$18 -> -611.3799511 | J104: 0 | L104: =HLOOKUP(User_entry!$B$56,Computations!$N$54:$R$1054,Computations!A104+1,FALSE) -> 888.6200489 | M104: =HLOOKUP(User_entry!$E$56,Computations!$S$54:$W$1054,Computations!A104+1,FALSE) -> 450000 | N104: =Computations!$F$15+Computations!$E$15*D104 -> 888.6200489 | O104: =EXP(Computations!$F$16)*EXP(Computations!$E$16)^Computations!D104 -> 997.4261083 | P104: =Computations!$F$17+Computations!$E$17*LN(Computations!D104) -> 381.9205502 | Q104: =Computations!$F$18+Computations!$E$18*Computations!D104+Computations!$D$18*Computations!D104^2 -> 719.0252019 | R104: =Computations!$F$19+Computations!$E$19*Computations!D104+Computations!$D$19*Computations!D104^2+Computations!$C$19*Computations!D104^3 -> 719.0252019 | S104: =Computations!$J$15+Computations!$I$15*D104 -> 450000 | T104: =EXP(Computations!$J$16)*EXP(Computations!$I$16)^Computations!D104 -> 450000 | U104: =Computations!$J$17+Computations!$I$17*LN(Computations!D104) -> 450000 | V104: =Computations!$J$18+Computations!$I$18*Computations!D104+Computations!$H$18*Computations!D104^2 -> 450000 | W104: =Computations!$J$19+Computations!$I$19*Computations!D104+Computations!$H$19*Computations!D104^2+Computations!$G$19*Computations!D104^3 -> 450000
A105: 51 | B105: 0.02568104735 | C105: 0.02597289461 | D105: 0.02582697098 | E105: 0.005980814191 | F105: 0.00029442067 | G105: 892.4601444 | H105: 450000 | I105: =G105-H105/User_entry!$E$18 -> -607.5398556 | J105: 0 | L105: =HLOOKUP(User_entry!$B$56,Computations!$N$54:$R$1054,Computations!A105+1,FALSE) -> 892.4601444 | M105: =HLOOKUP(User_entry!$E$56,Computations!$S$54:$W$1054,Computations!A105+1,FALSE) -> 450000 | N105: =Computations!$F$15+Computations!$E$15*D105 -> 892.4601444 | O105: =EXP(Computations!$F$16)*EXP(Computations!$E$16)^Computations!D105 -> 999.4954813 | P105: =Computations!$F$17+Computations!$E$17*LN(Computations!D105) -> 396.3583815 | Q105: =Computations!$F$18+Computations!$E$18*Computations!D105+Computations!$D$18*Computations!D105^2 -> 724.8474239 | R105: =Computations!$F$19+Computations!$E$19*Computations!D105+Computations!$D$19*Computations!D105^2+Computations!$C$19*Computations!D105^3 -> 724.8474239 | S105: =Computations!$J$15+Computations!$I$15*D105 -> 450000 | T105: =EXP(Computations!$J$16)*EXP(Computations!$I$16)^Computations!D105 -> 450000 | U105: =Computations!$J$17+Computations!$I$17*LN(Computations!D105) -> 450000 | V105: =Computations!$J$18+Computations!$I$18*Computations!D105+Computations!$H$18*Computations!D105^2 -> 450000 | W105: =Computations!$J$19+Computations!$I$19*Computations!D105+Computations!$H$19*Computations!D105^2+Computations!$G$19*Computations!D105^3 -> 450000
A106: 52 | B106: 0.02597289461 | C106: 0.02626474186 | D106: 0.02611881823 | E106: 0.00628610205 | F106: 0.0003052878595 | G106: 896.3002399 | H106: 450000 | I106: =G106-H106/User_entry!$E$18 -> -603.6997601 | J106: 0 | L106: =HLOOKUP(User_entry!$B$56,Computations!$N$54:$R$1054,Computations!A106+1,FALSE) -> 896.3002399 | M106: =HLOOKUP(User_entry!$E$56,Computations!$S$54:$W$1054,Computations!A106+1,FALSE) -> 450000 | N106: =Computations!$F$15+Computations!$E$15*D106 -> 896.3002399 | O106: =EXP(Computations!$F$16)*EXP(Computations!$E$16)^Computations!D106 -> 1001.569148 | P106: =Computations!$F$17+Computations!$E$17*LN(Computations!D106) -> 410.633977 | Q106: =Computations!$F$18+Computations!$E$18*Computations!D106+Computations!$D$18*Computations!D106^2 -> 730.6633367 | R106: =Computations!$F$19+Computations!$E$19*Computations!D106+Computations!$D$19*Computations!D106^2+Computations!$C$19*Computations!D106^3 -> 730.6633367 | S106: =Computations!$J$15+Computations!$I$15*D106 -> 450000 | T106: =EXP(Computations!$J$16)*EXP(Computations!$I$16)^Computations!D106 -> 450000 | U106: =Computations!$J$17+Computations!$I$17*LN(Computations!D106) -> 450000 | V106: =Computations!$J$18+Computations!$I$18*Computations!D106+Computations!$H$18*Computations!D106^2 -> 450000 | W106: =Computations!$J$19+Computations!$I$19*Computations!D106+Computations!$H$19*Computations!D106^2+Computations!$G$19*Computations!D106^3 -> 450000
A107: 53 | B107: 0.02626474186 | C107: 0.02655658912 | D107: 0.02641066549 | E107: 0.006602478038 | F107: 0.0003163759878 | G107: 900.1403354 | H107: 450000 | I107: =G107-H107/User_entry!$E$18 -> -599.8596646 | J107: 0 | L107: =HLOOKUP(User_entry!$B$56,Computations!$N$54:$R$1054,Computations!A107+1,FALSE) -> 900.1403354 | M107: =HLOOKUP(User_entry!$E$56,Computations!$S$54:$W$1054,Computations!A107+1,FALSE) -> 450000 | N107: =Computations!$F$15+Computations!$E$15*D107 -> 900.1403354 | O107: =EXP(Computations!$F$16)*EXP(Computations!$E$16)^Computations!D107 -> 1003.647116 | P107: =Computations!$F$17+Computations!$E$17*LN(Computations!D107) -> 424.7509424 | Q107: =Computations!$F$18+Computations!$E$18*Computations!D107+Computations!$D$18*Computations!D107^2 -> 736.4729403 | R107: =Computations!$F$19+Computations!$E$19*Computations!D107+Computations!$D$19*Computations!D107^2+Computations!$C$19*Computations!D107^3 -> 736.4729403 | S107: =Computations!$J$15+Computations!$I$15*D107 -> 450000 | T107: =EXP(Computations!$J$16)*EXP(Computations!$I$16)^Computations!D107 -> 450000 | U107: =Computations!$J$17+Computations!$I$17*LN(Computations!D107) -> 450000 | V107: =Computations!$J$18+Computations!$I$18*Computations!D107+Computations!$H$18*Computations!D107^2 -> 450000 | W107: =Computations!$J$19+Computations!$I$19*Computations!D107+Computations!$H$19*Computations!D107^2+Computations!$G$19*Computations!D107^3 -> 450000
A108: 54 | B108: 0.02655658912 | C108: 0.02684843638 | D108: 0.02670251275 | E108: 0.006930162334 | F108: 0.0003276842959 | G108: 903.9804309 | H108: 450000 | I108: =G108-H108/User_entry!$E$18 -> -596.0195691 | J108: 0 | L108: =HLOOKUP(User_entry!$B$56,Computations!$N$54:$R$1054,Computations!A108+1,FALSE) -> 903.9804309 | M108: =HLOOKUP(User_entry!$E$56,Computations!$S$54:$W$1054,Computations!A108+1,FALSE) -> 450000 | N108: =Computations!$F$15+Computations!$E$15*D108 -> 903.9804309 | O108: =EXP(Computations!$F$16)*EXP(Computations!$E$16)^Computations!D108 -> 1005.729396 | P108: =Computations!$F$17+Computations!$E$17*LN(Computations!D108) -> 438.7127644 | Q108: =Computations!$F$18+Computations!$E$18*Computations!D108+Computations!$D$18*Computations!D108^2 -> 742.2762346 | R108: =Computations!$F$19+Computations!$E$19*Computations!D108+Computations!$D$19*Computations!D108^2+Computations!$C$19*Computations!D108^3 -> 742.2762346 | S108: =Computations!$J$15+Computations!$I$15*D108 -> 450000 | T108: =EXP(Computations!$J$16)*EXP(Computations!$I$16)^Computations!D108 -> 450000 | U108: =Computations!$J$17+Computations!$I$17*LN(Computations!D108) -> 450000 | V108: =Computations!$J$18+Computations!$I$18*Computations!D108+Computations!$H$18*Computations!D108^2 -> 450000 | W108: =Computations!$J$19+Computations!$I$19*Computations!D108+Computations!$H$19*Computations!D108^2+Computations!$G$19*Computations!D108^3 -> 450000
A109: 55 | B109: 0.02684843638 | C109: 0.02714028363 | D109: 0.02699436 | E109: 0.007269374244 | F109: 0.0003392119103 | G109: 907.8205264 | H109: 450000 | I109: =G109-H109/User_entry!$E$18 -> -592.1794736 | J109: 0 | L109: =HLOOKUP(User_entry!$B$56,Computations!$N$54:$R$1054,Computations!A109+1,FALSE) -> 907.8205264 | M109: =HLOOKUP(User_entry!$E$56,Computations!$S$54:$W$1054,Computations!A109+1,FALSE) -> 450000 | N109: =Computations!$F$15+Computations!$E$15*D109 -> 907.8205264 | O109: =EXP(Computations!$F$16)*EXP(Computations!$E$16)^Computations!D109 -> 1007.815996 | P109: =Computations!$F$17+Computations!$E$17*LN(Computations!D109) -> 452.5228158 | Q109: =Computations!$F$18+Computations!$E$18*Computations!D109+Computations!$D$18*Computations!D109^2 -> 748.0732196 | R109: =Computations!$F$19+Computations!$E$19*Computations!D109+Computations!$D$19*Computations!D109^2+Computations!$C$19*Computations!D109^3 -> 748.0732196 | S109: =Computations!$J$15+Computations!$I$15*D109 -> 450000 | T109: =EXP(Computations!$J$16)*EXP(Computations!$I$16)^Computations!D109 -> 450000 | U109: =Computations!$J$17+Computations!$I$17*LN(Computations!D109) -> 450000 | V109: =Computations!$J$18+Computations!$I$18*Computations!D109+Computations!$H$18*Computations!D109^2 -> 450000 | W109: =Computations!$J$19+Computations!$I$19*Computations!D109+Computations!$H$19*Computations!D109^2+Computations!$G$19*Computations!D109^3 -> 450000
A110: 56 | B110: 0.02714028363 | C110: 0.02743213089 | D110: 0.02728620726 | E110: 0.007620332088 | F110: 0.0003509578441 | G110: 911.6606219 | H110: 450000 | I110: =G110-H110/User_entry!$E$18 -> -588.3393781 | J110: 0 | L110: =HLOOKUP(User_entry!$B$56,Computations!$N$54:$R$1054,Computations!A110+1,FALSE) -> 911.6606219 | M110: =HLOOKUP(User_entry!$E$56,Computations!$S$54:$W$1054,Computations!A110+1,FALSE) -> 450000 | N110: =Computations!$F$15+Computations!$E$15*D110 -> 911.6606219 | O110: =EXP(Computations!$F$16)*EXP(Computations!$E$16)^Computations!D110 -> 1009.906925 | P110: =Computations!$F$17+Computations!$E$17*LN(Computations!D110) -> 466.184361 | Q110: =Computations!$F$18+Computations!$E$18*Computations!D110+Computations!$D$18*Computations!D110^2 -> 753.8638955 | R110: =Computations!$F$19+Computations!$E$19*Computations!D110+Computations!$D$19*Computations!D110^2+Computations!$C$19*Computations!D110^3 -> 753.8638955 | S110: =Computations!$J$15+Computations!$I$15*D110 -> 450000 | T110: =EXP(Computations!$J$16)*EXP(Computations!$I$16)^Computations!D110 -> 450000 | U110: =Computations!$J$17+Computations!$I$17*LN(Computations!D110) -> 450000 | V110: =Computations!$J$18+Computations!$I$18*Computations!D110+Computations!$H$18*Computations!D110^2 -> 450000 | W110: =Computations!$J$19+Computations!$I$19*Computations!D110+Computations!$H$19*Computations!D110^2+Computations!$G$19*Computations!D110^3 -> 450000
A111: 57 | B111: 0.02743213089 | C111: 0.02772397815 | D111: 0.02757805452 | E111: 0.007983253087 | F111: 0.0003629209988 | G111: 915.5007173 | H111: 450000 | I111: =G111-H111/User_entry!$E$18 -> -584.4992827 | J111: 0 | L111: =HLOOKUP(User_entry!$B$56,Computations!$N$54:$R$1054,Computations!A111+1,FALSE) -> 915.5007173 | M111: =HLOOKUP(User_entry!$E$56,Computations!$S$54:$W$1054,Computations!A111+1,FALSE) -> 450000 | N111: =Computations!$F$15+Computations!$E$15*D111 -> 915.5007173 | O111: =EXP(Computations!$F$16)*EXP(Computations!$E$16)^Computations!D111 -> 1012.002192 | P111: =Computations!$F$17+Computations!$E$17*LN(Computations!D111) -> 479.7005598 | Q111: =Computations!$F$18+Computations!$E$18*Computations!D111+Computations!$D$18*Computations!D111^2 -> 759.648262 | R111: =Computations!$F$19+Computations!$E$19*Computations!D111+Computations!$D$19*Computations!D111^2+Computations!$C$19*Computations!D111^3 -> 759.648262 | S111: =Computations!$J$15+Computations!$I$15*D111 -> 450000 | T111: =EXP(Computations!$J$16)*EXP(Computations!$I$16)^Computations!D111 -> 450000 | U111: =Computations!$J$17+Computations!$I$17*LN(Computations!D111) -> 450000 | V111: =Computations!$J$18+Computations!$I$18*Computations!D111+Computations!$H$18*Computations!D111^2 -> 450000 | W111: =Computations!$J$19+Computations!$I$19*Computations!D111+Computations!$H$19*Computations!D111^2+Computations!$G$19*Computations!D111^3 -> 450000
A112: 58 | B112: 0.02772397815 | C112: 0.0280158254 | D112: 0.02786990178 | E112: 0.008358353253 | F112: 0.0003751001656 | G112: 919.3408128 | H112: 450000 | I112: =G112-H112/User_entry!$E$18 -> -580.6591872 | J112: 0 | L112: =HLOOKUP(User_entry!$B$56,Computations!$N$54:$R$1054,Computations!A112+1,FALSE) -> 919.3408128 | M112: =HLOOKUP(User_entry!$E$56,Computations!$S$54:$W$1054,Computations!A112+1,FALSE) -> 450000 | N112: =Computations!$F$15+Computations!$E$15*D112 -> 919.3408128 | O112: =EXP(Computations!$F$16)*EXP(Computations!$E$16)^Computations!D112 -> 1014.101806 | P112: =Computations!$F$17+Computations!$E$17*LN(Computations!D112) -> 493.0744724 | Q112: =Computations!$F$18+Computations!$E$18*Computations!D112+Computations!$D$18*Computations!D112^2 -> 765.4263193 | R112: =Computations!$F$19+Computations!$E$19*Computations!D112+Computations!$D$19*Computations!D112^2+Computations!$C$19*Computations!D112^3 -> 765.4263193 | S112: =Computations!$J$15+Computations!$I$15*D112 -> 450000 | T112: =EXP(Computations!$J$16)*EXP(Computations!$I$16)^Computations!D112 -> 450000 | U112: =Computations!$J$17+Computations!$I$17*LN(Computations!D112) -> 450000 | V112: =Computations!$J$18+Computations!$I$18*Computations!D112+Computations!$H$18*Computations!D112^2 -> 450000 | W112: =Computations!$J$19+Computations!$I$19*Computations!D112+Computations!$H$19*Computations!D112^2+Computations!$G$19*Computations!D112^3 -> 450000
A113: 59 | B113: 0.0280158254 | C113: 0.02830767266 | D113: 0.02816174903 | E113: 0.00874584728 | F113: 0.0003874940273 | G113: 923.1809083 | H113: 450000 | I113: =G113-H113/User_entry!$E$18 -> -576.8190917 | J113: 0 | L113: =HLOOKUP(User_entry!$B$56,Computations!$N$54:$R$1054,Computations!A113+1,FALSE) -> 923.1809083 | M113: =HLOOKUP(User_entry!$E$56,Computations!$S$54:$W$1054,Computations!A113+1,FALSE) -> 450000 | N113: =Computations!$F$15+Computations!$E$15*D113 -> 923.1809083 | O113: =EXP(Computations!$F$16)*EXP(Computations!$E$16)^Computations!D113 -> 1016.205777 | P113: =Computations!$F$17+Computations!$E$17*LN(Computations!D113) -> 506.3090634 | Q113: =Computations!$F$18+Computations!$E$18*Computations!D113+Computations!$D$18*Computations!D113^2 -> 771.1980674 | R113: =Computations!$F$19+Computations!$E$19*Computations!D113+Computations!$D$19*Computations!D113^2+Computations!$C$19*Computations!D113^3 -> 771.1980674 | S113: =Computations!$J$15+Computations!$I$15*D113 -> 450000 | T113: =EXP(Computations!$J$16)*EXP(Computations!$I$16)^Computations!D113 -> 450000 | U113: =Computations!$J$17+Computations!$I$17*LN(Computations!D113) -> 450000 | V113: =Computations!$J$18+Computations!$I$18*Computations!D113+Computations!$H$18*Computations!D113^2 -> 450000 | W113: =Computations!$J$19+Computations!$I$19*Computations!D113+Computations!$H$19*Computations!D113^2+Computations!$G$19*Computations!D113^3 -> 450000
A114: 60 | B114: 0.02830767266 | C114: 0.02859951992 | D114: 0.02845359629 | E114: 0.00914594844 | F114: 0.0004001011597 | G114: 927.0210038 | H114: 450000 | I114: =G114-H114/User_entry!$E$18 -> -572.9789962 | J114: 0 | L114: =HLOOKUP(User_entry!$B$56,Computations!$N$54:$R$1054,Computations!A114+1,FALSE) -> 927.0210038 | M114: =HLOOKUP(User_entry!$E$56,Computations!$S$54:$W$1054,Computations!A114+1,FALSE) -> 450000 | N114: =Computations!$F$15+Computations!$E$15*D114 -> 927.0210038 | O114: =EXP(Computations!$F$16)*EXP(Computations!$E$16)^Computations!D114 -> 1018.314112 | P114: =Computations!$F$17+Computations!$E$17*LN(Computations!D114) -> 519.4072056 | Q114: =Computations!$F$18+Computations!$E$18*Computations!D114+Computations!$D$18*Computations!D114^2 -> 776.9635062 | R114: =Computations!$F$19+Computations!$E$19*Computations!D114+Computations!$D$19*Computations!D114^2+Computations!$C$19*Computations!D114^3 -> 776.9635062 | S114: =Computations!$J$15+Computations!$I$15*D114 -> 450000 | T114: =EXP(Computations!$J$16)*EXP(Computations!$I$16)^Computations!D114 -> 450000 | U114: =Computations!$J$17+Computations!$I$17*LN(Computations!D114) -> 450000 | V114: =Computations!$J$18+Computations!$I$18*Computations!D114+Computations!$H$18*Computations!D114^2 -> 450000 | W114: =Computations!$J$19+Computations!$I$19*Computations!D114+Computations!$H$19*Computations!D114^2+Computations!$G$19*Computations!D114^3 -> 450000
A115: 61 | B115: 0.02859951992 | C115: 0.02889136717 | D115: 0.02874544355 | E115: 0.009558868474 | F115: 0.0004129200337 | G115: 930.8610993 | H115: 450000 | I115: =G115-H115/User_entry!$E$18 -> -569.1389007 | J115: 0 | L115: =HLOOKUP(User_entry!$B$56,Computations!$N$54:$R$1054,Computations!A115+1,FALSE) -> 930.8610993 | M115: =HLOOKUP(User_entry!$E$56,Computations!$S$54:$W$1054,Computations!A115+1,FALSE) -> 450000 | N115: =Computations!$F$15+Computations!$E$15*D115 -> 930.8610993 | O115: =EXP(Computations!$F$16)*EXP(Computations!$E$16)^Computations!D115 -> 1020.426822 | P115: =Computations!$F$17+Computations!$E$17*LN(Computations!D115) -> 532.3716838 | Q115: =Computations!$F$18+Computations!$E$18*Computations!D115+Computations!$D$18*Computations!D115^2 -> 782.7226358 | R115: =Computations!$F$19+Computations!$E$19*Computations!D115+Computations!$D$19*Computations!D115^2+Computations!$C$19*Computations!D115^3 -> 782.7226358 | S115: =Computations!$J$15+Computations!$I$15*D115 -> 450000 | T115: =EXP(Computations!$J$16)*EXP(Computations!$I$16)^Computations!D115 -> 450000 | U115: =Computations!$J$17+Computations!$I$17*LN(Computations!D115) -> 450000 | V115: =Computations!$J$18+Computations!$I$18*Computations!D115+Computations!$H$18*Computations!D115^2 -> 450000 | W115: =Computations!$J$19+Computations!$I$19*Computations!D115+Computations!$H$19*Computations!D115^2+Computations!$G$19*Computations!D115^3 -> 450000
A116: 62 | B116: 0.02889136717 | C116: 0.02918321443 | D116: 0.0290372908 | E116: 0.00998481749 | F116: 0.0004259490167 | G116: 934.7011948 | H116: 450000 | I116: =G116-H116/User_entry!$E$18 -> -565.2988052 | J116: 0 | L116: =HLOOKUP(User_entry!$B$56,Computations!$N$54:$R$1054,Computations!A116+1,FALSE) -> 934.7011948 | M116: =HLOOKUP(User_entry!$E$56,Computations!$S$54:$W$1054,Computations!A116+1,FALSE) -> 450000 | N116: =Computations!$F$15+Computations!$E$15*D116 -> 934.7011948 | O116: =EXP(Computations!$F$16)*EXP(Computations!$E$16)^Computations!D116 -> 1022.543914 | P116: =Computations!$F$17+Computations!$E$17*LN(Computations!D116) -> 545.2051987 | Q116: =Computations!$F$18+Computations!$E$18*Computations!D116+Computations!$D$18*Computations!D116^2 -> 788.4754562 | R116: =Computations!$F$19+Computations!$E$19*Computations!D116+Computations!$D$19*Computations!D116^2+Computations!$C$19*Computations!D116^3 -> 788.4754562 | S116: =Computations!$J$15+Computations!$I$15*D116 -> 450000 | T116: =EXP(Computations!$J$16)*EXP(Computations!$I$16)^Computations!D116 -> 450000 | U116: =Computations!$J$17+Computations!$I$17*LN(Computations!D116) -> 450000 | V116: =Computations!$J$18+Computations!$I$18*Computations!D116+Computations!$H$18*Computations!D116^2 -> 450000 | W116: =Computations!$J$19+Computations!$I$19*Computations!D116+Computations!$H$19*Computations!D116^2+Computations!$G$19*Computations!D116^3 -> 450000
A117: 63 | B117: 0.02918321443 | C117: 0.02947506169 | D117: 0.02932913806 | E117: 0.01042400386 | F117: 0.0004391863746 | G117: 938.5412903 | H117: 450000 | I117: =G117-H117/User_entry!$E$18 -> -561.4587097 | J117: 0 | L117: =HLOOKUP(User_entry!$B$56,Computations!$N$54:$R$1054,Computations!A117+1,FALSE) -> 938.5412903 | M117: =HLOOKUP(User_entry!$E$56,Computations!$S$54:$W$1054,Computations!A117+1,FALSE) -> 450000 | N117: =Computations!$F$15+Computations!$E$15*D117 -> 938.5412903 | O117: =EXP(Computations!$F$16)*EXP(Computations!$E$16)^Computations!D117 -> 1024.6654 | P117: =Computations!$F$17+Computations!$E$17*LN(Computations!D117) -> 557.9103696 | Q117: =Computations!$F$18+Computations!$E$18*Computations!D117+Computations!$D$18*Computations!D117^2 -> 794.2219673 | R117: =Computations!$F$19+Computations!$E$19*Computations!D117+Computations!$D$19*Computations!D117^2+Computations!$C$19*Computations!D117^3 -> 794.2219673 | S117: =Computations!$J$15+Computations!$I$15*D117 -> 450000 | T117: =EXP(Computations!$J$16)*EXP(Computations!$I$16)^Computations!D117 -> 450000 | U117: =Computations!$J$17+Computations!$I$17*LN(Computations!D117) -> 450000 | V117: =Computations!$J$18+Computations!$I$18*Computations!D117+Computations!$H$18*Computations!D117^2 -> 450000 | W117: =Computations!$J$19+Computations!$I$19*Computations!D117+Computations!$H$19*Computations!D117^2+Computations!$G$19*Computations!D117^3 -> 450000
A118: 64 | B118: 0.02947506169 | C118: 0.02976690895 | D118: 0.02962098532 | E118: 0.01087663414 | F118: 0.000452630274 | G118: 942.3813857 | H118: 450000 | I118: =G118-H118/User_entry!$E$18 -> -557.6186143 | J118: 0 | L118: =HLOOKUP(User_entry!$B$56,Computations!$N$54:$R$1054,Computations!A118+1,FALSE) -> 942.3813857 | M118: =HLOOKUP(User_entry!$E$56,Computations!$S$54:$W$1054,Computations!A118+1,FALSE) -> 450000 | N118: =Computations!$F$15+Computations!$E$15*D118 -> 942.3813857 | O118: =EXP(Computations!$F$16)*EXP(Computations!$E$16)^Computations!D118 -> 1026.791286 | P118: =Computations!$F$17+Computations!$E$17*LN(Computations!D118) -> 570.4897382 | Q118: =Computations!$F$18+Computations!$E$18*Computations!D118+Computations!$D$18*Computations!D118^2 -> 799.9621691 | R118: =Computations!$F$19+Computations!$E$19*Computations!D118+Computations!$D$19*Computations!D118^2+Computations!$C$19*Computations!D118^3 -> 799.9621691 | S118: =Computations!$J$15+Computations!$I$15*D118 -> 450000 | T118: =EXP(Computations!$J$16)*EXP(Computations!$I$16)^Computations!D118 -> 450000 | U118: =Computations!$J$17+Computations!$I$17*LN(Computations!D118) -> 450000 | V118: =Computations!$J$18+Computations!$I$18*Computations!D118+Computations!$H$18*Computations!D118^2 -> 450000 | W118: =Computations!$J$19+Computations!$I$19*Computations!D118+Computations!$H$19*Computations!D118^2+Computations!$G$19*Computations!D118^3 -> 450000
A119: 65 | B119: 0.02976690895 | C119: 0.0300587562 | D119: 0.02991283257 | E119: 0.01134291292 | F119: 0.0004662787833 | G119: 946.2214812 | H119: 450000 | I119: =G119-H119/User_entry!$E$18 -> -553.7785188 | J119: 0 | L119: =HLOOKUP(User_entry!$B$56,Computations!$N$54:$R$1054,Computations!A119+1,FALSE) -> 946.2214812 | M119: =HLOOKUP(User_entry!$E$56,Computations!$S$54:$W$1054,Computations!A119+1,FALSE) -> 450000 | N119: =Computations!$F$15+Computations!$E$15*D119 -> 946.2214812 | O119: =EXP(Computations!$F$16)*EXP(Computations!$E$16)^Computations!D119 -> 1028.921584 | P119: =Computations!$F$17+Computations!$E$17*LN(Computations!D119) -> 582.9457715 | Q119: =Computations!$F$18+Computations!$E$18*Computations!D119+Computations!$D$18*Computations!D119^2 -> 805.6960617 | R119: =Computations!$F$19+Computations!$E$19*Computations!D119+Computations!$D$19*Computations!D119^2+Computations!$C$19*Computations!D119^3 -> 805.6960617 | S119: =Computations!$J$15+Computations!$I$15*D119 -> 450000 | T119: =EXP(Computations!$J$16)*EXP(Computations!$I$16)^Computations!D119 -> 450000 | U119: =Computations!$J$17+Computations!$I$17*LN(Computations!D119) -> 450000 | V119: =Computations!$J$18+Computations!$I$18*Computations!D119+Computations!$H$18*Computations!D119^2 -> 450000 | W119: =Computations!$J$19+Computations!$I$19*Computations!D119+Computations!$H$19*Computations!D119^2+Computations!$G$19*Computations!D119^3 -> 450000
A120: 66 | B120: 0.0300587562 | C120: =B120+$D$11 -> 0.03035060346 | D120: =AVERAGE(B120:C120) -> 0.03020467983 | E120: =IF($D$3="Beta",_xlfn.BETA.DIST(C120,$D$4,$D$5,TRUE),IF($D$3="Gamma",_xlfn.GAMMA.DIST(C120,$D$4,$D$5,TRUE),IF($D$3="Lognorm",_xlfn.LOGNORM.DIST(C120,$D$4,$D$5,TRUE),_xlfn.NORM.DIST(C120,$D$4,$D$5,TRUE)))) -> 0.0118230428 | F120: =E120-E119 -> 0.0004801298756 | G120: =L120 -> 950.0615767 | H120: =M120 -> 450000 | I120: =G120-H120/User_entry!$E$18 -> -549.9384233 | J120: =MAX(I120,0) -> 0 | L120: =HLOOKUP(User_entry!$B$56,Computations!$N$54:$R$1054,Computations!A120+1,FALSE) -> 950.0615767 | M120: =HLOOKUP(User_entry!$E$56,Computations!$S$54:$W$1054,Computations!A120+1,FALSE) -> 450000 | N120: =Computations!$F$15+Computations!$E$15*D120 -> 950.0615767 | O120: =EXP(Computations!$F$16)*EXP(Computations!$E$16)^Computations!D120 -> 1031.056301 | P120: =Computations!$F$17+Computations!$E$17*LN(Computations!D120) -> 595.2808644 | Q120: =Computations!$F$18+Computations!$E$18*Computations!D120+Computations!$D$18*Computations!D120^2 -> 811.4236451 | R120: =Computations!$F$19+Computations!$E$19*Computations!D120+Computations!$D$19*Computations!D120^2+Computations!$C$19*Computations!D120^3 -> 811.4236451 | S120: =Computations!$J$15+Computations!$I$15*D120 -> 450000 | T120: =EXP(Computations!$J$16)*EXP(Computations!$I$16)^Computations!D120 -> 450000 | U120: =Computations!$J$17+Computations!$I$17*LN(Computations!D120) -> 450000 | V120: =Computations!$J$18+Computations!$I$18*Computations!D120+Computations!$H$18*Computations!D120^2 -> 450000 | W120: =Computations!$J$19+Computations!$I$19*Computations!D120+Computations!$H$19*Computations!D120^2+Computations!$G$19*Computations!D120^3 -> 450000
A121: 67 | B121: =C120 -> 0.03035060346 | C121: 0.03064245072 | D121: 0.03049652709 | E121: 0.01231722423 | F121: 0.0004941814301 | G121: 953.9016722 | H121: 450000 | I121: =G121-H121/User_entry!$E$18 -> -546.0983278 | J121: 0 | L121: =HLOOKUP(User_entry!$B$56,Computations!$N$54:$R$1054,Computations!A121+1,FALSE) -> 953.9016722 | M121: =HLOOKUP(User_entry!$E$56,Computations!$S$54:$W$1054,Computations!A121+1,FALSE) -> 450000 | N121: =Computations!$F$15+Computations!$E$15*D121 -> 953.9016722 | O121: =EXP(Computations!$F$16)*EXP(Computations!$E$16)^Computations!D121 -> 1033.195447 | P121: =Computations!$F$17+Computations!$E$17*LN(Computations!D121) -> 607.4973429 | Q121: =Computations!$F$18+Computations!$E$18*Computations!D121+Computations!$D$18*Computations!D121^2 -> 817.1449192 | R121: =Computations!$F$19+Computations!$E$19*Computations!D121+Computations!$D$19*Computations!D121^2+Computations!$C$19*Computations!D121^3 -> 817.1449192 | S121: =Computations!$J$15+Computations!$I$15*D121 -> 450000 | T121: =EXP(Computations!$J$16)*EXP(Computations!$I$16)^Computations!D121 -> 450000 | U121: =Computations!$J$17+Computations!$I$17*LN(Computations!D121) -> 450000 | V121: =Computations!$J$18+Computations!$I$18*Computations!D121+Computations!$H$18*Computations!D121^2 -> 450000 | W121: =Computations!$J$19+Computations!$I$19*Computations!D121+Computations!$H$19*Computations!D121^2+Computations!$G$19*Computations!D121^3 -> 450000
A122: 68 | B122: 0.03064245072 | C122: 0.03093429797 | D122: 0.03078837434 | E122: 0.01282565546 | F122: 0.0005084312342 | G122: 957.7417677 | H122: 450000 | I122: =G122-H122/User_entry!$E$18 -> -542.2582323 | J122: 0 | L122: =HLOOKUP(User_entry!$B$56,Computations!$N$54:$R$1054,Computations!A122+1,FALSE) -> 957.7417677 | M122: =HLOOKUP(User_entry!$E$56,Computations!$S$54:$W$1054,Computations!A122+1,FALSE) -> 450000 | N122: =Computations!$F$15+Computations!$E$15*D122 -> 957.7417677 | O122: =EXP(Computations!$F$16)*EXP(Computations!$E$16)^Computations!D122 -> 1035.339031 | P122: =Computations!$F$17+Computations!$E$17*LN(Computations!D122) -> 619.5974664 | Q122: =Computations!$F$18+Computations!$E$18*Computations!D122+Computations!$D$18*Computations!D122^2 -> 822.859884 | R122: =Computations!$F$19+Computations!$E$19*Computations!D122+Computations!$D$19*Computations!D122^2+Computations!$C$19*Computations!D122^3 -> 822.859884 | S122: =Computations!$J$15+Computations!$I$15*D122 -> 450000 | T122: =EXP(Computations!$J$16)*EXP(Computations!$I$16)^Computations!D122 -> 450000 | U122: =Computations!$J$17+Computations!$I$17*LN(Computations!D122) -> 450000 | V122: =Computations!$J$18+Computations!$I$18*Computations!D122+Computations!$H$18*Computations!D122^2 -> 450000 | W122: =Computations!$J$19+Computations!$I$19*Computations!D122+Computations!$H$19*Computations!D122^2+Computations!$G$19*Computations!D122^3 -> 450000
A123: 69 | B123: 0.03093429797 | C123: 0.03122614523 | D123: 0.0310802216 | E123: 0.01334853245 | F123: 0.0005228769857 | G123: 961.5818632 | H123: 450000 | I123: =G123-H123/User_entry!$E$18 -> -538.4181368 | J123: 0 | L123: =HLOOKUP(User_entry!$B$56,Computations!$N$54:$R$1054,Computations!A123+1,FALSE) -> 961.5818632 | M123: =HLOOKUP(User_entry!$E$56,Computations!$S$54:$W$1054,Computations!A123+1,FALSE) -> 450000 | N123: =Computations!$F$15+Computations!$E$15*D123 -> 961.5818632 | O123: =EXP(Computations!$F$16)*EXP(Computations!$E$16)^Computations!D123 -> 1037.487062 | P123: =Computations!$F$17+Computations!$E$17*LN(Computations!D123) -> 631.5834306 | Q123: =Computations!$F$18+Computations!$E$18*Computations!D123+Computations!$D$18*Computations!D123^2 -> 828.5685396 | R123: =Computations!$F$19+Computations!$E$19*Computations!D123+Computations!$D$19*Computations!D123^2+Computations!$C$19*Computations!D123^3 -> 828.5685396 | S123: =Computations!$J$15+Computations!$I$15*D123 -> 450000 | T123: =EXP(Computations!$J$16)*EXP(Computations!$I$16)^Computations!D123 -> 450000 | U123: =Computations!$J$17+Computations!$I$17*LN(Computations!D123) -> 450000 | V123: =Computations!$J$18+Computations!$I$18*Computations!D123+Computations!$H$18*Computations!D123^2 -> 450000 | W123: =Computations!$J$19+Computations!$I$19*Computations!D123+Computations!$H$19*Computations!D123^2+Computations!$G$19*Computations!D123^3 -> 450000
A124: 70 | B124: 0.03122614523 | C124: 0.03151799249 | D124: 0.03137206886 | E124: 0.01388604874 | F124: 0.0005375162948 | G124: 965.4219587 | H124: 450000 | I124: =G124-H124/User_entry!$E$18 -> -534.5780413 | J124: 0 | L124: =HLOOKUP(User_entry!$B$56,Computations!$N$54:$R$1054,Computations!A124+1,FALSE) -> 965.4219587 | M124: =HLOOKUP(User_entry!$E$56,Computations!$S$54:$W$1054,Computations!A124+1,FALSE) -> 450000 | N124: =Computations!$F$15+Computations!$E$15*D124 -> 965.4219587 | O124: =EXP(Computations!$F$16)*EXP(Computations!$E$16)^Computations!D124 -> 1039.63955 | P124: =Computations!$F$17+Computations!$E$17*LN(Computations!D124) -> 643.4573694 | Q124: =Computations!$F$18+Computations!$E$18*Computations!D124+Computations!$D$18*Computations!D124^2 -> 834.270886 | R124: =Computations!$F$19+Computations!$E$19*Computations!D124+Computations!$D$19*Computations!D124^2+Computations!$C$19*Computations!D124^3 -> 834.270886 | S124: =Computations!$J$15+Computations!$I$15*D124 -> 450000 | T124: =EXP(Computations!$J$16)*EXP(Computations!$I$16)^Computations!D124 -> 450000 | U124: =Computations!$J$17+Computations!$I$17*LN(Computations!D124) -> 450000 | V124: =Computations!$J$18+Computations!$I$18*Computations!D124+Computations!$H$18*Computations!D124^2 -> 450000 | W124: =Computations!$J$19+Computations!$I$19*Computations!D124+Computations!$H$19*Computations!D124^2+Computations!$G$19*Computations!D124^3 -> 450000
A125: 71 | B125: 0.03151799249 | C125: 0.03180983974 | D125: 0.03166391612 | E125: 0.01443839543 | F125: 0.000552346686 | G125: 969.2620541 | H125: 450000 | I125: =G125-H125/User_entry!$E$18 -> -530.7379459 | J125: 0 | L125: =HLOOKUP(User_entry!$B$56,Computations!$N$54:$R$1054,Computations!A125+1,FALSE) -> 969.2620541 | M125: =HLOOKUP(User_entry!$E$56,Computations!$S$54:$W$1054,Computations!A125+1,FALSE) -> 450000 | N125: =Computations!$F$15+Computations!$E$15*D125 -> 969.2620541 | O125: =EXP(Computations!$F$16)*EXP(Computations!$E$16)^Computations!D125 -> 1041.796504 | P125: =Computations!$F$17+Computations!$E$17*LN(Computations!D125) -> 655.2213574 | Q125: =Computations!$F$18+Computations!$E$18*Computations!D125+Computations!$D$18*Computations!D125^2 -> 839.9669231 | R125: =Computations!$F$19+Computations!$E$19*Computations!D125+Computations!$D$19*Computations!D125^2+Computations!$C$19*Computations!D125^3 -> 839.9669231 | S125: =Computations!$J$15+Computations!$I$15*D125 -> 450000 | T125: =EXP(Computations!$J$16)*EXP(Computations!$I$16)^Computations!D125 -> 450000 | U125: =Computations!$J$17+Computations!$I$17*LN(Computations!D125) -> 450000 | V125: =Computations!$J$18+Computations!$I$18*Computations!D125+Computations!$H$18*Computations!D125^2 -> 450000 | W125: =Computations!$J$19+Computations!$I$19*Computations!D125+Computations!$H$19*Computations!D125^2+Computations!$G$19*Computations!D125^3 -> 450000
A126: 72 | B126: 0.03180983974 | C126: 0.032101687 | D126: 0.03195576337 | E126: 0.01500576103 | F126: 0.0005673656008 | G126: 973.1021496 | H126: 450000 | I126: =G126-H126/User_entry!$E$18 -> -526.8978504 | J126: 0 | L126: =HLOOKUP(User_entry!$B$56,Computations!$N$54:$R$1054,Computations!A126+1,FALSE) -> 973.1021496 | M126: =HLOOKUP(User_entry!$E$56,Computations!$S$54:$W$1054,Computations!A126+1,FALSE) -> 450000 | N126: =Computations!$F$15+Computations!$E$15*D126 -> 973.1021496 | O126: =EXP(Computations!$F$16)*EXP(Computations!$E$16)^Computations!D126 -> 1043.957933 | P126: =Computations!$F$17+Computations!$E$17*LN(Computations!D126) -> 666.8774123 | Q126: =Computations!$F$18+Computations!$E$18*Computations!D126+Computations!$D$18*Computations!D126^2 -> 845.656651 | R126: =Computations!$F$19+Computations!$E$19*Computations!D126+Computations!$D$19*Computations!D126^2+Computations!$C$19*Computations!D126^3 -> 845.656651 | S126: =Computations!$J$15+Computations!$I$15*D126 -> 450000 | T126: =EXP(Computations!$J$16)*EXP(Computations!$I$16)^Computations!D126 -> 450000 | U126: =Computations!$J$17+Computations!$I$17*LN(Computations!D126) -> 450000 | V126: =Computations!$J$18+Computations!$I$18*Computations!D126+Computations!$H$18*Computations!D126^2 -> 450000 | W126: =Computations!$J$19+Computations!$I$19*Computations!D126+Computations!$H$19*Computations!D126^2+Computations!$G$19*Computations!D126^3 -> 450000
A127: 73 | B127: 0.032101687 | C127: 0.03239353426 | D127: 0.03224761063 | E127: 0.01558833143 | F127: 0.0005825703992 | G127: 976.9422451 | H127: 450000 | I127: =G127-H127/User_entry!$E$18 -> -523.0577549 | J127: 0 | L127: =HLOOKUP(User_entry!$B$56,Computations!$N$54:$R$1054,Computations!A127+1,FALSE) -> 976.9422451 | M127: =HLOOKUP(User_entry!$E$56,Computations!$S$54:$W$1054,Computations!A127+1,FALSE) -> 450000 | N127: =Computations!$F$15+Computations!$E$15*D127 -> 976.9422451 | O127: =EXP(Computations!$F$16)*EXP(Computations!$E$16)^Computations!D127 -> 1046.123846 | P127: =Computations!$F$17+Computations!$E$17*LN(Computations!D127) -> 678.4274966 | Q127: =Computations!$F$18+Computations!$E$18*Computations!D127+Computations!$D$18*Computations!D127^2 -> 851.3400696 | R127: =Computations!$F$19+Computations!$E$19*Computations!D127+Computations!$D$19*Computations!D127^2+Computations!$C$19*Computations!D127^3 -> 851.3400696 | S127: =Computations!$J$15+Computations!$I$15*D127 -> 450000 | T127: =EXP(Computations!$J$16)*EXP(Computations!$I$16)^Computations!D127 -> 450000 | U127: =Computations!$J$17+Computations!$I$17*LN(Computations!D127) -> 450000 | V127: =Computations!$J$18+Computations!$I$18*Computations!D127+Computations!$H$18*Computations!D127^2 -> 450000 | W127: =Computations!$J$19+Computations!$I$19*Computations!D127+Computations!$H$19*Computations!D127^2+Computations!$G$19*Computations!D127^3 -> 450000
A128: 74 | B128: 0.03239353426 | C128: 0.03268538151 | D128: 0.03253945789 | E128: 0.01618628979 | F128: 0.0005979583621 | G128: 980.7823406 | H128: 450000 | I128: =G128-H128/User_entry!$E$18 -> -519.2176594 | J128: 0 | L128: =HLOOKUP(User_entry!$B$56,Computations!$N$54:$R$1054,Computations!A128+1,FALSE) -> 980.7823406 | M128: =HLOOKUP(User_entry!$E$56,Computations!$S$54:$W$1054,Computations!A128+1,FALSE) -> 450000 | N128: =Computations!$F$15+Computations!$E$15*D128 -> 980.7823406 | O128: =EXP(Computations!$F$16)*EXP(Computations!$E$16)^Computations!D128 -> 1048.294253 | P128: =Computations!$F$17+Computations!$E$17*LN(Computations!D128) -> 689.8735198 | Q128: =Computations!$F$18+Computations!$E$18*Computations!D128+Computations!$D$18*Computations!D128^2 -> 857.017179 | R128: =Computations!$F$19+Computations!$E$19*Computations!D128+Computations!$D$19*Computations!D128^2+Computations!$C$19*Computations!D128^3 -> 857.017179 | S128: =Computations!$J$15+Computations!$I$15*D128 -> 450000 | T128: =EXP(Computations!$J$16)*EXP(Computations!$I$16)^Computations!D128 -> 450000 | U128: =Computations!$J$17+Computations!$I$17*LN(Computations!D128) -> 450000 | V128: =Computations!$J$18+Computations!$I$18*Computations!D128+Computations!$H$18*Computations!D128^2 -> 450000 | W128: =Computations!$J$19+Computations!$I$19*Computations!D128+Computations!$H$19*Computations!D128^2+Computations!$G$19*Computations!D128^3 -> 450000
A129: 75 | B129: 0.03268538151 | C129: 0.03297722877 | D129: 0.03283130514 | E129: 0.01679981648 | F129: 0.0006135266937 | G129: 984.6224361 | H129: 450000 | I129: =G129-H129/User_entry!$E$18 -> -515.3775639 | J129: 0 | L129: =HLOOKUP(User_entry!$B$56,Computations!$N$54:$R$1054,Computations!A129+1,FALSE) -> 984.6224361 | M129: =HLOOKUP(User_entry!$E$56,Computations!$S$54:$W$1054,Computations!A129+1,FALSE) -> 450000 | N129: =Computations!$F$15+Computations!$E$15*D129 -> 984.6224361 | O129: =EXP(Computations!$F$16)*EXP(Computations!$E$16)^Computations!D129 -> 1050.469162 | P129: =Computations!$F$17+Computations!$E$17*LN(Computations!D129) -> 701.2173403 | Q129: =Computations!$F$18+Computations!$E$18*Computations!D129+Computations!$D$18*Computations!D129^2 -> 862.6879791 | R129: =Computations!$F$19+Computations!$E$19*Computations!D129+Computations!$D$19*Computations!D129^2+Computations!$C$19*Computations!D129^3 -> 862.6879791 | S129: =Computations!$J$15+Computations!$I$15*D129 -> 450000 | T129: =EXP(Computations!$J$16)*EXP(Computations!$I$16)^Computations!D129 -> 450000 | U129: =Computations!$J$17+Computations!$I$17*LN(Computations!D129) -> 450000 | V129: =Computations!$J$18+Computations!$I$18*Computations!D129+Computations!$H$18*Computations!D129^2 -> 450000 | W129: =Computations!$J$19+Computations!$I$19*Computations!D129+Computations!$H$19*Computations!D129^2+Computations!$G$19*Computations!D129^3 -> 450000
A130: 76 | B130: 0.03297722877 | C130: 0.03326907603 | D130: 0.0331231524 | E130: 0.01742908901 | F130: 0.0006292725232 | G130: 988.4625316 | H130: 450000 | I130: =G130-H130/User_entry!$E$18 -> -511.5374684 | J130: 0 | L130: =HLOOKUP(User_entry!$B$56,Computations!$N$54:$R$1054,Computations!A130+1,FALSE) -> 988.4625316 | M130: =HLOOKUP(User_entry!$E$56,Computations!$S$54:$W$1054,Computations!A130+1,FALSE) -> 450000 | N130: =Computations!$F$15+Computations!$E$15*D130 -> 988.4625316 | O130: =EXP(Computations!$F$16)*EXP(Computations!$E$16)^Computations!D130 -> 1052.648585 | P130: =Computations!$F$17+Computations!$E$17*LN(Computations!D130) -> 712.4607671 | Q130: =Computations!$F$18+Computations!$E$18*Computations!D130+Computations!$D$18*Computations!D130^2 -> 868.35247 | R130: =Computations!$F$19+Computations!$E$19*Computations!D130+Computations!$D$19*Computations!D130^2+Computations!$C$19*Computations!D130^3 -> 868.35247 | S130: =Computations!$J$15+Computations!$I$15*D130 -> 450000 | T130: =EXP(Computations!$J$16)*EXP(Computations!$I$16)^Computations!D130 -> 450000 | U130: =Computations!$J$17+Computations!$I$17*LN(Computations!D130) -> 450000 | V130: =Computations!$J$18+Computations!$I$18*Computations!D130+Computations!$H$18*Computations!D130^2 -> 450000 | W130: =Computations!$J$19+Computations!$I$19*Computations!D130+Computations!$H$19*Computations!D130^2+Computations!$G$19*Computations!D130^3 -> 450000
A131: 77 | B131: 0.03326907603 | C131: 0.03356092329 | D131: 0.03341499966 | E131: 0.01807428192 | F131: 0.0006451929077 | G131: 992.3026271 | H131: 450000 | I131: =G131-H131/User_entry!$E$18 -> -507.6973729 | J131: 0 | L131: =HLOOKUP(User_entry!$B$56,Computations!$N$54:$R$1054,Computations!A131+1,FALSE) -> 992.3026271 | M131: =HLOOKUP(User_entry!$E$56,Computations!$S$54:$W$1054,Computations!A131+1,FALSE) -> 450000 | N131: =Computations!$F$15+Computations!$E$15*D131 -> 992.3026271 | O131: =EXP(Computations!$F$16)*EXP(Computations!$E$16)^Computations!D131 -> 1054.832528 | P131: =Computations!$F$17+Computations!$E$17*LN(Computations!D131) -> 723.6055615 | Q131: =Computations!$F$18+Computations!$E$18*Computations!D131+Computations!$D$18*Computations!D131^2 -> 874.0106517 | R131: =Computations!$F$19+Computations!$E$19*Computations!D131+Computations!$D$19*Computations!D131^2+Computations!$C$19*Computations!D131^3 -> 874.0106517 | S131: =Computations!$J$15+Computations!$I$15*D131 -> 450000 | T131: =EXP(Computations!$J$16)*EXP(Computations!$I$16)^Computations!D131 -> 450000 | U131: =Computations!$J$17+Computations!$I$17*LN(Computations!D131) -> 450000 | V131: =Computations!$J$18+Computations!$I$18*Computations!D131+Computations!$H$18*Computations!D131^2 -> 450000 | W131: =Computations!$J$19+Computations!$I$19*Computations!D131+Computations!$H$19*Computations!D131^2+Computations!$G$19*Computations!D131^3 -> 450000
A132: 78 | B132: 0.03356092329 | C132: 0.03385277054 | D132: 0.03370684691 | E132: 0.01873556675 | F132: 0.0006612848336 | G132: 996.1427226 | H132: 450000 | I132: =G132-H132/User_entry!$E$18 -> -503.8572774 | J132: 0 | L132: =HLOOKUP(User_entry!$B$56,Computations!$N$54:$R$1054,Computations!A132+1,FALSE) -> 996.1427226 | M132: =HLOOKUP(User_entry!$E$56,Computations!$S$54:$W$1054,Computations!A132+1,FALSE) -> 450000 | N132: =Computations!$F$15+Computations!$E$15*D132 -> 996.1427226 | O132: =EXP(Computations!$F$16)*EXP(Computations!$E$16)^Computations!D132 -> 1057.021003 | P132: =Computations!$F$17+Computations!$E$17*LN(Computations!D132) -> 734.6534392 | Q132: =Computations!$F$18+Computations!$E$18*Computations!D132+Computations!$D$18*Computations!D132^2 -> 879.6625241 | R132: =Computations!$F$19+Computations!$E$19*Computations!D132+Computations!$D$19*Computations!D132^2+Computations!$C$19*Computations!D132^3 -> 879.6625241 | S132: =Computations!$J$15+Computations!$I$15*D132 -> 450000 | T132: =EXP(Computations!$J$16)*EXP(Computations!$I$16)^Computations!D132 -> 450000 | U132: =Computations!$J$17+Computations!$I$17*LN(Computations!D132) -> 450000 | V132: =Computations!$J$18+Computations!$I$18*Computations!D132+Computations!$H$18*Computations!D132^2 -> 450000 | W132: =Computations!$J$19+Computations!$I$19*Computations!D132+Computations!$H$19*Computations!D132^2+Computations!$G$19*Computations!D132^3 -> 450000
A133: 79 | B133: 0.03385277054 | C133: 0.0341446178 | D133: 0.03399869417 | E133: 0.01941311197 | F133: 0.0006775452196 | G133: 999.982818 | H133: 450000 | I133: =G133-H133/User_entry!$E$18 -> -500.017182 | J133: 0 | L133: =HLOOKUP(User_entry!$B$56,Computations!$N$54:$R$1054,Computations!A133+1,FALSE) -> 999.982818 | M133: =HLOOKUP(User_entry!$E$56,Computations!$S$54:$W$1054,Computations!A133+1,FALSE) -> 450000 | N133: =Computations!$F$15+Computations!$E$15*D133 -> 999.982818 | O133: =EXP(Computations!$F$16)*EXP(Computations!$E$16)^Computations!D133 -> 1059.214018 | P133: =Computations!$F$17+Computations!$E$17*LN(Computations!D133) -> 745.606071 | Q133: =Computations!$F$18+Computations!$E$18*Computations!D133+Computations!$D$18*Computations!D133^2 -> 885.3080872 | R133: =Computations!$F$19+Computations!$E$19*Computations!D133+Computations!$D$19*Computations!D133^2+Computations!$C$19*Computations!D133^3 -> 885.3080872 | S133: =Computations!$J$15+Computations!$I$15*D133 -> 450000 | T133: =EXP(Computations!$J$16)*EXP(Computations!$I$16)^Computations!D133 -> 450000 | U133: =Computations!$J$17+Computations!$I$17*LN(Computations!D133) -> 450000 | V133: =Computations!$J$18+Computations!$I$18*Computations!D133+Computations!$H$18*Computations!D133^2 -> 450000 | W133: =Computations!$J$19+Computations!$I$19*Computations!D133+Computations!$H$19*Computations!D133^2+Computations!$G$19*Computations!D133^3 -> 450000
A134: 80 | B134: 0.0341446178 | C134: 0.03443646506 | D134: 0.03429054143 | E134: 0.02010708289 | F134: 0.0006939709182 | G134: 1003.822914 | H134: 450000 | I134: =G134-H134/User_entry!$E$18 -> -496.1770865 | J134: 0 | L134: =HLOOKUP(User_entry!$B$56,Computations!$N$54:$R$1054,Computations!A134+1,FALSE) -> 1003.822914 | M134: =HLOOKUP(User_entry!$E$56,Computations!$S$54:$W$1054,Computations!A134+1,FALSE) -> 450000 | N134: =Computations!$F$15+Computations!$E$15*D134 -> 1003.822914 | O134: =EXP(Computations!$F$16)*EXP(Computations!$E$16)^Computations!D134 -> 1061.411584 | P134: =Computations!$F$17+Computations!$E$17*LN(Computations!D134) -> 756.4650854 | Q134: =Computations!$F$18+Computations!$E$18*Computations!D134+Computations!$D$18*Computations!D134^2 -> 890.9473411 | R134: =Computations!$F$19+Computations!$E$19*Computations!D134+Computations!$D$19*Computations!D134^2+Computations!$C$19*Computations!D134^3 -> 890.9473411 | S134: =Computations!$J$15+Computations!$I$15*D134 -> 450000 | T134: =EXP(Computations!$J$16)*EXP(Computations!$I$16)^Computations!D134 -> 450000 | U134: =Computations!$J$17+Computations!$I$17*LN(Computations!D134) -> 450000 | V134: =Computations!$J$18+Computations!$I$18*Computations!D134+Computations!$H$18*Computations!D134^2 -> 450000 | W134: =Computations!$J$19+Computations!$I$19*Computations!D134+Computations!$H$19*Computations!D134^2+Computations!$G$19*Computations!D134^3 -> 450000
A135: 81 | B135: 0.03443646506 | C135: 0.03472831231 | D135: 0.03458238868 | E135: 0.02081764161 | F135: 0.0007105587185 | G135: 1007.663009 | H135: 450000 | I135: =G135-H135/User_entry!$E$18 -> -492.336991 | J135: 0 | L135: =HLOOKUP(User_entry!$B$56,Computations!$N$54:$R$1054,Computations!A135+1,FALSE) -> 1007.663009 | M135: =HLOOKUP(User_entry!$E$56,Computations!$S$54:$W$1054,Computations!A135+1,FALSE) -> 450000 | N135: =Computations!$F$15+Computations!$E$15*D135 -> 1007.663009 | O135: =EXP(Computations!$F$16)*EXP(Computations!$E$16)^Computations!D135 -> 1063.613708 | P135: =Computations!$F$17+Computations!$E$17*LN(Computations!D135) -> 767.232069 | Q135: =Computations!$F$18+Computations!$E$18*Computations!D135+Computations!$D$18*Computations!D135^2 -> 896.5802858 | R135: =Computations!$F$19+Computations!$E$19*Computations!D135+Computations!$D$19*Computations!D135^2+Computations!$C$19*Computations!D135^3 -> 896.5802858 | S135: =Computations!$J$15+Computations!$I$15*D135 -> 450000 | T135: =EXP(Computations!$J$16)*EXP(Computations!$I$16)^Computations!D135 -> 450000 | U135: =Computations!$J$17+Computations!$I$17*LN(Computations!D135) -> 450000 | V135: =Computations!$J$18+Computations!$I$18*Computations!D135+Computations!$H$18*Computations!D135^2 -> 450000 | W135: =Computations!$J$19+Computations!$I$19*Computations!D135+Computations!$H$19*Computations!D135^2+Computations!$G$19*Computations!D135^3 -> 450000
A136: 82 | B136: 0.03472831231 | C136: 0.03502015957 | D136: 0.03487423594 | E136: 0.02154494695 | F136: 0.0007273053481 | G136: 1011.503104 | H136: 450000 | I136: =G136-H136/User_entry!$E$18 -> -488.4968955 | J136: 0 | L136: =HLOOKUP(User_entry!$B$56,Computations!$N$54:$R$1054,Computations!A136+1,FALSE) -> 1011.503104 | M136: =HLOOKUP(User_entry!$E$56,Computations!$S$54:$W$1054,Computations!A136+1,FALSE) -> 450000 | N136: =Computations!$F$15+Computations!$E$15*D136 -> 1011.503104 | O136: =EXP(Computations!$F$16)*EXP(Computations!$E$16)^Computations!D136 -> 1065.820401 | P136: =Computations!$F$17+Computations!$E$17*LN(Computations!D136) -> 777.9085688 | Q136: =Computations!$F$18+Computations!$E$18*Computations!D136+Computations!$D$18*Computations!D136^2 -> 902.2069212 | R136: =Computations!$F$19+Computations!$E$19*Computations!D136+Computations!$D$19*Computations!D136^2+Computations!$C$19*Computations!D136^3 -> 902.2069212 | S136: =Computations!$J$15+Computations!$I$15*D136 -> 450000 | T136: =EXP(Computations!$J$16)*EXP(Computations!$I$16)^Computations!D136 -> 450000 | U136: =Computations!$J$17+Computations!$I$17*LN(Computations!D136) -> 450000 | V136: =Computations!$J$18+Computations!$I$18*Computations!D136+Computations!$H$18*Computations!D136^2 -> 450000 | W136: =Computations!$J$19+Computations!$I$19*Computations!D136+Computations!$H$19*Computations!D136^2+Computations!$G$19*Computations!D136^3 -> 450000
A137: 83 | B137: 0.03502015957 | C137: 0.03531200683 | D137: 0.0351660832 | E137: 0.02228915443 | F137: 0.0007442074757 | G137: 1015.3432 | H137: 450000 | I137: =G137-H137/User_entry!$E$18 -> -484.6568 | J137: 0 | L137: =HLOOKUP(User_entry!$B$56,Computations!$N$54:$R$1054,Computations!A137+1,FALSE) -> 1015.3432 | M137: =HLOOKUP(User_entry!$E$56,Computations!$S$54:$W$1054,Computations!A137+1,FALSE) -> 450000 | N137: =Computations!$F$15+Computations!$E$15*D137 -> 1015.3432 | O137: =EXP(Computations!$F$16)*EXP(Computations!$E$16)^Computations!D137 -> 1068.031673 | P137: =Computations!$F$17+Computations!$E$17*LN(Computations!D137) -> 788.4960929 | Q137: =Computations!$F$18+Computations!$E$18*Computations!D137+Computations!$D$18*Computations!D137^2 -> 907.8272474 | R137: =Computations!$F$19+Computations!$E$19*Computations!D137+Computations!$D$19*Computations!D137^2+Computations!$C$19*Computations!D137^3 -> 907.8272474 | S137: =Computations!$J$15+Computations!$I$15*D137 -> 450000 | T137: =EXP(Computations!$J$16)*EXP(Computations!$I$16)^Computations!D137 -> 450000 | U137: =Computations!$J$17+Computations!$I$17*LN(Computations!D137) -> 450000 | V137: =Computations!$J$18+Computations!$I$18*Computations!D137+Computations!$H$18*Computations!D137^2 -> 450000 | W137: =Computations!$J$19+Computations!$I$19*Computations!D137+Computations!$H$19*Computations!D137^2+Computations!$G$19*Computations!D137^3 -> 450000
A138: 84 | B138: 0.03531200683 | C138: 0.03560385408 | D138: 0.03545793046 | E138: 0.02305041614 | F138: 0.0007612617127 | G138: 1019.183295 | H138: 450000 | I138: =G138-H138/User_entry!$E$18 -> -480.8167045 | J138: 0 | L138: =HLOOKUP(User_entry!$B$56,Computations!$N$54:$R$1054,Computations!A138+1,FALSE) -> 1019.183295 | M138: =HLOOKUP(User_entry!$E$56,Computations!$S$54:$W$1054,Computations!A138+1,FALSE) -> 450000 | N138: =Computations!$F$15+Computations!$E$15*D138 -> 1019.183295 | O138: =EXP(Computations!$F$16)*EXP(Computations!$E$16)^Computations!D138 -> 1070.247532 | P138: =Computations!$F$17+Computations!$E$17*LN(Computations!D138) -> 798.9961121 | Q138: =Computations!$F$18+Computations!$E$18*Computations!D138+Computations!$D$18*Computations!D138^2 -> 913.4412643 | R138: =Computations!$F$19+Computations!$E$19*Computations!D138+Computations!$D$19*Computations!D138^2+Computations!$C$19*Computations!D138^3 -> 913.4412643 | S138: =Computations!$J$15+Computations!$I$15*D138 -> 450000 | T138: =EXP(Computations!$J$16)*EXP(Computations!$I$16)^Computations!D138 -> 450000 | U138: =Computations!$J$17+Computations!$I$17*LN(Computations!D138) -> 450000 | V138: =Computations!$J$18+Computations!$I$18*Computations!D138+Computations!$H$18*Computations!D138^2 -> 450000 | W138: =Computations!$J$19+Computations!$I$19*Computations!D138+Computations!$H$19*Computations!D138^2+Computations!$G$19*Computations!D138^3 -> 450000
A139: 85 | B139: 0.03560385408 | C139: 0.03589570134 | D139: 0.03574977771 | E139: 0.02382888076 | F139: 0.0007784646161 | G139: 1023.023391 | H139: 450000 | I139: =G139-H139/User_entry!$E$18 -> -476.976609 | J139: 0 | L139: =HLOOKUP(User_entry!$B$56,Computations!$N$54:$R$1054,Computations!A139+1,FALSE) -> 1023.023391 | M139: =HLOOKUP(User_entry!$E$56,Computations!$S$54:$W$1054,Computations!A139+1,FALSE) -> 450000 | N139: =Computations!$F$15+Computations!$E$15*D139 -> 1023.023391 | O139: =EXP(Computations!$F$16)*EXP(Computations!$E$16)^Computations!D139 -> 1072.467989 | P139: =Computations!$F$17+Computations!$E$17*LN(Computations!D139) -> 809.4100609 | Q139: =Computations!$F$18+Computations!$E$18*Computations!D139+Computations!$D$18*Computations!D139^2 -> 919.048972 | R139: =Computations!$F$19+Computations!$E$19*Computations!D139+Computations!$D$19*Computations!D139^2+Computations!$C$19*Computations!D139^3 -> 919.048972 | S139: =Computations!$J$15+Computations!$I$15*D139 -> 450000 | T139: =EXP(Computations!$J$16)*EXP(Computations!$I$16)^Computations!D139 -> 450000 | U139: =Computations!$J$17+Computations!$I$17*LN(Computations!D139) -> 450000 | V139: =Computations!$J$18+Computations!$I$18*Computations!D139+Computations!$H$18*Computations!D139^2 -> 450000 | W139: =Computations!$J$19+Computations!$I$19*Computations!D139+Computations!$H$19*Computations!D139^2+Computations!$G$19*Computations!D139^3 -> 450000
A140: 86 | B140: 0.03589570134 | C140: 0.0361875486 | D140: 0.03604162497 | E140: 0.02462469345 | F140: 0.0007958126902 | G140: 1026.863486 | H140: 450000 | I140: =G140-H140/User_entry!$E$18 -> -473.1365136 | J140: 0 | L140: =HLOOKUP(User_entry!$B$56,Computations!$N$54:$R$1054,Computations!A140+1,FALSE) -> 1026.863486 | M140: =HLOOKUP(User_entry!$E$56,Computations!$S$54:$W$1054,Computations!A140+1,FALSE) -> 450000 | N140: =Computations!$F$15+Computations!$E$15*D140 -> 1026.863486 | O140: =EXP(Computations!$F$16)*EXP(Computations!$E$16)^Computations!D140 -> 1074.693052 | P140: =Computations!$F$17+Computations!$E$17*LN(Computations!D140) -> 819.7393389 | Q140: =Computations!$F$18+Computations!$E$18*Computations!D140+Computations!$D$18*Computations!D140^2 -> 924.6503704 | R140: =Computations!$F$19+Computations!$E$19*Computations!D140+Computations!$D$19*Computations!D140^2+Computations!$C$19*Computations!D140^3 -> 924.6503704 | S140: =Computations!$J$15+Computations!$I$15*D140 -> 450000 | T140: =EXP(Computations!$J$16)*EXP(Computations!$I$16)^Computations!D140 -> 450000 | U140: =Computations!$J$17+Computations!$I$17*LN(Computations!D140) -> 450000 | V140: =Computations!$J$18+Computations!$I$18*Computations!D140+Computations!$H$18*Computations!D140^2 -> 450000 | W140: =Computations!$J$19+Computations!$I$19*Computations!D140+Computations!$H$19*Computations!D140^2+Computations!$G$19*Computations!D140^3 -> 450000
A141: 87 | B141: 0.0361875486 | C141: 0.03647939585 | D141: 0.03633347223 | E141: 0.02543799584 | F141: 0.0008133023893 | G141: 1030.703582 | H141: 450000 | I141: =G141-H141/User_entry!$E$18 -> -469.2964181 | J141: 0 | L141: =HLOOKUP(User_entry!$B$56,Computations!$N$54:$R$1054,Computations!A141+1,FALSE) -> 1030.703582 | M141: =HLOOKUP(User_entry!$E$56,Computations!$S$54:$W$1054,Computations!A141+1,FALSE) -> 450000 | N141: =Computations!$F$15+Computations!$E$15*D141 -> 1030.703582 | O141: =EXP(Computations!$F$16)*EXP(Computations!$E$16)^Computations!D141 -> 1076.922732 | P141: =Computations!$F$17+Computations!$E$17*LN(Computations!D141) -> 829.9853119 | Q141: =Computations!$F$18+Computations!$E$18*Computations!D141+Computations!$D$18*Computations!D141^2 -> 930.2454596 | R141: =Computations!$F$19+Computations!$E$19*Computations!D141+Computations!$D$19*Computations!D141^2+Computations!$C$19*Computations!D141^3 -> 930.2454596 | S141: =Computations!$J$15+Computations!$I$15*D141 -> 450000 | T141: =EXP(Computations!$J$16)*EXP(Computations!$I$16)^Computations!D141 -> 450000 | U141: =Computations!$J$17+Computations!$I$17*LN(Computations!D141) -> 450000 | V141: =Computations!$J$18+Computations!$I$18*Computations!D141+Computations!$H$18*Computations!D141^2 -> 450000 | W141: =Computations!$J$19+Computations!$I$19*Computations!D141+Computations!$H$19*Computations!D141^2+Computations!$G$19*Computations!D141^3 -> 450000
A142: 88 | B142: 0.03647939585 | C142: 0.03677124311 | D142: 0.03662531948 | E142: 0.02626892596 | F142: 0.0008309301193 | G142: 1034.543677 | H142: 450000 | I142: =G142-H142/User_entry!$E$18 -> -465.4563226 | J142: 0 | L142: =HLOOKUP(User_entry!$B$56,Computations!$N$54:$R$1054,Computations!A142+1,FALSE) -> 1034.543677 | M142: =HLOOKUP(User_entry!$E$56,Computations!$S$54:$W$1054,Computations!A142+1,FALSE) -> 450000 | N142: =Computations!$F$15+Computations!$E$15*D142 -> 1034.543677 | O142: =EXP(Computations!$F$16)*EXP(Computations!$E$16)^Computations!D142 -> 1079.157037 | P142: =Computations!$F$17+Computations!$E$17*LN(Computations!D142) -> 840.1493129 | Q142: =Computations!$F$18+Computations!$E$18*Computations!D142+Computations!$D$18*Computations!D142^2 -> 935.8342396 | R142: =Computations!$F$19+Computations!$E$19*Computations!D142+Computations!$D$19*Computations!D142^2+Computations!$C$19*Computations!D142^3 -> 935.8342396 | S142: =Computations!$J$15+Computations!$I$15*D142 -> 450000 | T142: =EXP(Computations!$J$16)*EXP(Computations!$I$16)^Computations!D142 -> 450000 | U142: =Computations!$J$17+Computations!$I$17*LN(Computations!D142) -> 450000 | V142: =Computations!$J$18+Computations!$I$18*Computations!D142+Computations!$H$18*Computations!D142^2 -> 450000 | W142: =Computations!$J$19+Computations!$I$19*Computations!D142+Computations!$H$19*Computations!D142^2+Computations!$G$19*Computations!D142^3 -> 450000
A143: 89 | B143: 0.03677124311 | C143: 0.03706309037 | D143: 0.03691716674 | E143: 0.0271176182 | F143: 0.0008486922406 | G143: 1038.383773 | H143: 450000 | I143: =G143-H143/User_entry!$E$18 -> -461.6162271 | J143: 0 | L143: =HLOOKUP(User_entry!$B$56,Computations!$N$54:$R$1054,Computations!A143+1,FALSE) -> 1038.383773 | M143: =HLOOKUP(User_entry!$E$56,Computations!$S$54:$W$1054,Computations!A143+1,FALSE) -> 450000 | N143: =Computations!$F$15+Computations!$E$15*D143 -> 1038.383773 | O143: =EXP(Computations!$F$16)*EXP(Computations!$E$16)^Computations!D143 -> 1081.395979 | P143: =Computations!$F$17+Computations!$E$17*LN(Computations!D143) -> 850.232643 | Q143: =Computations!$F$18+Computations!$E$18*Computations!D143+Computations!$D$18*Computations!D143^2 -> 941.4167102 | R143: =Computations!$F$19+Computations!$E$19*Computations!D143+Computations!$D$19*Computations!D143^2+Computations!$C$19*Computations!D143^3 -> 941.4167102 | S143: =Computations!$J$15+Computations!$I$15*D143 -> 450000 | T143: =EXP(Computations!$J$16)*EXP(Computations!$I$16)^Computations!D143 -> 450000 | U143: =Computations!$J$17+Computations!$I$17*LN(Computations!D143) -> 450000 | V143: =Computations!$J$18+Computations!$I$18*Computations!D143+Computations!$H$18*Computations!D143^2 -> 450000 | W143: =Computations!$J$19+Computations!$I$19*Computations!D143+Computations!$H$19*Computations!D143^2+Computations!$G$19*Computations!D143^3 -> 450000
A144: 90 | B144: 0.03706309037 | C144: 0.03735493763 | D144: 0.037209014 | E144: 0.02798420327 | F144: 0.0008665850697 | G144: 1042.223868 | H144: 450000 | I144: =G144-H144/User_entry!$E$18 -> -457.7761316 | J144: 0 | L144: =HLOOKUP(User_entry!$B$56,Computations!$N$54:$R$1054,Computations!A144+1,FALSE) -> 1042.223868 | M144: =HLOOKUP(User_entry!$E$56,Computations!$S$54:$W$1054,Computations!A144+1,FALSE) -> 450000 | N144: =Computations!$F$15+Computations!$E$15*D144 -> 1042.223868 | O144: =EXP(Computations!$F$16)*EXP(Computations!$E$16)^Computations!D144 -> 1083.639565 | P144: =Computations!$F$17+Computations!$E$17*LN(Computations!D144) -> 860.2365728 | Q144: =Computations!$F$18+Computations!$E$18*Computations!D144+Computations!$D$18*Computations!D144^2 -> 946.9928717 | R144: =Computations!$F$19+Computations!$E$19*Computations!D144+Computations!$D$19*Computations!D144^2+Computations!$C$19*Computations!D144^3 -> 946.9928717 | S144: =Computations!$J$15+Computations!$I$15*D144 -> 450000 | T144: =EXP(Computations!$J$16)*EXP(Computations!$I$16)^Computations!D144 -> 450000 | U144: =Computations!$J$17+Computations!$I$17*LN(Computations!D144) -> 450000 | V144: =Computations!$J$18+Computations!$I$18*Computations!D144+Computations!$H$18*Computations!D144^2 -> 450000 | W144: =Computations!$J$19+Computations!$I$19*Computations!D144+Computations!$H$19*Computations!D144^2+Computations!$G$19*Computations!D144^3 -> 450000
A145: 91 | B145: 0.03735493763 | C145: 0.03764678488 | D145: 0.03750086125 | E145: 0.02886880815 | F145: 0.0008846048818 | G145: 1046.063964 | H145: 450000 | I145: =G145-H145/User_entry!$E$18 -> -453.9360361 | J145: 0 | L145: =HLOOKUP(User_entry!$B$56,Computations!$N$54:$R$1054,Computations!A145+1,FALSE) -> 1046.063964 | M145: =HLOOKUP(User_entry!$E$56,Computations!$S$54:$W$1054,Computations!A145+1,FALSE) -> 450000 | N145: =Computations!$F$15+Computations!$E$15*D145 -> 1046.063964 | O145: =EXP(Computations!$F$16)*EXP(Computations!$E$16)^Computations!D145 -> 1085.887806 | P145: =Computations!$F$17+Computations!$E$17*LN(Computations!D145) -> 870.1623429 | Q145: =Computations!$F$18+Computations!$E$18*Computations!D145+Computations!$D$18*Computations!D145^2 -> 952.5627239 | R145: =Computations!$F$19+Computations!$E$19*Computations!D145+Computations!$D$19*Computations!D145^2+Computations!$C$19*Computations!D145^3 -> 952.5627239 | S145: =Computations!$J$15+Computations!$I$15*D145 -> 450000 | T145: =EXP(Computations!$J$16)*EXP(Computations!$I$16)^Computations!D145 -> 450000 | U145: =Computations!$J$17+Computations!$I$17*LN(Computations!D145) -> 450000 | V145: =Computations!$J$18+Computations!$I$18*Computations!D145+Computations!$H$18*Computations!D145^2 -> 450000 | W145: =Computations!$J$19+Computations!$I$19*Computations!D145+Computations!$H$19*Computations!D145^2+Computations!$G$19*Computations!D145^3 -> 450000
A146: 92 | B146: 0.03764678488 | C146: 0.03793863214 | D146: 0.03779270851 | E146: 0.02977155606 | F146: 0.0009027479126 | G146: 1049.904059 | H146: 450000 | I146: =G146-H146/User_entry!$E$18 -> -450.0959406 | J146: 0 | L146: =HLOOKUP(User_entry!$B$56,Computations!$N$54:$R$1054,Computations!A146+1,FALSE) -> 1049.904059 | M146: =HLOOKUP(User_entry!$E$56,Computations!$S$54:$W$1054,Computations!A146+1,FALSE) -> 450000 | N146: =Computations!$F$15+Computations!$E$15*D146 -> 1049.904059 | O146: =EXP(Computations!$F$16)*EXP(Computations!$E$16)^Computations!D146 -> 1088.140712 | P146: =Computations!$F$17+Computations!$E$17*LN(Computations!D146) -> 880.0111652 | Q146: =Computations!$F$18+Computations!$E$18*Computations!D146+Computations!$D$18*Computations!D146^2 -> 958.1262668 | R146: =Computations!$F$19+Computations!$E$19*Computations!D146+Computations!$D$19*Computations!D146^2+Computations!$C$19*Computations!D146^3 -> 958.1262668 | S146: =Computations!$J$15+Computations!$I$15*D146 -> 450000 | T146: =EXP(Computations!$J$16)*EXP(Computations!$I$16)^Computations!D146 -> 450000 | U146: =Computations!$J$17+Computations!$I$17*LN(Computations!D146) -> 450000 | V146: =Computations!$J$18+Computations!$I$18*Computations!D146+Computations!$H$18*Computations!D146^2 -> 450000 | W146: =Computations!$J$19+Computations!$I$19*Computations!D146+Computations!$H$19*Computations!D146^2+Computations!$G$19*Computations!D146^3 -> 450000
A147: 93 | B147: 0.03793863214 | C147: 0.0382304794 | D147: 0.03808455577 | E147: 0.03069256642 | F147: 0.0009210103609 | G147: 1053.744155 | H147: 450000 | I147: =G147-H147/User_entry!$E$18 -> -446.2558452 | J147: 0 | L147: =HLOOKUP(User_entry!$B$56,Computations!$N$54:$R$1054,Computations!A147+1,FALSE) -> 1053.744155 | M147: =HLOOKUP(User_entry!$E$56,Computations!$S$54:$W$1054,Computations!A147+1,FALSE) -> 450000 | N147: =Computations!$F$15+Computations!$E$15*D147 -> 1053.744155 | O147: =EXP(Computations!$F$16)*EXP(Computations!$E$16)^Computations!D147 -> 1090.398292 | P147: =Computations!$F$17+Computations!$E$17*LN(Computations!D147) -> 889.7842235 | Q147: =Computations!$F$18+Computations!$E$18*Computations!D147+Computations!$D$18*Computations!D147^2 -> 963.6835006 | R147: =Computations!$F$19+Computations!$E$19*Computations!D147+Computations!$D$19*Computations!D147^2+Computations!$C$19*Computations!D147^3 -> 963.6835006 | S147: =Computations!$J$15+Computations!$I$15*D147 -> 450000 | T147: =EXP(Computations!$J$16)*EXP(Computations!$I$16)^Computations!D147 -> 450000 | U147: =Computations!$J$17+Computations!$I$17*LN(Computations!D147) -> 450000 | V147: =Computations!$J$18+Computations!$I$18*Computations!D147+Computations!$H$18*Computations!D147^2 -> 450000 | W147: =Computations!$J$19+Computations!$I$19*Computations!D147+Computations!$H$19*Computations!D147^2+Computations!$G$19*Computations!D147^3 -> 450000
A148: 94 | B148: 0.0382304794 | C148: 0.03852232665 | D148: 0.03837640302 | E148: 0.03163195481 | F148: 0.0009393883902 | G148: 1057.58425 | H148: 450000 | I148: =G148-H148/User_entry!$E$18 -> -442.4157497 | J148: 0 | L148: =HLOOKUP(User_entry!$B$56,Computations!$N$54:$R$1054,Computations!A148+1,FALSE) -> 1057.58425 | M148: =HLOOKUP(User_entry!$E$56,Computations!$S$54:$W$1054,Computations!A148+1,FALSE) -> 450000 | N148: =Computations!$F$15+Computations!$E$15*D148 -> 1057.58425 | O148: =EXP(Computations!$F$16)*EXP(Computations!$E$16)^Computations!D148 -> 1092.660555 | P148: =Computations!$F$17+Computations!$E$17*LN(Computations!D148) -> 899.4826747 | Q148: =Computations!$F$18+Computations!$E$18*Computations!D148+Computations!$D$18*Computations!D148^2 -> 969.234425 | R148: =Computations!$F$19+Computations!$E$19*Computations!D148+Computations!$D$19*Computations!D148^2+Computations!$C$19*Computations!D148^3 -> 969.234425 | S148: =Computations!$J$15+Computations!$I$15*D148 -> 450000 | T148: =EXP(Computations!$J$16)*EXP(Computations!$I$16)^Computations!D148 -> 450000 | U148: =Computations!$J$17+Computations!$I$17*LN(Computations!D148) -> 450000 | V148: =Computations!$J$18+Computations!$I$18*Computations!D148+Computations!$H$18*Computations!D148^2 -> 450000 | W148: =Computations!$J$19+Computations!$I$19*Computations!D148+Computations!$H$19*Computations!D148^2+Computations!$G$19*Computations!D148^3 -> 450000
A149: 95 | B149: 0.03852232665 | C149: 0.03881417391 | D149: 0.03866825028 | E149: 0.03258983294 | F149: 0.0009578781313 | G149: 1061.424346 | H149: 450000 | I149: =G149-H149/User_entry!$E$18 -> -438.5756542 | J149: 0 | L149: =HLOOKUP(User_entry!$B$56,Computations!$N$54:$R$1054,Computations!A149+1,FALSE) -> 1061.424346 | M149: =HLOOKUP(User_entry!$E$56,Computations!$S$54:$W$1054,Computations!A149+1,FALSE) -> 450000 | N149: =Computations!$F$15+Computations!$E$15*D149 -> 1061.424346 | O149: =EXP(Computations!$F$16)*EXP(Computations!$E$16)^Computations!D149 -> 1094.927512 | P149: =Computations!$F$17+Computations!$E$17*LN(Computations!D149) -> 909.1076492 | Q149: =Computations!$F$18+Computations!$E$18*Computations!D149+Computations!$D$18*Computations!D149^2 -> 974.7790402 | R149: =Computations!$F$19+Computations!$E$19*Computations!D149+Computations!$D$19*Computations!D149^2+Computations!$C$19*Computations!D149^3 -> 974.7790402 | S149: =Computations!$J$15+Computations!$I$15*D149 -> 450000 | T149: =EXP(Computations!$J$16)*EXP(Computations!$I$16)^Computations!D149 -> 450000 | U149: =Computations!$J$17+Computations!$I$17*LN(Computations!D149) -> 450000 | V149: =Computations!$J$18+Computations!$I$18*Computations!D149+Computations!$H$18*Computations!D149^2 -> 450000 | W149: =Computations!$J$19+Computations!$I$19*Computations!D149+Computations!$H$19*Computations!D149^2+Computations!$G$19*Computations!D149^3 -> 450000
A150: 96 | B150: 0.03881417391 | C150: 0.03910602117 | D150: 0.03896009754 | E150: 0.03356630863 | F150: 0.0009764756841 | G150: 1065.264441 | H150: 450000 | I150: =G150-H150/User_entry!$E$18 -> -434.7355587 | J150: 0 | L150: =HLOOKUP(User_entry!$B$56,Computations!$N$54:$R$1054,Computations!A150+1,FALSE) -> 1065.264441 | M150: =HLOOKUP(User_entry!$E$56,Computations!$S$54:$W$1054,Computations!A150+1,FALSE) -> 450000 | N150: =Computations!$F$15+Computations!$E$15*D150 -> 1065.264441 | O150: =EXP(Computations!$F$16)*EXP(Computations!$E$16)^Computations!D150 -> 1097.199173 | P150: =Computations!$F$17+Computations!$E$17*LN(Computations!D150) -> 918.6602519 | Q150: =Computations!$F$18+Computations!$E$18*Computations!D150+Computations!$D$18*Computations!D150^2 -> 980.3173462 | R150: =Computations!$F$19+Computations!$E$19*Computations!D150+Computations!$D$19*Computations!D150^2+Computations!$C$19*Computations!D150^3 -> 980.3173462 | S150: =Computations!$J$15+Computations!$I$15*D150 -> 450000 | T150: =EXP(Computations!$J$16)*EXP(Computations!$I$16)^Computations!D150 -> 450000 | U150: =Computations!$J$17+Computations!$I$17*LN(Computations!D150) -> 450000 | V150: =Computations!$J$18+Computations!$I$18*Computations!D150+Computations!$H$18*Computations!D150^2 -> 450000 | W150: =Computations!$J$19+Computations!$I$19*Computations!D150+Computations!$H$19*Computations!D150^2+Computations!$G$19*Computations!D150^3 -> 450000
A151: 97 | B151: 0.03910602117 | C151: 0.03939786842 | D151: 0.0392519448 | E151: 0.03456148575 | F151: 0.0009951771199 | G151: 1069.104537 | H151: 450000 | I151: =G151-H151/User_entry!$E$18 -> -430.8954632 | J151: 0 | L151: =HLOOKUP(User_entry!$B$56,Computations!$N$54:$R$1054,Computations!A151+1,FALSE) -> 1069.104537 | M151: =HLOOKUP(User_entry!$E$56,Computations!$S$54:$W$1054,Computations!A151+1,FALSE) -> 450000 | N151: =Computations!$F$15+Computations!$E$15*D151 -> 1069.104537 | O151: =EXP(Computations!$F$16)*EXP(Computations!$E$16)^Computations!D151 -> 1099.475546 | P151: =Computations!$F$17+Computations!$E$17*LN(Computations!D151) -> 928.1415632 | Q151: =Computations!$F$18+Computations!$E$18*Computations!D151+Computations!$D$18*Computations!D151^2 -> 985.8493429 | R151: =Computations!$F$19+Computations!$E$19*Computations!D151+Computations!$D$19*Computations!D151^2+Computations!$C$19*Computations!D151^3 -> 985.8493429 | S151: =Computations!$J$15+Computations!$I$15*D151 -> 450000 | T151: =EXP(Computations!$J$16)*EXP(Computations!$I$16)^Computations!D151 -> 450000 | U151: =Computations!$J$17+Computations!$I$17*LN(Computations!D151) -> 450000 | V151: =Computations!$J$18+Computations!$I$18*Computations!D151+Computations!$H$18*Computations!D151^2 -> 450000 | W151: =Computations!$J$19+Computations!$I$19*Computations!D151+Computations!$H$19*Computations!D151^2+Computations!$G$19*Computations!D151^3 -> 450000
A152: 98 | B152: 0.03939786842 | C152: 0.03968971568 | D152: 0.03954379205 | E152: 0.03557546423 | F152: 0.001013978483 | G152: 1072.944632 | H152: 450000 | I152: =G152-H152/User_entry!$E$18 -> -427.0553677 | J152: 0 | L152: =HLOOKUP(User_entry!$B$56,Computations!$N$54:$R$1054,Computations!A152+1,FALSE) -> 1072.944632 | M152: =HLOOKUP(User_entry!$E$56,Computations!$S$54:$W$1054,Computations!A152+1,FALSE) -> 450000 | N152: =Computations!$F$15+Computations!$E$15*D152 -> 1072.944632 | O152: =EXP(Computations!$F$16)*EXP(Computations!$E$16)^Computations!D152 -> 1101.756642 | P152: =Computations!$F$17+Computations!$E$17*LN(Computations!D152) -> 937.5526391 | Q152: =Computations!$F$18+Computations!$E$18*Computations!D152+Computations!$D$18*Computations!D152^2 -> 991.3750304 | R152: =Computations!$F$19+Computations!$E$19*Computations!D152+Computations!$D$19*Computations!D152^2+Computations!$C$19*Computations!D152^3 -> 991.3750304 | S152: =Computations!$J$15+Computations!$I$15*D152 -> 450000 | T152: =EXP(Computations!$J$16)*EXP(Computations!$I$16)^Computations!D152 -> 450000 | U152: =Computations!$J$17+Computations!$I$17*LN(Computations!D152) -> 450000 | V152: =Computations!$J$18+Computations!$I$18*Computations!D152+Computations!$H$18*Computations!D152^2 -> 450000 | W152: =Computations!$J$19+Computations!$I$19*Computations!D152+Computations!$H$19*Computations!D152^2+Computations!$G$19*Computations!D152^3 -> 450000
A153: 99 | B153: 0.03968971568 | C153: 0.03998156294 | D153: 0.03983563931 | E153: 0.03660834003 | F153: 0.001032875794 | G153: 1076.784728 | H153: 450000 | I153: =G153-H153/User_entry!$E$18 -> -423.2152722 | J153: 0 | L153: =HLOOKUP(User_entry!$B$56,Computations!$N$54:$R$1054,Computations!A153+1,FALSE) -> 1076.784728 | M153: =HLOOKUP(User_entry!$E$56,Computations!$S$54:$W$1054,Computations!A153+1,FALSE) -> 450000 | N153: =Computations!$F$15+Computations!$E$15*D153 -> 1076.784728 | O153: =EXP(Computations!$F$16)*EXP(Computations!$E$16)^Computations!D153 -> 1104.042471 | P153: =Computations!$F$17+Computations!$E$17*LN(Computations!D153) -> 946.8945127 | Q153: =Computations!$F$18+Computations!$E$18*Computations!D153+Computations!$D$18*Computations!D153^2 -> 996.8944086 | R153: =Computations!$F$19+Computations!$E$19*Computations!D153+Computations!$D$19*Computations!D153^2+Computations!$C$19*Computations!D153^3 -> 996.8944086 | S153: =Computations!$J$15+Computations!$I$15*D153 -> 450000 | T153: =EXP(Computations!$J$16)*EXP(Computations!$I$16)^Computations!D153 -> 450000 | U153: =Computations!$J$17+Computations!$I$17*LN(Computations!D153) -> 450000 | V153: =Computations!$J$18+Computations!$I$18*Computations!D153+Computations!$H$18*Computations!D153^2 -> 450000 | W153: =Computations!$J$19+Computations!$I$19*Computations!D153+Computations!$H$19*Computations!D153^2+Computations!$G$19*Computations!D153^3 -> 450000
A154: 100 | B154: 0.03998156294 | C154: 0.04027341019 | D154: 0.04012748657 | E154: 0.03766020508 | F154: 0.00105186505 | G154: 1080.624823 | H154: 450000 | I154: =G154-H154/User_entry!$E$18 -> -419.3751768 | J154: 0 | L154: =HLOOKUP(User_entry!$B$56,Computations!$N$54:$R$1054,Computations!A154+1,FALSE) -> 1080.624823 | M154: =HLOOKUP(User_entry!$E$56,Computations!$S$54:$W$1054,Computations!A154+1,FALSE) -> 450000 | N154: =Computations!$F$15+Computations!$E$15*D154 -> 1080.624823 | O154: =EXP(Computations!$F$16)*EXP(Computations!$E$16)^Computations!D154 -> 1106.333043 | P154: =Computations!$F$17+Computations!$E$17*LN(Computations!D154) -> 956.1681943 | Q154: =Computations!$F$18+Computations!$E$18*Computations!D154+Computations!$D$18*Computations!D154^2 -> 1002.407478 | R154: =Computations!$F$19+Computations!$E$19*Computations!D154+Computations!$D$19*Computations!D154^2+Computations!$C$19*Computations!D154^3 -> 1002.407478 | S154: =Computations!$J$15+Computations!$I$15*D154 -> 450000 | T154: =EXP(Computations!$J$16)*EXP(Computations!$I$16)^Computations!D154 -> 450000 | U154: =Computations!$J$17+Computations!$I$17*LN(Computations!D154) -> 450000 | V154: =Computations!$J$18+Computations!$I$18*Computations!D154+Computations!$H$18*Computations!D154^2 -> 450000 | W154: =Computations!$J$19+Computations!$I$19*Computations!D154+Computations!$H$19*Computations!D154^2+Computations!$G$19*Computations!D154^3 -> 450000
A155: 101 | B155: 0.04027341019 | C155: 0.04056525745 | D155: 0.04041933382 | E155: 0.0387311473 | F155: 0.001070942228 | G155: 1084.464919 | H155: 450000 | I155: =G155-H155/User_entry!$E$18 -> -415.5350813 | J155: 0 | L155: =HLOOKUP(User_entry!$B$56,Computations!$N$54:$R$1054,Computations!A155+1,FALSE) -> 1084.464919 | M155: =HLOOKUP(User_entry!$E$56,Computations!$S$54:$W$1054,Computations!A155+1,FALSE) -> 450000 | N155: =Computations!$F$15+Computations!$E$15*D155 -> 1084.464919 | O155: =EXP(Computations!$F$16)*EXP(Computations!$E$16)^Computations!D155 -> 1108.628366 | P155: =Computations!$F$17+Computations!$E$17*LN(Computations!D155) -> 965.3746722 | Q155: =Computations!$F$18+Computations!$E$18*Computations!D155+Computations!$D$18*Computations!D155^2 -> 1007.914237 | R155: =Computations!$F$19+Computations!$E$19*Computations!D155+Computations!$D$19*Computations!D155^2+Computations!$C$19*Computations!D155^3 -> 1007.914237 | S155: =Computations!$J$15+Computations!$I$15*D155 -> 450000 | T155: =EXP(Computations!$J$16)*EXP(Computations!$I$16)^Computations!D155 -> 450000 | U155: =Computations!$J$17+Computations!$I$17*LN(Computations!D155) -> 450000 | V155: =Computations!$J$18+Computations!$I$18*Computations!D155+Computations!$H$18*Computations!D155^2 -> 450000 | W155: =Computations!$J$19+Computations!$I$19*Computations!D155+Computations!$H$19*Computations!D155^2+Computations!$G$19*Computations!D155^3 -> 450000
A156: 102 | B156: 0.04056525745 | C156: 0.04085710471 | D156: 0.04071118108 | E156: 0.03982125059 | F156: 0.001090103287 | G156: 1088.305014 | H156: 450000 | I156: =G156-H156/User_entry!$E$18 -> -411.6949858 | J156: 0 | L156: =HLOOKUP(User_entry!$B$56,Computations!$N$54:$R$1054,Computations!A156+1,FALSE) -> 1088.305014 | M156: =HLOOKUP(User_entry!$E$56,Computations!$S$54:$W$1054,Computations!A156+1,FALSE) -> 450000 | N156: =Computations!$F$15+Computations!$E$15*D156 -> 1088.305014 | O156: =EXP(Computations!$F$16)*EXP(Computations!$E$16)^Computations!D156 -> 1110.928452 | P156: =Computations!$F$17+Computations!$E$17*LN(Computations!D156) -> 974.5149134 | Q156: =Computations!$F$18+Computations!$E$18*Computations!D156+Computations!$D$18*Computations!D156^2 -> 1013.414688 | R156: =Computations!$F$19+Computations!$E$19*Computations!D156+Computations!$D$19*Computations!D156^2+Computations!$C$19*Computations!D156^3 -> 1013.414688 | S156: =Computations!$J$15+Computations!$I$15*D156 -> 450000 | T156: =EXP(Computations!$J$16)*EXP(Computations!$I$16)^Computations!D156 -> 450000 | U156: =Computations!$J$17+Computations!$I$17*LN(Computations!D156) -> 450000 | V156: =Computations!$J$18+Computations!$I$18*Computations!D156+Computations!$H$18*Computations!D156^2 -> 450000 | W156: =Computations!$J$19+Computations!$I$19*Computations!D156+Computations!$H$19*Computations!D156^2+Computations!$G$19*Computations!D156^3 -> 450000
A157: 103 | B157: 0.04085710471 | C157: 0.04114895197 | D157: 0.04100302834 | E157: 0.04093059476 | F157: 0.001109344168 | G157: 1092.14511 | H157: 450000 | I157: =G157-H157/User_entry!$E$18 -> -407.8548903 | J157: 0 | L157: =HLOOKUP(User_entry!$B$56,Computations!$N$54:$R$1054,Computations!A157+1,FALSE) -> 1092.14511 | M157: =HLOOKUP(User_entry!$E$56,Computations!$S$54:$W$1054,Computations!A157+1,FALSE) -> 450000 | N157: =Computations!$F$15+Computations!$E$15*D157 -> 1092.14511 | O157: =EXP(Computations!$F$16)*EXP(Computations!$E$16)^Computations!D157 -> 1113.23331 | P157: =Computations!$F$17+Computations!$E$17*LN(Computations!D157) -> 983.5898641 | Q157: =Computations!$F$18+Computations!$E$18*Computations!D157+Computations!$D$18*Computations!D157^2 -> 1018.908829 | R157: =Computations!$F$19+Computations!$E$19*Computations!D157+Computations!$D$19*Computations!D157^2+Computations!$C$19*Computations!D157^3 -> 1018.908829 | S157: =Computations!$J$15+Computations!$I$15*D157 -> 450000 | T157: =EXP(Computations!$J$16)*EXP(Computations!$I$16)^Computations!D157 -> 450000 | U157: =Computations!$J$17+Computations!$I$17*LN(Computations!D157) -> 450000 | V157: =Computations!$J$18+Computations!$I$18*Computations!D157+Computations!$H$18*Computations!D157^2 -> 450000 | W157: =Computations!$J$19+Computations!$I$19*Computations!D157+Computations!$H$19*Computations!D157^2+Computations!$G$19*Computations!D157^3 -> 450000
A158: 104 | B158: 0.04114895197 | C158: 0.04144079922 | D158: 0.04129487559 | E158: 0.04205925556 | F158: 0.001128660797 | G158: 1095.985205 | H158: 450000 | I158: =G158-H158/User_entry!$E$18 -> -404.0147948 | J158: 0 | L158: =HLOOKUP(User_entry!$B$56,Computations!$N$54:$R$1054,Computations!A158+1,FALSE) -> 1095.985205 | M158: =HLOOKUP(User_entry!$E$56,Computations!$S$54:$W$1054,Computations!A158+1,FALSE) -> 450000 | N158: =Computations!$F$15+Computations!$E$15*D158 -> 1095.985205 | O158: =EXP(Computations!$F$16)*EXP(Computations!$E$16)^Computations!D158 -> 1115.54295 | P158: =Computations!$F$17+Computations!$E$17*LN(Computations!D158) -> 992.6004506 | Q158: =Computations!$F$18+Computations!$E$18*Computations!D158+Computations!$D$18*Computations!D158^2 -> 1024.396661 | R158: =Computations!$F$19+Computations!$E$19*Computations!D158+Computations!$D$19*Computations!D158^2+Computations!$C$19*Computations!D158^3 -> 1024.396661 | S158: =Computations!$J$15+Computations!$I$15*D158 -> 450000 | T158: =EXP(Computations!$J$16)*EXP(Computations!$I$16)^Computations!D158 -> 450000 | U158: =Computations!$J$17+Computations!$I$17*LN(Computations!D158) -> 450000 | V158: =Computations!$J$18+Computations!$I$18*Computations!D158+Computations!$H$18*Computations!D158^2 -> 450000 | W158: =Computations!$J$19+Computations!$I$19*Computations!D158+Computations!$H$19*Computations!D158^2+Computations!$G$19*Computations!D158^3 -> 450000
A159: 105 | B159: 0.04144079922 | C159: 0.04173264648 | D159: 0.04158672285 | E159: 0.04320730465 | F159: 0.001148049091 | G159: 1099.825301 | H159: 450000 | I159: =G159-H159/User_entry!$E$18 -> -400.1746993 | J159: 0 | L159: =HLOOKUP(User_entry!$B$56,Computations!$N$54:$R$1054,Computations!A159+1,FALSE) -> 1099.825301 | M159: =HLOOKUP(User_entry!$E$56,Computations!$S$54:$W$1054,Computations!A159+1,FALSE) -> 450000 | N159: =Computations!$F$15+Computations!$E$15*D159 -> 1099.825301 | O159: =EXP(Computations!$F$16)*EXP(Computations!$E$16)^Computations!D159 -> 1117.857381 | P159: =Computations!$F$17+Computations!$E$17*LN(Computations!D159) -> 1001.547579 | Q159: =Computations!$F$18+Computations!$E$18*Computations!D159+Computations!$D$18*Computations!D159^2 -> 1029.878184 | R159: =Computations!$F$19+Computations!$E$19*Computations!D159+Computations!$D$19*Computations!D159^2+Computations!$C$19*Computations!D159^3 -> 1029.878184 | S159: =Computations!$J$15+Computations!$I$15*D159 -> 450000 | T159: =EXP(Computations!$J$16)*EXP(Computations!$I$16)^Computations!D159 -> 450000 | U159: =Computations!$J$17+Computations!$I$17*LN(Computations!D159) -> 450000 | V159: =Computations!$J$18+Computations!$I$18*Computations!D159+Computations!$H$18*Computations!D159^2 -> 450000 | W159: =Computations!$J$19+Computations!$I$19*Computations!D159+Computations!$H$19*Computations!D159^2+Computations!$G$19*Computations!D159^3 -> 450000
A160: 106 | B160: 0.04173264648 | C160: 0.04202449374 | D160: 0.04187857011 | E160: 0.0443748096 | F160: 0.001167504952 | G160: 1103.665396 | H160: 450000 | I160: =G160-H160/User_entry!$E$18 -> -396.3346038 | J160: 0 | L160: =HLOOKUP(User_entry!$B$56,Computations!$N$54:$R$1054,Computations!A160+1,FALSE) -> 1103.665396 | M160: =HLOOKUP(User_entry!$E$56,Computations!$S$54:$W$1054,Computations!A160+1,FALSE) -> 450000 | N160: =Computations!$F$15+Computations!$E$15*D160 -> 1103.665396 | O160: =EXP(Computations!$F$16)*EXP(Computations!$E$16)^Computations!D160 -> 1120.176614 | P160: =Computations!$F$17+Computations!$E$17*LN(Computations!D160) -> 1010.432138 | Q160: =Computations!$F$18+Computations!$E$18*Computations!D160+Computations!$D$18*Computations!D160^2 -> 1035.353397 | R160: =Computations!$F$19+Computations!$E$19*Computations!D160+Computations!$D$19*Computations!D160^2+Computations!$C$19*Computations!D160^3 -> 1035.353397 | S160: =Computations!$J$15+Computations!$I$15*D160 -> 450000 | T160: =EXP(Computations!$J$16)*EXP(Computations!$I$16)^Computations!D160 -> 450000 | U160: =Computations!$J$17+Computations!$I$17*LN(Computations!D160) -> 450000 | V160: =Computations!$J$18+Computations!$I$18*Computations!D160+Computations!$H$18*Computations!D160^2 -> 450000 | W160: =Computations!$J$19+Computations!$I$19*Computations!D160+Computations!$H$19*Computations!D160^2+Computations!$G$19*Computations!D160^3 -> 450000
A161: 107 | B161: 0.04202449374 | C161: 0.04231634099 | D161: 0.04217041737 | E161: 0.04556183387 | F161: 0.001187024274 | G161: 1107.505492 | H161: 450000 | I161: =G161-H161/User_entry!$E$18 -> -392.4945084 | J161: 0 | L161: =HLOOKUP(User_entry!$B$56,Computations!$N$54:$R$1054,Computations!A161+1,FALSE) -> 1107.505492 | M161: =HLOOKUP(User_entry!$E$56,Computations!$S$54:$W$1054,Computations!A161+1,FALSE) -> 450000 | N161: =Computations!$F$15+Computations!$E$15*D161 -> 1107.505492 | O161: =EXP(Computations!$F$16)*EXP(Computations!$E$16)^Computations!D161 -> 1122.50066 | P161: =Computations!$F$17+Computations!$E$17*LN(Computations!D161) -> 1019.254996 | Q161: =Computations!$F$18+Computations!$E$18*Computations!D161+Computations!$D$18*Computations!D161^2 -> 1040.822302 | R161: =Computations!$F$19+Computations!$E$19*Computations!D161+Computations!$D$19*Computations!D161^2+Computations!$C$19*Computations!D161^3 -> 1040.822302 | S161: =Computations!$J$15+Computations!$I$15*D161 -> 450000 | T161: =EXP(Computations!$J$16)*EXP(Computations!$I$16)^Computations!D161 -> 450000 | U161: =Computations!$J$17+Computations!$I$17*LN(Computations!D161) -> 450000 | V161: =Computations!$J$18+Computations!$I$18*Computations!D161+Computations!$H$18*Computations!D161^2 -> 450000 | W161: =Computations!$J$19+Computations!$I$19*Computations!D161+Computations!$H$19*Computations!D161^2+Computations!$G$19*Computations!D161^3 -> 450000
A162: 108 | B162: 0.04231634099 | C162: 0.04260818825 | D162: 0.04246226462 | E162: 0.04676843682 | F162: 0.001206602945 | G162: 1111.345587 | H162: 450000 | I162: =G162-H162/User_entry!$E$18 -> -388.6544129 | J162: 0 | L162: =HLOOKUP(User_entry!$B$56,Computations!$N$54:$R$1054,Computations!A162+1,FALSE) -> 1111.345587 | M162: =HLOOKUP(User_entry!$E$56,Computations!$S$54:$W$1054,Computations!A162+1,FALSE) -> 450000 | N162: =Computations!$F$15+Computations!$E$15*D162 -> 1111.345587 | O162: =EXP(Computations!$F$16)*EXP(Computations!$E$16)^Computations!D162 -> 1124.829526 | P162: =Computations!$F$17+Computations!$E$17*LN(Computations!D162) -> 1028.017004 | Q162: =Computations!$F$18+Computations!$E$18*Computations!D162+Computations!$D$18*Computations!D162^2 -> 1046.284897 | R162: =Computations!$F$19+Computations!$E$19*Computations!D162+Computations!$D$19*Computations!D162^2+Computations!$C$19*Computations!D162^3 -> 1046.284897 | S162: =Computations!$J$15+Computations!$I$15*D162 -> 450000 | T162: =EXP(Computations!$J$16)*EXP(Computations!$I$16)^Computations!D162 -> 450000 | U162: =Computations!$J$17+Computations!$I$17*LN(Computations!D162) -> 450000 | V162: =Computations!$J$18+Computations!$I$18*Computations!D162+Computations!$H$18*Computations!D162^2 -> 450000 | W162: =Computations!$J$19+Computations!$I$19*Computations!D162+Computations!$H$19*Computations!D162^2+Computations!$G$19*Computations!D162^3 -> 450000
A163: 109 | B163: 0.04260818825 | C163: 0.04290003551 | D163: 0.04275411188 | E163: 0.04799467367 | F163: 0.001226236848 | G163: 1115.185683 | H163: 450000 | I163: =G163-H163/User_entry!$E$18 -> -384.8143174 | J163: 0 | L163: =HLOOKUP(User_entry!$B$56,Computations!$N$54:$R$1054,Computations!A163+1,FALSE) -> 1115.185683 | M163: =HLOOKUP(User_entry!$E$56,Computations!$S$54:$W$1054,Computations!A163+1,FALSE) -> 450000 | N163: =Computations!$F$15+Computations!$E$15*D163 -> 1115.185683 | O163: =EXP(Computations!$F$16)*EXP(Computations!$E$16)^Computations!D163 -> 1127.163225 | P163: =Computations!$F$17+Computations!$E$17*LN(Computations!D163) -> 1036.718995 | Q163: =Computations!$F$18+Computations!$E$18*Computations!D163+Computations!$D$18*Computations!D163^2 -> 1051.741182 | R163: =Computations!$F$19+Computations!$E$19*Computations!D163+Computations!$D$19*Computations!D163^2+Computations!$C$19*Computations!D163^3 -> 1051.741182 | S163: =Computations!$J$15+Computations!$I$15*D163 -> 450000 | T163: =EXP(Computations!$J$16)*EXP(Computations!$I$16)^Computations!D163 -> 450000 | U163: =Computations!$J$17+Computations!$I$17*LN(Computations!D163) -> 450000 | V163: =Computations!$J$18+Computations!$I$18*Computations!D163+Computations!$H$18*Computations!D163^2 -> 450000 | W163: =Computations!$J$19+Computations!$I$19*Computations!D163+Computations!$H$19*Computations!D163^2+Computations!$G$19*Computations!D163^3 -> 450000
A164: 110 | B164: 0.04290003551 | C164: 0.04319188276 | D164: 0.04304595914 | E164: 0.04924059553 | F164: 0.00124592186 | G164: 1119.025778 | H164: 450000 | I164: =G164-H164/User_entry!$E$18 -> -380.9742219 | J164: 0 | L164: =HLOOKUP(User_entry!$B$56,Computations!$N$54:$R$1054,Computations!A164+1,FALSE) -> 1119.025778 | M164: =HLOOKUP(User_entry!$E$56,Computations!$S$54:$W$1054,Computations!A164+1,FALSE) -> 450000 | N164: =Computations!$F$15+Computations!$E$15*D164 -> 1119.025778 | O164: =EXP(Computations!$F$16)*EXP(Computations!$E$16)^Computations!D164 -> 1129.501765 | P164: =Computations!$F$17+Computations!$E$17*LN(Computations!D164) -> 1045.361787 | Q164: =Computations!$F$18+Computations!$E$18*Computations!D164+Computations!$D$18*Computations!D164^2 -> 1057.191159 | R164: =Computations!$F$19+Computations!$E$19*Computations!D164+Computations!$D$19*Computations!D164^2+Computations!$C$19*Computations!D164^3 -> 1057.191159 | S164: =Computations!$J$15+Computations!$I$15*D164 -> 450000 | T164: =EXP(Computations!$J$16)*EXP(Computations!$I$16)^Computations!D164 -> 450000 | U164: =Computations!$J$17+Computations!$I$17*LN(Computations!D164) -> 450000 | V164: =Computations!$J$18+Computations!$I$18*Computations!D164+Computations!$H$18*Computations!D164^2 -> 450000 | W164: =Computations!$J$19+Computations!$I$19*Computations!D164+Computations!$H$19*Computations!D164^2+Computations!$G$19*Computations!D164^3 -> 450000
A165: 111 | B165: 0.04319188276 | C165: 0.04348373002 | D165: 0.04333780639 | E165: 0.05050624938 | F165: 0.001265653858 | G165: 1122.865874 | H165: 450000 | I165: =G165-H165/User_entry!$E$18 -> -377.1341264 | J165: 0 | L165: =HLOOKUP(User_entry!$B$56,Computations!$N$54:$R$1054,Computations!A165+1,FALSE) -> 1122.865874 | M165: =HLOOKUP(User_entry!$E$56,Computations!$S$54:$W$1054,Computations!A165+1,FALSE) -> 450000 | N165: =Computations!$F$15+Computations!$E$15*D165 -> 1122.865874 | O165: =EXP(Computations!$F$16)*EXP(Computations!$E$16)^Computations!D165 -> 1131.845157 | P165: =Computations!$F$17+Computations!$E$17*LN(Computations!D165) -> 1053.946178 | Q165: =Computations!$F$18+Computations!$E$18*Computations!D165+Computations!$D$18*Computations!D165^2 -> 1062.634826 | R165: =Computations!$F$19+Computations!$E$19*Computations!D165+Computations!$D$19*Computations!D165^2+Computations!$C$19*Computations!D165^3 -> 1062.634826 | S165: =Computations!$J$15+Computations!$I$15*D165 -> 450000 | T165: =EXP(Computations!$J$16)*EXP(Computations!$I$16)^Computations!D165 -> 450000 | U165: =Computations!$J$17+Computations!$I$17*LN(Computations!D165) -> 450000 | V165: =Computations!$J$18+Computations!$I$18*Computations!D165+Computations!$H$18*Computations!D165^2 -> 450000 | W165: =Computations!$J$19+Computations!$I$19*Computations!D165+Computations!$H$19*Computations!D165^2+Computations!$G$19*Computations!D165^3 -> 450000
A166: 112 | B166: 0.04348373002 | C166: 0.04377557728 | D166: 0.04362965365 | E166: 0.0517916781 | F166: 0.001285428719 | G166: 1126.705969 | H166: 450000 | I166: =G166-H166/User_entry!$E$18 -> -373.2940309 | J166: 0 | L166: =HLOOKUP(User_entry!$B$56,Computations!$N$54:$R$1054,Computations!A166+1,FALSE) -> 1126.705969 | M166: =HLOOKUP(User_entry!$E$56,Computations!$S$54:$W$1054,Computations!A166+1,FALSE) -> 450000 | N166: =Computations!$F$15+Computations!$E$15*D166 -> 1126.705969 | O166: =EXP(Computations!$F$16)*EXP(Computations!$E$16)^Computations!D166 -> 1134.193411 | P166: =Computations!$F$17+Computations!$E$17*LN(Computations!D166) -> 1062.472955 | Q166: =Computations!$F$18+Computations!$E$18*Computations!D166+Computations!$D$18*Computations!D166^2 -> 1068.072184 | R166: =Computations!$F$19+Computations!$E$19*Computations!D166+Computations!$D$19*Computations!D166^2+Computations!$C$19*Computations!D166^3 -> 1068.072184 | S166: =Computations!$J$15+Computations!$I$15*D166 -> 450000 | T166: =EXP(Computations!$J$16)*EXP(Computations!$I$16)^Computations!D166 -> 450000 | U166: =Computations!$J$17+Computations!$I$17*LN(Computations!D166) -> 450000 | V166: =Computations!$J$18+Computations!$I$18*Computations!D166+Computations!$H$18*Computations!D166^2 -> 450000 | W166: =Computations!$J$19+Computations!$I$19*Computations!D166+Computations!$H$19*Computations!D166^2+Computations!$G$19*Computations!D166^3 -> 450000
A167: 113 | B167: 0.04377557728 | C167: 0.04406742454 | D167: 0.04392150091 | E167: 0.05309692042 | F167: 0.001305242321 | G167: 1130.546065 | H167: 450000 | I167: =G167-H167/User_entry!$E$18 -> -369.4539354 | J167: 0 | L167: =HLOOKUP(User_entry!$B$56,Computations!$N$54:$R$1054,Computations!A167+1,FALSE) -> 1130.546065 | M167: =HLOOKUP(User_entry!$E$56,Computations!$S$54:$W$1054,Computations!A167+1,FALSE) -> 450000 | N167: =Computations!$F$15+Computations!$E$15*D167 -> 1130.546065 | O167: =EXP(Computations!$F$16)*EXP(Computations!$E$16)^Computations!D167 -> 1136.546537 | P167: =Computations!$F$17+Computations!$E$17*LN(Computations!D167) -> 1070.942883 | Q167: =Computations!$F$18+Computations!$E$18*Computations!D167+Computations!$D$18*Computations!D167^2 -> 1073.503233 | R167: =Computations!$F$19+Computations!$E$19*Computations!D167+Computations!$D$19*Computations!D167^2+Computations!$C$19*Computations!D167^3 -> 1073.503233 | S167: =Computations!$J$15+Computations!$I$15*D167 -> 450000 | T167: =EXP(Computations!$J$16)*EXP(Computations!$I$16)^Computations!D167 -> 450000 | U167: =Computations!$J$17+Computations!$I$17*LN(Computations!D167) -> 450000 | V167: =Computations!$J$18+Computations!$I$18*Computations!D167+Computations!$H$18*Computations!D167^2 -> 450000 | W167: =Computations!$J$19+Computations!$I$19*Computations!D167+Computations!$H$19*Computations!D167^2+Computations!$G$19*Computations!D167^3 -> 450000
A168: 114 | B168: 0.04406742454 | C168: 0.04435927179 | D168: 0.04421334816 | E168: 0.05442201097 | F168: 0.001325090545 | G168: 1134.38616 | H168: 450000 | I168: =G168-H168/User_entry!$E$18 -> -365.61384 | J168: 0 | L168: =HLOOKUP(User_entry!$B$56,Computations!$N$54:$R$1054,Computations!A168+1,FALSE) -> 1134.38616 | M168: =HLOOKUP(User_entry!$E$56,Computations!$S$54:$W$1054,Computations!A168+1,FALSE) -> 450000 | N168: =Computations!$F$15+Computations!$E$15*D168 -> 1134.38616 | O168: =EXP(Computations!$F$16)*EXP(Computations!$E$16)^Computations!D168 -> 1138.904545 | P168: =Computations!$F$17+Computations!$E$17*LN(Computations!D168) -> 1079.356717 | Q168: =Computations!$F$18+Computations!$E$18*Computations!D168+Computations!$D$18*Computations!D168^2 -> 1078.927973 | R168: =Computations!$F$19+Computations!$E$19*Computations!D168+Computations!$D$19*Computations!D168^2+Computations!$C$19*Computations!D168^3 -> 1078.927973 | S168: =Computations!$J$15+Computations!$I$15*D168 -> 450000 | T168: =EXP(Computations!$J$16)*EXP(Computations!$I$16)^Computations!D168 -> 450000 | U168: =Computations!$J$17+Computations!$I$17*LN(Computations!D168) -> 450000 | V168: =Computations!$J$18+Computations!$I$18*Computations!D168+Computations!$H$18*Computations!D168^2 -> 450000 | W168: =Computations!$J$19+Computations!$I$19*Computations!D168+Computations!$H$19*Computations!D168^2+Computations!$G$19*Computations!D168^3 -> 450000
A169: 115 | B169: 0.04435927179 | C169: 0.04465111905 | D169: 0.04450519542 | E169: 0.05576698025 | F169: 0.001344969278 | G169: 1138.226256 | H169: 450000 | I169: =G169-H169/User_entry!$E$18 -> -361.7737445 | J169: 0 | L169: =HLOOKUP(User_entry!$B$56,Computations!$N$54:$R$1054,Computations!A169+1,FALSE) -> 1138.226256 | M169: =HLOOKUP(User_entry!$E$56,Computations!$S$54:$W$1054,Computations!A169+1,FALSE) -> 450000 | N169: =Computations!$F$15+Computations!$E$15*D169 -> 1138.226256 | O169: =EXP(Computations!$F$16)*EXP(Computations!$E$16)^Computations!D169 -> 1141.267445 | P169: =Computations!$F$17+Computations!$E$17*LN(Computations!D169) -> 1087.715194 | Q169: =Computations!$F$18+Computations!$E$18*Computations!D169+Computations!$D$18*Computations!D169^2 -> 1084.346403 | R169: =Computations!$F$19+Computations!$E$19*Computations!D169+Computations!$D$19*Computations!D169^2+Computations!$C$19*Computations!D169^3 -> 1084.346403 | S169: =Computations!$J$15+Computations!$I$15*D169 -> 450000 | T169: =EXP(Computations!$J$16)*EXP(Computations!$I$16)^Computations!D169 -> 450000 | U169: =Computations!$J$17+Computations!$I$17*LN(Computations!D169) -> 450000 | V169: =Computations!$J$18+Computations!$I$18*Computations!D169+Computations!$H$18*Computations!D169^2 -> 450000 | W169: =Computations!$J$19+Computations!$I$19*Computations!D169+Computations!$H$19*Computations!D169^2+Computations!$G$19*Computations!D169^3 -> 450000
A170: 116 | B170: 0.04465111905 | C170: 0.04494296631 | D170: 0.04479704268 | E170: 0.05713185466 | F170: 0.001364874413 | G170: 1142.066351 | H170: 450000 | I170: =G170-H170/User_entry!$E$18 -> -357.933649 | J170: 0 | L170: =HLOOKUP(User_entry!$B$56,Computations!$N$54:$R$1054,Computations!A170+1,FALSE) -> 1142.066351 | M170: =HLOOKUP(User_entry!$E$56,Computations!$S$54:$W$1054,Computations!A170+1,FALSE) -> 450000 | N170: =Computations!$F$15+Computations!$E$15*D170 -> 1142.066351 | O170: =EXP(Computations!$F$16)*EXP(Computations!$E$16)^Computations!D170 -> 1143.635248 | P170: =Computations!$F$17+Computations!$E$17*LN(Computations!D170) -> 1096.019039 | Q170: =Computations!$F$18+Computations!$E$18*Computations!D170+Computations!$D$18*Computations!D170^2 -> 1089.758524 | R170: =Computations!$F$19+Computations!$E$19*Computations!D170+Computations!$D$19*Computations!D170^2+Computations!$C$19*Computations!D170^3 -> 1089.758524 | S170: =Computations!$J$15+Computations!$I$15*D170 -> 450000 | T170: =EXP(Computations!$J$16)*EXP(Computations!$I$16)^Computations!D170 -> 450000 | U170: =Computations!$J$17+Computations!$I$17*LN(Computations!D170) -> 450000 | V170: =Computations!$J$18+Computations!$I$18*Computations!D170+Computations!$H$18*Computations!D170^2 -> 450000 | W170: =Computations!$J$19+Computations!$I$19*Computations!D170+Computations!$H$19*Computations!D170^2+Computations!$G$19*Computations!D170^3 -> 450000
A171: 117 | B171: 0.04494296631 | C171: 0.04523481356 | D171: 0.04508888993 | E171: 0.05851665651 | F171: 0.001384801851 | G171: 1145.906447 | H171: 450000 | I171: =G171-H171/User_entry!$E$18 -> -354.0935535 | J171: 0 | L171: =HLOOKUP(User_entry!$B$56,Computations!$N$54:$R$1054,Computations!A171+1,FALSE) -> 1145.906447 | M171: =HLOOKUP(User_entry!$E$56,Computations!$S$54:$W$1054,Computations!A171+1,FALSE) -> 450000 | N171: =Computations!$F$15+Computations!$E$15*D171 -> 1145.906447 | O171: =EXP(Computations!$F$16)*EXP(Computations!$E$16)^Computations!D171 -> 1146.007963 | P171: =Computations!$F$17+Computations!$E$17*LN(Computations!D171) -> 1104.268961 | Q171: =Computations!$F$18+Computations!$E$18*Computations!D171+Computations!$D$18*Computations!D171^2 -> 1095.164336 | R171: =Computations!$F$19+Computations!$E$19*Computations!D171+Computations!$D$19*Computations!D171^2+Computations!$C$19*Computations!D171^3 -> 1095.164336 | S171: =Computations!$J$15+Computations!$I$15*D171 -> 450000 | T171: =EXP(Computations!$J$16)*EXP(Computations!$I$16)^Computations!D171 -> 450000 | U171: =Computations!$J$17+Computations!$I$17*LN(Computations!D171) -> 450000 | V171: =Computations!$J$18+Computations!$I$18*Computations!D171+Computations!$H$18*Computations!D171^2 -> 450000 | W171: =Computations!$J$19+Computations!$I$19*Computations!D171+Computations!$H$19*Computations!D171^2+Computations!$G$19*Computations!D171^3 -> 450000
A172: 118 | B172: 0.04523481356 | C172: 0.04552666082 | D172: 0.04538073719 | E172: 0.05992140401 | F172: 0.001404747503 | G172: 1149.746542 | H172: 450000 | I172: =G172-H172/User_entry!$E$18 -> -350.253458 | J172: 0 | L172: =HLOOKUP(User_entry!$B$56,Computations!$N$54:$R$1054,Computations!A172+1,FALSE) -> 1149.746542 | M172: =HLOOKUP(User_entry!$E$56,Computations!$S$54:$W$1054,Computations!A172+1,FALSE) -> 450000 | N172: =Computations!$F$15+Computations!$E$15*D172 -> 1149.746542 | O172: =EXP(Computations!$F$16)*EXP(Computations!$E$16)^Computations!D172 -> 1148.3856 | P172: =Computations!$F$17+Computations!$E$17*LN(Computations!D172) -> 1112.465655 | Q172: =Computations!$F$18+Computations!$E$18*Computations!D172+Computations!$D$18*Computations!D172^2 -> 1100.563838 | R172: =Computations!$F$19+Computations!$E$19*Computations!D172+Computations!$D$19*Computations!D172^2+Computations!$C$19*Computations!D172^3 -> 1100.563838 | S172: =Computations!$J$15+Computations!$I$15*D172 -> 450000 | T172: =EXP(Computations!$J$16)*EXP(Computations!$I$16)^Computations!D172 -> 450000 | U172: =Computations!$J$17+Computations!$I$17*LN(Computations!D172) -> 450000 | V172: =Computations!$J$18+Computations!$I$18*Computations!D172+Computations!$H$18*Computations!D172^2 -> 450000 | W172: =Computations!$J$19+Computations!$I$19*Computations!D172+Computations!$H$19*Computations!D172^2+Computations!$G$19*Computations!D172^3 -> 450000
A173: 119 | B173: 0.04552666082 | C173: 0.04581850808 | D173: 0.04567258445 | E173: 0.06134611131 | F173: 0.001424707291 | G173: 1153.586637 | H173: 450000 | I173: =G173-H173/User_entry!$E$18 -> -346.4133625 | J173: 0 | L173: =HLOOKUP(User_entry!$B$56,Computations!$N$54:$R$1054,Computations!A173+1,FALSE) -> 1153.586637 | M173: =HLOOKUP(User_entry!$E$56,Computations!$S$54:$W$1054,Computations!A173+1,FALSE) -> 450000 | N173: =Computations!$F$15+Computations!$E$15*D173 -> 1153.586637 | O173: =EXP(Computations!$F$16)*EXP(Computations!$E$16)^Computations!D173 -> 1150.768171 | P173: =Computations!$F$17+Computations!$E$17*LN(Computations!D173) -> 1120.609803 | Q173: =Computations!$F$18+Computations!$E$18*Computations!D173+Computations!$D$18*Computations!D173^2 -> 1105.957032 | R173: =Computations!$F$19+Computations!$E$19*Computations!D173+Computations!$D$19*Computations!D173^2+Computations!$C$19*Computations!D173^3 -> 1105.957032 | S173: =Computations!$J$15+Computations!$I$15*D173 -> 450000 | T173: =EXP(Computations!$J$16)*EXP(Computations!$I$16)^Computations!D173 -> 450000 | U173: =Computations!$J$17+Computations!$I$17*LN(Computations!D173) -> 450000 | V173: =Computations!$J$18+Computations!$I$18*Computations!D173+Computations!$H$18*Computations!D173^2 -> 450000 | W173: =Computations!$J$19+Computations!$I$19*Computations!D173+Computations!$H$19*Computations!D173^2+Computations!$G$19*Computations!D173^3 -> 450000
A174: 120 | B174: 0.04581850808 | C174: 0.04611035533 | D174: 0.04596443171 | E174: 0.06279078846 | F174: 0.00144467715 | G174: 1157.426733 | H174: 450000 | I174: =G174-H174/User_entry!$E$18 -> -342.573267 | J174: 0 | L174: =HLOOKUP(User_entry!$B$56,Computations!$N$54:$R$1054,Computations!A174+1,FALSE) -> 1157.426733 | M174: =HLOOKUP(User_entry!$E$56,Computations!$S$54:$W$1054,Computations!A174+1,FALSE) -> 450000 | N174: =Computations!$F$15+Computations!$E$15*D174 -> 1157.426733 | O174: =EXP(Computations!$F$16)*EXP(Computations!$E$16)^Computations!D174 -> 1153.155685 | P174: =Computations!$F$17+Computations!$E$17*LN(Computations!D174) -> 1128.702077 | Q174: =Computations!$F$18+Computations!$E$18*Computations!D174+Computations!$D$18*Computations!D174^2 -> 1111.343916 | R174: =Computations!$F$19+Computations!$E$19*Computations!D174+Computations!$D$19*Computations!D174^2+Computations!$C$19*Computations!D174^3 -> 1111.343916 | S174: =Computations!$J$15+Computations!$I$15*D174 -> 450000 | T174: =EXP(Computations!$J$16)*EXP(Computations!$I$16)^Computations!D174 -> 450000 | U174: =Computations!$J$17+Computations!$I$17*LN(Computations!D174) -> 450000 | V174: =Computations!$J$18+Computations!$I$18*Computations!D174+Computations!$H$18*Computations!D174^2 -> 450000 | W174: =Computations!$J$19+Computations!$I$19*Computations!D174+Computations!$H$19*Computations!D174^2+Computations!$G$19*Computations!D174^3 -> 450000
A175: 121 | B175: 0.04611035533 | C175: 0.04640220259 | D175: 0.04625627896 | E175: 0.06425544148 | F175: 0.001464653028 | G175: 1161.266828 | H175: 450000 | I175: =G175-H175/User_entry!$E$18 -> -338.7331716 | J175: 0 | L175: =HLOOKUP(User_entry!$B$56,Computations!$N$54:$R$1054,Computations!A175+1,FALSE) -> 1161.266828 | M175: =HLOOKUP(User_entry!$E$56,Computations!$S$54:$W$1054,Computations!A175+1,FALSE) -> 450000 | N175: =Computations!$F$15+Computations!$E$15*D175 -> 1161.266828 | O175: =EXP(Computations!$F$16)*EXP(Computations!$E$16)^Computations!D175 -> 1155.548152 | P175: =Computations!$F$17+Computations!$E$17*LN(Computations!D175) -> 1136.743131 | Q175: =Computations!$F$18+Computations!$E$18*Computations!D175+Computations!$D$18*Computations!D175^2 -> 1116.724491 | R175: =Computations!$F$19+Computations!$E$19*Computations!D175+Computations!$D$19*Computations!D175^2+Computations!$C$19*Computations!D175^3 -> 1116.724491 | S175: =Computations!$J$15+Computations!$I$15*D175 -> 450000 | T175: =EXP(Computations!$J$16)*EXP(Computations!$I$16)^Computations!D175 -> 450000 | U175: =Computations!$J$17+Computations!$I$17*LN(Computations!D175) -> 450000 | V175: =Computations!$J$18+Computations!$I$18*Computations!D175+Computations!$H$18*Computations!D175^2 -> 450000 | W175: =Computations!$J$19+Computations!$I$19*Computations!D175+Computations!$H$19*Computations!D175^2+Computations!$G$19*Computations!D175^3 -> 450000
A176: 122 | B176: 0.04640220259 | C176: 0.04669404985 | D176: 0.04654812622 | E176: 0.06574007237 | F176: 0.00148463089 | G176: 1165.106924 | H176: 450000 | I176: =G176-H176/User_entry!$E$18 -> -334.8930761 | J176: 0 | L176: =HLOOKUP(User_entry!$B$56,Computations!$N$54:$R$1054,Computations!A176+1,FALSE) -> 1165.106924 | M176: =HLOOKUP(User_entry!$E$56,Computations!$S$54:$W$1054,Computations!A176+1,FALSE) -> 450000 | N176: =Computations!$F$15+Computations!$E$15*D176 -> 1165.106924 | O176: =EXP(Computations!$F$16)*EXP(Computations!$E$16)^Computations!D176 -> 1157.945583 | P176: =Computations!$F$17+Computations!$E$17*LN(Computations!D176) -> 1144.733611 | Q176: =Computations!$F$18+Computations!$E$18*Computations!D176+Computations!$D$18*Computations!D176^2 -> 1122.098756 | R176: =Computations!$F$19+Computations!$E$19*Computations!D176+Computations!$D$19*Computations!D176^2+Computations!$C$19*Computations!D176^3 -> 1122.098756 | S176: =Computations!$J$15+Computations!$I$15*D176 -> 450000 | T176: =EXP(Computations!$J$16)*EXP(Computations!$I$16)^Computations!D176 -> 450000 | U176: =Computations!$J$17+Computations!$I$17*LN(Computations!D176) -> 450000 | V176: =Computations!$J$18+Computations!$I$18*Computations!D176+Computations!$H$18*Computations!D176^2 -> 450000 | W176: =Computations!$J$19+Computations!$I$19*Computations!D176+Computations!$H$19*Computations!D176^2+Computations!$G$19*Computations!D176^3 -> 450000
A177: 123 | B177: 0.04669404985 | C177: 0.0469858971 | D177: 0.04683997348 | E177: 0.06724467909 | F177: 0.001504606718 | G177: 1168.947019 | H177: 450000 | I177: =G177-H177/User_entry!$E$18 -> -331.0529806 | J177: 0 | L177: =HLOOKUP(User_entry!$B$56,Computations!$N$54:$R$1054,Computations!A177+1,FALSE) -> 1168.947019 | M177: =HLOOKUP(User_entry!$E$56,Computations!$S$54:$W$1054,Computations!A177+1,FALSE) -> 450000 | N177: =Computations!$F$15+Computations!$E$15*D177 -> 1168.947019 | O177: =EXP(Computations!$F$16)*EXP(Computations!$E$16)^Computations!D177 -> 1160.347988 | P177: =Computations!$F$17+Computations!$E$17*LN(Computations!D177) -> 1152.674148 | Q177: =Computations!$F$18+Computations!$E$18*Computations!D177+Computations!$D$18*Computations!D177^2 -> 1127.466712 | R177: =Computations!$F$19+Computations!$E$19*Computations!D177+Computations!$D$19*Computations!D177^2+Computations!$C$19*Computations!D177^3 -> 1127.466712 | S177: =Computations!$J$15+Computations!$I$15*D177 -> 450000 | T177: =EXP(Computations!$J$16)*EXP(Computations!$I$16)^Computations!D177 -> 450000 | U177: =Computations!$J$17+Computations!$I$17*LN(Computations!D177) -> 450000 | V177: =Computations!$J$18+Computations!$I$18*Computations!D177+Computations!$H$18*Computations!D177^2 -> 450000 | W177: =Computations!$J$19+Computations!$I$19*Computations!D177+Computations!$H$19*Computations!D177^2+Computations!$G$19*Computations!D177^3 -> 450000
A178: 124 | B178: 0.0469858971 | C178: 0.04727774436 | D178: 0.04713182073 | E178: 0.0687692556 | F178: 0.001524576512 | G178: 1172.787115 | H178: 450000 | I178: =G178-H178/User_entry!$E$18 -> -327.2128851 | J178: 0 | L178: =HLOOKUP(User_entry!$B$56,Computations!$N$54:$R$1054,Computations!A178+1,FALSE) -> 1172.787115 | M178: =HLOOKUP(User_entry!$E$56,Computations!$S$54:$W$1054,Computations!A178+1,FALSE) -> 450000 | N178: =Computations!$F$15+Computations!$E$15*D178 -> 1172.787115 | O178: =EXP(Computations!$F$16)*EXP(Computations!$E$16)^Computations!D178 -> 1162.755377 | P178: =Computations!$F$17+Computations!$E$17*LN(Computations!D178) -> 1160.565364 | Q178: =Computations!$F$18+Computations!$E$18*Computations!D178+Computations!$D$18*Computations!D178^2 -> 1132.82836 | R178: =Computations!$F$19+Computations!$E$19*Computations!D178+Computations!$D$19*Computations!D178^2+Computations!$C$19*Computations!D178^3 -> 1132.82836 | S178: =Computations!$J$15+Computations!$I$15*D178 -> 450000 | T178: =EXP(Computations!$J$16)*EXP(Computations!$I$16)^Computations!D178 -> 450000 | U178: =Computations!$J$17+Computations!$I$17*LN(Computations!D178) -> 450000 | V178: =Computations!$J$18+Computations!$I$18*Computations!D178+Computations!$H$18*Computations!D178^2 -> 450000 | W178: =Computations!$J$19+Computations!$I$19*Computations!D178+Computations!$H$19*Computations!D178^2+Computations!$G$19*Computations!D178^3 -> 450000
A179: 125 | B179: 0.04727774436 | C179: 0.04756959162 | D179: 0.04742366799 | E179: 0.07031379189 | F179: 0.001544536291 | G179: 1176.62721 | H179: 450000 | I179: =G179-H179/User_entry!$E$18 -> -323.3727896 | J179: 0 | L179: =HLOOKUP(User_entry!$B$56,Computations!$N$54:$R$1054,Computations!A179+1,FALSE) -> 1176.62721 | M179: =HLOOKUP(User_entry!$E$56,Computations!$S$54:$W$1054,Computations!A179+1,FALSE) -> 450000 | N179: =Computations!$F$15+Computations!$E$15*D179 -> 1176.62721 | O179: =EXP(Computations!$F$16)*EXP(Computations!$E$16)^Computations!D179 -> 1165.16776 | P179: =Computations!$F$17+Computations!$E$17*LN(Computations!D179) -> 1168.407866 | Q179: =Computations!$F$18+Computations!$E$18*Computations!D179+Computations!$D$18*Computations!D179^2 -> 1138.183697 | R179: =Computations!$F$19+Computations!$E$19*Computations!D179+Computations!$D$19*Computations!D179^2+Computations!$C$19*Computations!D179^3 -> 1138.183697 | S179: =Computations!$J$15+Computations!$I$15*D179 -> 450000 | T179: =EXP(Computations!$J$16)*EXP(Computations!$I$16)^Computations!D179 -> 450000 | U179: =Computations!$J$17+Computations!$I$17*LN(Computations!D179) -> 450000 | V179: =Computations!$J$18+Computations!$I$18*Computations!D179+Computations!$H$18*Computations!D179^2 -> 450000 | W179: =Computations!$J$19+Computations!$I$19*Computations!D179+Computations!$H$19*Computations!D179^2+Computations!$G$19*Computations!D179^3 -> 450000
A180: 126 | B180: 0.04756959162 | C180: 0.04786143888 | D180: 0.04771551525 | E180: 0.07187827399 | F180: 0.001564482095 | G180: 1180.467306 | H180: 450000 | I180: =G180-H180/User_entry!$E$18 -> -319.5326941 | J180: 0 | L180: =HLOOKUP(User_entry!$B$56,Computations!$N$54:$R$1054,Computations!A180+1,FALSE) -> 1180.467306 | M180: =HLOOKUP(User_entry!$E$56,Computations!$S$54:$W$1054,Computations!A180+1,FALSE) -> 450000 | N180: =Computations!$F$15+Computations!$E$15*D180 -> 1180.467306 | O180: =EXP(Computations!$F$16)*EXP(Computations!$E$16)^Computations!D180 -> 1167.585149 | P180: =Computations!$F$17+Computations!$E$17*LN(Computations!D180) -> 1176.202253 | Q180: =Computations!$F$18+Computations!$E$18*Computations!D180+Computations!$D$18*Computations!D180^2 -> 1143.532726 | R180: =Computations!$F$19+Computations!$E$19*Computations!D180+Computations!$D$19*Computations!D180^2+Computations!$C$19*Computations!D180^3 -> 1143.532726 | S180: =Computations!$J$15+Computations!$I$15*D180 -> 450000 | T180: =EXP(Computations!$J$16)*EXP(Computations!$I$16)^Computations!D180 -> 450000 | U180: =Computations!$J$17+Computations!$I$17*LN(Computations!D180) -> 450000 | V180: =Computations!$J$18+Computations!$I$18*Computations!D180+Computations!$H$18*Computations!D180^2 -> 450000 | W180: =Computations!$J$19+Computations!$I$19*Computations!D180+Computations!$H$19*Computations!D180^2+Computations!$G$19*Computations!D180^3 -> 450000
A181: 127 | B181: 0.04786143888 | C181: 0.04815328613 | D181: 0.0480073625 | E181: 0.07346268398 | F181: 0.001584409989 | G181: 1184.307401 | H181: 450000 | I181: =G181-H181/User_entry!$E$18 -> -315.6925986 | J181: 0 | L181: =HLOOKUP(User_entry!$B$56,Computations!$N$54:$R$1054,Computations!A181+1,FALSE) -> 1184.307401 | M181: =HLOOKUP(User_entry!$E$56,Computations!$S$54:$W$1054,Computations!A181+1,FALSE) -> 450000 | N181: =Computations!$F$15+Computations!$E$15*D181 -> 1184.307401 | O181: =EXP(Computations!$F$16)*EXP(Computations!$E$16)^Computations!D181 -> 1170.007553 | P181: =Computations!$F$17+Computations!$E$17*LN(Computations!D181) -> 1183.949111 | Q181: =Computations!$F$18+Computations!$E$18*Computations!D181+Computations!$D$18*Computations!D181^2 -> 1148.875445 | R181: =Computations!$F$19+Computations!$E$19*Computations!D181+Computations!$D$19*Computations!D181^2+Computations!$C$19*Computations!D181^3 -> 1148.875445 | S181: =Computations!$J$15+Computations!$I$15*D181 -> 450000 | T181: =EXP(Computations!$J$16)*EXP(Computations!$I$16)^Computations!D181 -> 450000 | U181: =Computations!$J$17+Computations!$I$17*LN(Computations!D181) -> 450000 | V181: =Computations!$J$18+Computations!$I$18*Computations!D181+Computations!$H$18*Computations!D181^2 -> 450000 | W181: =Computations!$J$19+Computations!$I$19*Computations!D181+Computations!$H$19*Computations!D181^2+Computations!$G$19*Computations!D181^3 -> 450000
A182: 128 | B182: 0.04815328613 | C182: 0.04844513339 | D182: 0.04829920976 | E182: 0.07506700004 | F182: 0.001604316058 | G182: 1188.147497 | H182: 450000 | I182: =G182-H182/User_entry!$E$18 -> -311.8525031 | J182: 0 | L182: =HLOOKUP(User_entry!$B$56,Computations!$N$54:$R$1054,Computations!A182+1,FALSE) -> 1188.147497 | M182: =HLOOKUP(User_entry!$E$56,Computations!$S$54:$W$1054,Computations!A182+1,FALSE) -> 450000 | N182: =Computations!$F$15+Computations!$E$15*D182 -> 1188.147497 | O182: =EXP(Computations!$F$16)*EXP(Computations!$E$16)^Computations!D182 -> 1172.434983 | P182: =Computations!$F$17+Computations!$E$17*LN(Computations!D182) -> 1191.649017 | Q182: =Computations!$F$18+Computations!$E$18*Computations!D182+Computations!$D$18*Computations!D182^2 -> 1154.211855 | R182: =Computations!$F$19+Computations!$E$19*Computations!D182+Computations!$D$19*Computations!D182^2+Computations!$C$19*Computations!D182^3 -> 1154.211855 | S182: =Computations!$J$15+Computations!$I$15*D182 -> 450000 | T182: =EXP(Computations!$J$16)*EXP(Computations!$I$16)^Computations!D182 -> 450000 | U182: =Computations!$J$17+Computations!$I$17*LN(Computations!D182) -> 450000 | V182: =Computations!$J$18+Computations!$I$18*Computations!D182+Computations!$H$18*Computations!D182^2 -> 450000 | W182: =Computations!$J$19+Computations!$I$19*Computations!D182+Computations!$H$19*Computations!D182^2+Computations!$G$19*Computations!D182^3 -> 450000
A183: 129 | B183: 0.04844513339 | C183: 0.04873698065 | D183: 0.04859105702 | E183: 0.07669119645 | F183: 0.001624196413 | G183: 1191.987592 | H183: 450000 | I183: =G183-H183/User_entry!$E$18 -> -308.0124077 | J183: 0 | L183: =HLOOKUP(User_entry!$B$56,Computations!$N$54:$R$1054,Computations!A183+1,FALSE) -> 1191.987592 | M183: =HLOOKUP(User_entry!$E$56,Computations!$S$54:$W$1054,Computations!A183+1,FALSE) -> 450000 | N183: =Computations!$F$15+Computations!$E$15*D183 -> 1191.987592 | O183: =EXP(Computations!$F$16)*EXP(Computations!$E$16)^Computations!D183 -> 1174.86745 | P183: =Computations!$F$17+Computations!$E$17*LN(Computations!D183) -> 1199.302536 | Q183: =Computations!$F$18+Computations!$E$18*Computations!D183+Computations!$D$18*Computations!D183^2 -> 1159.541956 | R183: =Computations!$F$19+Computations!$E$19*Computations!D183+Computations!$D$19*Computations!D183^2+Computations!$C$19*Computations!D183^3 -> 1159.541956 | S183: =Computations!$J$15+Computations!$I$15*D183 -> 450000 | T183: =EXP(Computations!$J$16)*EXP(Computations!$I$16)^Computations!D183 -> 450000 | U183: =Computations!$J$17+Computations!$I$17*LN(Computations!D183) -> 450000 | V183: =Computations!$J$18+Computations!$I$18*Computations!D183+Computations!$H$18*Computations!D183^2 -> 450000 | W183: =Computations!$J$19+Computations!$I$19*Computations!D183+Computations!$H$19*Computations!D183^2+Computations!$G$19*Computations!D183^3 -> 450000
A184: 130 | B184: 0.04873698065 | C184: =B184+$D$11 -> 0.0490288279 | D184: =AVERAGE(B184:C184) -> 0.04888290427 | E184: =IF($D$3="Beta",_xlfn.BETA.DIST(C184,$D$4,$D$5,TRUE),IF($D$3="Gamma",_xlfn.GAMMA.DIST(C184,$D$4,$D$5,TRUE),IF($D$3="Lognorm",_xlfn.LOGNORM.DIST(C184,$D$4,$D$5,TRUE),_xlfn.NORM.DIST(C184,$D$4,$D$5,TRUE)))) -> 0.07833524364 | F184: =E184-E183 -> 0.001644047192 | G184: =L184 -> 1195.827688 | H184: =M184 -> 450000 | I184: =G184-H184/User_entry!$E$18 -> -304.1723122 | J184: =MAX(I184,0) -> 0 | L184: =HLOOKUP(User_entry!$B$56,Computations!$N$54:$R$1054,Computations!A184+1,FALSE) -> 1195.827688 | M184: =HLOOKUP(User_entry!$E$56,Computations!$S$54:$W$1054,Computations!A184+1,FALSE) -> 450000 | N184: =Computations!$F$15+Computations!$E$15*D184 -> 1195.827688 | O184: =EXP(Computations!$F$16)*EXP(Computations!$E$16)^Computations!D184 -> 1177.304962 | P184: =Computations!$F$17+Computations!$E$17*LN(Computations!D184) -> 1206.910224 | Q184: =Computations!$F$18+Computations!$E$18*Computations!D184+Computations!$D$18*Computations!D184^2 -> 1164.865748 | R184: =Computations!$F$19+Computations!$E$19*Computations!D184+Computations!$D$19*Computations!D184^2+Computations!$C$19*Computations!D184^3 -> 1164.865748 | S184: =Computations!$J$15+Computations!$I$15*D184 -> 450000 | T184: =EXP(Computations!$J$16)*EXP(Computations!$I$16)^Computations!D184 -> 450000 | U184: =Computations!$J$17+Computations!$I$17*LN(Computations!D184) -> 450000 | V184: =Computations!$J$18+Computations!$I$18*Computations!D184+Computations!$H$18*Computations!D184^2 -> 450000 | W184: =Computations!$J$19+Computations!$I$19*Computations!D184+Computations!$H$19*Computations!D184^2+Computations!$G$19*Computations!D184^3 -> 450000
A185: 131 | B185: =C184 -> 0.0490288279 | C185: 0.04932067516 | D185: 0.04917475153 | E185: 0.0799991082 | F185: 0.00166386456 | G185: 1199.667783 | H185: 450000 | I185: =G185-H185/User_entry!$E$18 -> -300.3322167 | J185: 0 | L185: =HLOOKUP(User_entry!$B$56,Computations!$N$54:$R$1054,Computations!A185+1,FALSE) -> 1199.667783 | M185: =HLOOKUP(User_entry!$E$56,Computations!$S$54:$W$1054,Computations!A185+1,FALSE) -> 450000 | N185: =Computations!$F$15+Computations!$E$15*D185 -> 1199.667783 | O185: =EXP(Computations!$F$16)*EXP(Computations!$E$16)^Computations!D185 -> 1179.747532 | P185: =Computations!$F$17+Computations!$E$17*LN(Computations!D185) -> 1214.472627 | Q185: =Computations!$F$18+Computations!$E$18*Computations!D185+Computations!$D$18*Computations!D185^2 -> 1170.18323 | R185: =Computations!$F$19+Computations!$E$19*Computations!D185+Computations!$D$19*Computations!D185^2+Computations!$C$19*Computations!D185^3 -> 1170.18323 | S185: =Computations!$J$15+Computations!$I$15*D185 -> 450000 | T185: =EXP(Computations!$J$16)*EXP(Computations!$I$16)^Computations!D185 -> 450000 | U185: =Computations!$J$17+Computations!$I$17*LN(Computations!D185) -> 450000 | V185: =Computations!$J$18+Computations!$I$18*Computations!D185+Computations!$H$18*Computations!D185^2 -> 450000 | W185: =Computations!$J$19+Computations!$I$19*Computations!D185+Computations!$H$19*Computations!D185^2+Computations!$G$19*Computations!D185^3 -> 450000
A186: 132 | B186: 0.04932067516 | C186: 0.04961252242 | D186: 0.04946659879 | E186: 0.08168275291 | F186: 0.001683644708 | G186: 1203.507879 | H186: 450000 | I186: =G186-H186/User_entry!$E$18 -> -296.4921212 | J186: 0 | L186: =HLOOKUP(User_entry!$B$56,Computations!$N$54:$R$1054,Computations!A186+1,FALSE) -> 1203.507879 | M186: =HLOOKUP(User_entry!$E$56,Computations!$S$54:$W$1054,Computations!A186+1,FALSE) -> 450000 | N186: =Computations!$F$15+Computations!$E$15*D186 -> 1203.507879 | O186: =EXP(Computations!$F$16)*EXP(Computations!$E$16)^Computations!D186 -> 1182.19517 | P186: =Computations!$F$17+Computations!$E$17*LN(Computations!D186) -> 1221.99028 | Q186: =Computations!$F$18+Computations!$E$18*Computations!D186+Computations!$D$18*Computations!D186^2 -> 1175.494403 | R186: =Computations!$F$19+Computations!$E$19*Computations!D186+Computations!$D$19*Computations!D186^2+Computations!$C$19*Computations!D186^3 -> 1175.494403 | S186: =Computations!$J$15+Computations!$I$15*D186 -> 450000 | T186: =EXP(Computations!$J$16)*EXP(Computations!$I$16)^Computations!D186 -> 450000 | U186: =Computations!$J$17+Computations!$I$17*LN(Computations!D186) -> 450000 | V186: =Computations!$J$18+Computations!$I$18*Computations!D186+Computations!$H$18*Computations!D186^2 -> 450000 | W186: =Computations!$J$19+Computations!$I$19*Computations!D186+Computations!$H$19*Computations!D186^2+Computations!$G$19*Computations!D186^3 -> 450000
A187: 133 | B187: 0.04961252242 | C187: 0.04990436967 | D187: 0.04975844605 | E187: 0.08338613677 | F187: 0.001703383858 | G187: 1207.347974 | H187: 450000 | I187: =G187-H187/User_entry!$E$18 -> -292.6520257 | J187: 0 | L187: =HLOOKUP(User_entry!$B$56,Computations!$N$54:$R$1054,Computations!A187+1,FALSE) -> 1207.347974 | M187: =HLOOKUP(User_entry!$E$56,Computations!$S$54:$W$1054,Computations!A187+1,FALSE) -> 450000 | N187: =Computations!$F$15+Computations!$E$15*D187 -> 1207.347974 | O187: =EXP(Computations!$F$16)*EXP(Computations!$E$16)^Computations!D187 -> 1184.647886 | P187: =Computations!$F$17+Computations!$E$17*LN(Computations!D187) -> 1229.463709 | Q187: =Computations!$F$18+Computations!$E$18*Computations!D187+Computations!$D$18*Computations!D187^2 -> 1180.799267 | R187: =Computations!$F$19+Computations!$E$19*Computations!D187+Computations!$D$19*Computations!D187^2+Computations!$C$19*Computations!D187^3 -> 1180.799267 | S187: =Computations!$J$15+Computations!$I$15*D187 -> 450000 | T187: =EXP(Computations!$J$16)*EXP(Computations!$I$16)^Computations!D187 -> 450000 | U187: =Computations!$J$17+Computations!$I$17*LN(Computations!D187) -> 450000 | V187: =Computations!$J$18+Computations!$I$18*Computations!D187+Computations!$H$18*Computations!D187^2 -> 450000 | W187: =Computations!$J$19+Computations!$I$19*Computations!D187+Computations!$H$19*Computations!D187^2+Computations!$G$19*Computations!D187^3 -> 450000
A188: 134 | B188: 0.04990436967 | C188: 0.05019621693 | D188: 0.0500502933 | E188: 0.08510921503 | F188: 0.001723078264 | G188: 1211.18807 | H188: 450000 | I188: =G188-H188/User_entry!$E$18 -> -288.8119302 | J188: 0 | L188: =HLOOKUP(User_entry!$B$56,Computations!$N$54:$R$1054,Computations!A188+1,FALSE) -> 1211.18807 | M188: =HLOOKUP(User_entry!$E$56,Computations!$S$54:$W$1054,Computations!A188+1,FALSE) -> 450000 | N188: =Computations!$F$15+Computations!$E$15*D188 -> 1211.18807 | O188: =EXP(Computations!$F$16)*EXP(Computations!$E$16)^Computations!D188 -> 1187.10569 | P188: =Computations!$F$17+Computations!$E$17*LN(Computations!D188) -> 1236.893433 | Q188: =Computations!$F$18+Computations!$E$18*Computations!D188+Computations!$D$18*Computations!D188^2 -> 1186.097822 | R188: =Computations!$F$19+Computations!$E$19*Computations!D188+Computations!$D$19*Computations!D188^2+Computations!$C$19*Computations!D188^3 -> 1186.097822 | S188: =Computations!$J$15+Computations!$I$15*D188 -> 450000 | T188: =EXP(Computations!$J$16)*EXP(Computations!$I$16)^Computations!D188 -> 450000 | U188: =Computations!$J$17+Computations!$I$17*LN(Computations!D188) -> 450000 | V188: =Computations!$J$18+Computations!$I$18*Computations!D188+Computations!$H$18*Computations!D188^2 -> 450000 | W188: =Computations!$J$19+Computations!$I$19*Computations!D188+Computations!$H$19*Computations!D188^2+Computations!$G$19*Computations!D188^3 -> 450000
A189: 135 | B189: 0.05019621693 | C189: 0.05048806419 | D189: 0.05034214056 | E189: 0.08685193924 | F189: 0.001742724208 | G189: 1215.028165 | H189: 450000 | I189: =G189-H189/User_entry!$E$18 -> -284.9718347 | J189: 0 | L189: =HLOOKUP(User_entry!$B$56,Computations!$N$54:$R$1054,Computations!A189+1,FALSE) -> 1215.028165 | M189: =HLOOKUP(User_entry!$E$56,Computations!$S$54:$W$1054,Computations!A189+1,FALSE) -> 450000 | N189: =Computations!$F$15+Computations!$E$15*D189 -> 1215.028165 | O189: =EXP(Computations!$F$16)*EXP(Computations!$E$16)^Computations!D189 -> 1189.568594 | P189: =Computations!$F$17+Computations!$E$17*LN(Computations!D189) -> 1244.27996 | Q189: =Computations!$F$18+Computations!$E$18*Computations!D189+Computations!$D$18*Computations!D189^2 -> 1191.390067 | R189: =Computations!$F$19+Computations!$E$19*Computations!D189+Computations!$D$19*Computations!D189^2+Computations!$C$19*Computations!D189^3 -> 1191.390067 | S189: =Computations!$J$15+Computations!$I$15*D189 -> 450000 | T189: =EXP(Computations!$J$16)*EXP(Computations!$I$16)^Computations!D189 -> 450000 | U189: =Computations!$J$17+Computations!$I$17*LN(Computations!D189) -> 450000 | V189: =Computations!$J$18+Computations!$I$18*Computations!D189+Computations!$H$18*Computations!D189^2 -> 450000 | W189: =Computations!$J$19+Computations!$I$19*Computations!D189+Computations!$H$19*Computations!D189^2+Computations!$G$19*Computations!D189^3 -> 450000
A190: 136 | B190: 0.05048806419 | C190: 0.05077991144 | D190: 0.05063398782 | E190: 0.08861425725 | F190: 0.001762318007 | G190: 1218.868261 | H190: 450000 | I190: =G190-H190/User_entry!$E$18 -> -281.1317393 | J190: 0 | L190: =HLOOKUP(User_entry!$B$56,Computations!$N$54:$R$1054,Computations!A190+1,FALSE) -> 1218.868261 | M190: =HLOOKUP(User_entry!$E$56,Computations!$S$54:$W$1054,Computations!A190+1,FALSE) -> 450000 | N190: =Computations!$F$15+Computations!$E$15*D190 -> 1218.868261 | O190: =EXP(Computations!$F$16)*EXP(Computations!$E$16)^Computations!D190 -> 1192.036607 | P190: =Computations!$F$17+Computations!$E$17*LN(Computations!D190) -> 1251.623788 | Q190: =Computations!$F$18+Computations!$E$18*Computations!D190+Computations!$D$18*Computations!D190^2 -> 1196.676003 | R190: =Computations!$F$19+Computations!$E$19*Computations!D190+Computations!$D$19*Computations!D190^2+Computations!$C$19*Computations!D190^3 -> 1196.676003 | S190: =Computations!$J$15+Computations!$I$15*D190 -> 450000 | T190: =EXP(Computations!$J$16)*EXP(Computations!$I$16)^Computations!D190 -> 450000 | U190: =Computations!$J$17+Computations!$I$17*LN(Computations!D190) -> 450000 | V190: =Computations!$J$18+Computations!$I$18*Computations!D190+Computations!$H$18*Computations!D190^2 -> 450000 | W190: =Computations!$J$19+Computations!$I$19*Computations!D190+Computations!$H$19*Computations!D190^2+Computations!$G$19*Computations!D190^3 -> 450000
A191: 137 | B191: 0.05077991144 | C191: 0.0510717587 | D191: 0.05092583507 | E191: 0.09039611326 | F191: 0.00178185601 | G191: 1222.708356 | H191: 450000 | I191: =G191-H191/User_entry!$E$18 -> -277.2916438 | J191: 0 | L191: =HLOOKUP(User_entry!$B$56,Computations!$N$54:$R$1054,Computations!A191+1,FALSE) -> 1222.708356 | M191: =HLOOKUP(User_entry!$E$56,Computations!$S$54:$W$1054,Computations!A191+1,FALSE) -> 450000 | N191: =Computations!$F$15+Computations!$E$15*D191 -> 1222.708356 | O191: =EXP(Computations!$F$16)*EXP(Computations!$E$16)^Computations!D191 -> 1194.509741 | P191: =Computations!$F$17+Computations!$E$17*LN(Computations!D191) -> 1258.925409 | Q191: =Computations!$F$18+Computations!$E$18*Computations!D191+Computations!$D$18*Computations!D191^2 -> 1201.95563 | R191: =Computations!$F$19+Computations!$E$19*Computations!D191+Computations!$D$19*Computations!D191^2+Computations!$C$19*Computations!D191^3 -> 1201.95563 | S191: =Computations!$J$15+Computations!$I$15*D191 -> 450000 | T191: =EXP(Computations!$J$16)*EXP(Computations!$I$16)^Computations!D191 -> 450000 | U191: =Computations!$J$17+Computations!$I$17*LN(Computations!D191) -> 450000 | V191: =Computations!$J$18+Computations!$I$18*Computations!D191+Computations!$H$18*Computations!D191^2 -> 450000 | W191: =Computations!$J$19+Computations!$I$19*Computations!D191+Computations!$H$19*Computations!D191^2+Computations!$G$19*Computations!D191^3 -> 450000
A192: 138 | B192: 0.0510717587 | C192: 0.05136360596 | D192: 0.05121768233 | E192: 0.09219744786 | F192: 0.001801334602 | G192: 1226.548452 | H192: 450000 | I192: =G192-H192/User_entry!$E$18 -> -273.4515483 | J192: 0 | L192: =HLOOKUP(User_entry!$B$56,Computations!$N$54:$R$1054,Computations!A192+1,FALSE) -> 1226.548452 | M192: =HLOOKUP(User_entry!$E$56,Computations!$S$54:$W$1054,Computations!A192+1,FALSE) -> 450000 | N192: =Computations!$F$15+Computations!$E$15*D192 -> 1226.548452 | O192: =EXP(Computations!$F$16)*EXP(Computations!$E$16)^Computations!D192 -> 1196.988006 | P192: =Computations!$F$17+Computations!$E$17*LN(Computations!D192) -> 1266.185305 | Q192: =Computations!$F$18+Computations!$E$18*Computations!D192+Computations!$D$18*Computations!D192^2 -> 1207.228948 | R192: =Computations!$F$19+Computations!$E$19*Computations!D192+Computations!$D$19*Computations!D192^2+Computations!$C$19*Computations!D192^3 -> 1207.228948 | S192: =Computations!$J$15+Computations!$I$15*D192 -> 450000 | T192: =EXP(Computations!$J$16)*EXP(Computations!$I$16)^Computations!D192 -> 450000 | U192: =Computations!$J$17+Computations!$I$17*LN(Computations!D192) -> 450000 | V192: =Computations!$J$18+Computations!$I$18*Computations!D192+Computations!$H$18*Computations!D192^2 -> 450000 | W192: =Computations!$J$19+Computations!$I$19*Computations!D192+Computations!$H$19*Computations!D192^2+Computations!$G$19*Computations!D192^3 -> 450000
A193: 139 | B193: 0.05136360596 | C193: 0.05165545322 | D193: 0.05150952959 | E193: 0.09401819806 | F193: 0.0018207502 | G193: 1230.388547 | H193: 450000 | I193: =G193-H193/User_entry!$E$18 -> -269.6114528 | J193: 0 | L193: =HLOOKUP(User_entry!$B$56,Computations!$N$54:$R$1054,Computations!A193+1,FALSE) -> 1230.388547 | M193: =HLOOKUP(User_entry!$E$56,Computations!$S$54:$W$1054,Computations!A193+1,FALSE) -> 450000 | N193: =Computations!$F$15+Computations!$E$15*D193 -> 1230.388547 | O193: =EXP(Computations!$F$16)*EXP(Computations!$E$16)^Computations!D193 -> 1199.471413 | P193: =Computations!$F$17+Computations!$E$17*LN(Computations!D193) -> 1273.40395 | Q193: =Computations!$F$18+Computations!$E$18*Computations!D193+Computations!$D$18*Computations!D193^2 -> 1212.495956 | R193: =Computations!$F$19+Computations!$E$19*Computations!D193+Computations!$D$19*Computations!D193^2+Computations!$C$19*Computations!D193^3 -> 1212.495956 | S193: =Computations!$J$15+Computations!$I$15*D193 -> 450000 | T193: =EXP(Computations!$J$16)*EXP(Computations!$I$16)^Computations!D193 -> 450000 | U193: =Computations!$J$17+Computations!$I$17*LN(Computations!D193) -> 450000 | V193: =Computations!$J$18+Computations!$I$18*Computations!D193+Computations!$H$18*Computations!D193^2 -> 450000 | W193: =Computations!$J$19+Computations!$I$19*Computations!D193+Computations!$H$19*Computations!D193^2+Computations!$G$19*Computations!D193^3 -> 450000
A194: 140 | B194: 0.05165545322 | C194: 0.05194730047 | D194: 0.05180137684 | E194: 0.09585829732 | F194: 0.001840099261 | G194: 1234.228643 | H194: 450000 | I194: =G194-H194/User_entry!$E$18 -> -265.7713573 | J194: 0 | L194: =HLOOKUP(User_entry!$B$56,Computations!$N$54:$R$1054,Computations!A194+1,FALSE) -> 1234.228643 | M194: =HLOOKUP(User_entry!$E$56,Computations!$S$54:$W$1054,Computations!A194+1,FALSE) -> 450000 | N194: =Computations!$F$15+Computations!$E$15*D194 -> 1234.228643 | O194: =EXP(Computations!$F$16)*EXP(Computations!$E$16)^Computations!D194 -> 1201.959972 | P194: =Computations!$F$17+Computations!$E$17*LN(Computations!D194) -> 1280.58181 | Q194: =Computations!$F$18+Computations!$E$18*Computations!D194+Computations!$D$18*Computations!D194^2 -> 1217.756655 | R194: =Computations!$F$19+Computations!$E$19*Computations!D194+Computations!$D$19*Computations!D194^2+Computations!$C$19*Computations!D194^3 -> 1217.756655 | S194: =Computations!$J$15+Computations!$I$15*D194 -> 450000 | T194: =EXP(Computations!$J$16)*EXP(Computations!$I$16)^Computations!D194 -> 450000 | U194: =Computations!$J$17+Computations!$I$17*LN(Computations!D194) -> 450000 | V194: =Computations!$J$18+Computations!$I$18*Computations!D194+Computations!$H$18*Computations!D194^2 -> 450000 | W194: =Computations!$J$19+Computations!$I$19*Computations!D194+Computations!$H$19*Computations!D194^2+Computations!$G$19*Computations!D194^3 -> 450000
A195: 141 | B195: 0.05194730047 | C195: 0.05223914773 | D195: 0.0520932241 | E195: 0.0977176756 | F195: 0.001859378276 | G195: 1238.068738 | H195: 450000 | I195: =G195-H195/User_entry!$E$18 -> -261.9312618 | J195: 0 | L195: =HLOOKUP(User_entry!$B$56,Computations!$N$54:$R$1054,Computations!A195+1,FALSE) -> 1238.068738 | M195: =HLOOKUP(User_entry!$E$56,Computations!$S$54:$W$1054,Computations!A195+1,FALSE) -> 450000 | N195: =Computations!$F$15+Computations!$E$15*D195 -> 1238.068738 | O195: =EXP(Computations!$F$16)*EXP(Computations!$E$16)^Computations!D195 -> 1204.453694 | P195: =Computations!$F$17+Computations!$E$17*LN(Computations!D195) -> 1287.719344 | Q195: =Computations!$F$18+Computations!$E$18*Computations!D195+Computations!$D$18*Computations!D195^2 -> 1223.011045 | R195: =Computations!$F$19+Computations!$E$19*Computations!D195+Computations!$D$19*Computations!D195^2+Computations!$C$19*Computations!D195^3 -> 1223.011045 | S195: =Computations!$J$15+Computations!$I$15*D195 -> 450000 | T195: =EXP(Computations!$J$16)*EXP(Computations!$I$16)^Computations!D195 -> 450000 | U195: =Computations!$J$17+Computations!$I$17*LN(Computations!D195) -> 450000 | V195: =Computations!$J$18+Computations!$I$18*Computations!D195+Computations!$H$18*Computations!D195^2 -> 450000 | W195: =Computations!$J$19+Computations!$I$19*Computations!D195+Computations!$H$19*Computations!D195^2+Computations!$G$19*Computations!D195^3 -> 450000
A196: 142 | B196: 0.05223914773 | C196: 0.05253099499 | D196: 0.05238507136 | E196: 0.09959625937 | F196: 0.001878583776 | G196: 1241.908834 | H196: 450000 | I196: =G196-H196/User_entry!$E$18 -> -258.0911663 | J196: 0 | L196: =HLOOKUP(User_entry!$B$56,Computations!$N$54:$R$1054,Computations!A196+1,FALSE) -> 1241.908834 | M196: =HLOOKUP(User_entry!$E$56,Computations!$S$54:$W$1054,Computations!A196+1,FALSE) -> 450000 | N196: =Computations!$F$15+Computations!$E$15*D196 -> 1241.908834 | O196: =EXP(Computations!$F$16)*EXP(Computations!$E$16)^Computations!D196 -> 1206.95259 | P196: =Computations!$F$17+Computations!$E$17*LN(Computations!D196) -> 1294.817002 | Q196: =Computations!$F$18+Computations!$E$18*Computations!D196+Computations!$D$18*Computations!D196^2 -> 1228.259126 | R196: =Computations!$F$19+Computations!$E$19*Computations!D196+Computations!$D$19*Computations!D196^2+Computations!$C$19*Computations!D196^3 -> 1228.259126 | S196: =Computations!$J$15+Computations!$I$15*D196 -> 450000 | T196: =EXP(Computations!$J$16)*EXP(Computations!$I$16)^Computations!D196 -> 450000 | U196: =Computations!$J$17+Computations!$I$17*LN(Computations!D196) -> 450000 | V196: =Computations!$J$18+Computations!$I$18*Computations!D196+Computations!$H$18*Computations!D196^2 -> 450000 | W196: =Computations!$J$19+Computations!$I$19*Computations!D196+Computations!$H$19*Computations!D196^2+Computations!$G$19*Computations!D196^3 -> 450000
A197: 143 | B197: 0.05253099499 | C197: 0.05282284224 | D197: 0.05267691861 | E197: 0.1014939717 | F197: 0.001897712329 | G197: 1245.748929 | H197: 450000 | I197: =G197-H197/User_entry!$E$18 -> -254.2510709 | J197: 0 | L197: =HLOOKUP(User_entry!$B$56,Computations!$N$54:$R$1054,Computations!A197+1,FALSE) -> 1245.748929 | M197: =HLOOKUP(User_entry!$E$56,Computations!$S$54:$W$1054,Computations!A197+1,FALSE) -> 450000 | N197: =Computations!$F$15+Computations!$E$15*D197 -> 1245.748929 | O197: =EXP(Computations!$F$16)*EXP(Computations!$E$16)^Computations!D197 -> 1209.45667 | P197: =Computations!$F$17+Computations!$E$17*LN(Computations!D197) -> 1301.875227 | Q197: =Computations!$F$18+Computations!$E$18*Computations!D197+Computations!$D$18*Computations!D197^2 -> 1233.500897 | R197: =Computations!$F$19+Computations!$E$19*Computations!D197+Computations!$D$19*Computations!D197^2+Computations!$C$19*Computations!D197^3 -> 1233.500897 | S197: =Computations!$J$15+Computations!$I$15*D197 -> 450000 | T197: =EXP(Computations!$J$16)*EXP(Computations!$I$16)^Computations!D197 -> 450000 | U197: =Computations!$J$17+Computations!$I$17*LN(Computations!D197) -> 450000 | V197: =Computations!$J$18+Computations!$I$18*Computations!D197+Computations!$H$18*Computations!D197^2 -> 450000 | W197: =Computations!$J$19+Computations!$I$19*Computations!D197+Computations!$H$19*Computations!D197^2+Computations!$G$19*Computations!D197^3 -> 450000
A198: 144 | B198: 0.05282284224 | C198: 0.0531146895 | D198: 0.05296876587 | E198: 0.1034107322 | F198: 0.001916760542 | G198: 1249.589025 | H198: 450000 | I198: =G198-H198/User_entry!$E$18 -> -250.4109754 | J198: 0 | L198: =HLOOKUP(User_entry!$B$56,Computations!$N$54:$R$1054,Computations!A198+1,FALSE) -> 1249.589025 | M198: =HLOOKUP(User_entry!$E$56,Computations!$S$54:$W$1054,Computations!A198+1,FALSE) -> 450000 | N198: =Computations!$F$15+Computations!$E$15*D198 -> 1249.589025 | O198: =EXP(Computations!$F$16)*EXP(Computations!$E$16)^Computations!D198 -> 1211.965946 | P198: =Computations!$F$17+Computations!$E$17*LN(Computations!D198) -> 1308.894455 | Q198: =Computations!$F$18+Computations!$E$18*Computations!D198+Computations!$D$18*Computations!D198^2 -> 1238.736359 | R198: =Computations!$F$19+Computations!$E$19*Computations!D198+Computations!$D$19*Computations!D198^2+Computations!$C$19*Computations!D198^3 -> 1238.736359 | S198: =Computations!$J$15+Computations!$I$15*D198 -> 450000 | T198: =EXP(Computations!$J$16)*EXP(Computations!$I$16)^Computations!D198 -> 450000 | U198: =Computations!$J$17+Computations!$I$17*LN(Computations!D198) -> 450000 | V198: =Computations!$J$18+Computations!$I$18*Computations!D198+Computations!$H$18*Computations!D198^2 -> 450000 | W198: =Computations!$J$19+Computations!$I$19*Computations!D198+Computations!$H$19*Computations!D198^2+Computations!$G$19*Computations!D198^3 -> 450000
A199: 145 | B199: 0.0531146895 | C199: 0.05340653676 | D199: 0.05326061313 | E199: 0.1053464573 | F199: 0.001935725065 | G199: 1253.42912 | H199: 450000 | I199: =G199-H199/User_entry!$E$18 -> -246.5708799 | J199: 0 | L199: =HLOOKUP(User_entry!$B$56,Computations!$N$54:$R$1054,Computations!A199+1,FALSE) -> 1253.42912 | M199: =HLOOKUP(User_entry!$E$56,Computations!$S$54:$W$1054,Computations!A199+1,FALSE) -> 450000 | N199: =Computations!$F$15+Computations!$E$15*D199 -> 1253.42912 | O199: =EXP(Computations!$F$16)*EXP(Computations!$E$16)^Computations!D199 -> 1214.480427 | P199: =Computations!$F$17+Computations!$E$17*LN(Computations!D199) -> 1315.875114 | Q199: =Computations!$F$18+Computations!$E$18*Computations!D199+Computations!$D$18*Computations!D199^2 -> 1243.965512 | R199: =Computations!$F$19+Computations!$E$19*Computations!D199+Computations!$D$19*Computations!D199^2+Computations!$C$19*Computations!D199^3 -> 1243.965512 | S199: =Computations!$J$15+Computations!$I$15*D199 -> 450000 | T199: =EXP(Computations!$J$16)*EXP(Computations!$I$16)^Computations!D199 -> 450000 | U199: =Computations!$J$17+Computations!$I$17*LN(Computations!D199) -> 450000 | V199: =Computations!$J$18+Computations!$I$18*Computations!D199+Computations!$H$18*Computations!D199^2 -> 450000 | W199: =Computations!$J$19+Computations!$I$19*Computations!D199+Computations!$H$19*Computations!D199^2+Computations!$G$19*Computations!D199^3 -> 450000
A200: 146 | B200: 0.05340653676 | C200: 0.05369838401 | D200: 0.05355246039 | E200: 0.1073010599 | F200: 0.001954602586 | G200: 1257.269216 | H200: 450000 | I200: =G200-H200/User_entry!$E$18 -> -242.7307844 | J200: 0 | L200: =HLOOKUP(User_entry!$B$56,Computations!$N$54:$R$1054,Computations!A200+1,FALSE) -> 1257.269216 | M200: =HLOOKUP(User_entry!$E$56,Computations!$S$54:$W$1054,Computations!A200+1,FALSE) -> 450000 | N200: =Computations!$F$15+Computations!$E$15*D200 -> 1257.269216 | O200: =EXP(Computations!$F$16)*EXP(Computations!$E$16)^Computations!D200 -> 1217.000126 | P200: =Computations!$F$17+Computations!$E$17*LN(Computations!D200) -> 1322.817627 | Q200: =Computations!$F$18+Computations!$E$18*Computations!D200+Computations!$D$18*Computations!D200^2 -> 1249.188356 | R200: =Computations!$F$19+Computations!$E$19*Computations!D200+Computations!$D$19*Computations!D200^2+Computations!$C$19*Computations!D200^3 -> 1249.188356 | S200: =Computations!$J$15+Computations!$I$15*D200 -> 450000 | T200: =EXP(Computations!$J$16)*EXP(Computations!$I$16)^Computations!D200 -> 450000 | U200: =Computations!$J$17+Computations!$I$17*LN(Computations!D200) -> 450000 | V200: =Computations!$J$18+Computations!$I$18*Computations!D200+Computations!$H$18*Computations!D200^2 -> 450000 | W200: =Computations!$J$19+Computations!$I$19*Computations!D200+Computations!$H$19*Computations!D200^2+Computations!$G$19*Computations!D200^3 -> 450000
A201: 147 | B201: 0.05369838401 | C201: 0.05399023127 | D201: 0.05384430764 | E201: 0.1092744497 | F201: 0.001973389835 | G201: 1261.109311 | H201: 450000 | I201: =G201-H201/User_entry!$E$18 -> -238.8906889 | J201: 0 | L201: =HLOOKUP(User_entry!$B$56,Computations!$N$54:$R$1054,Computations!A201+1,FALSE) -> 1261.109311 | M201: =HLOOKUP(User_entry!$E$56,Computations!$S$54:$W$1054,Computations!A201+1,FALSE) -> 450000 | N201: =Computations!$F$15+Computations!$E$15*D201 -> 1261.109311 | O201: =EXP(Computations!$F$16)*EXP(Computations!$E$16)^Computations!D201 -> 1219.525052 | P201: =Computations!$F$17+Computations!$E$17*LN(Computations!D201) -> 1329.722408 | Q201: =Computations!$F$18+Computations!$E$18*Computations!D201+Computations!$D$18*Computations!D201^2 -> 1254.404891 | R201: =Computations!$F$19+Computations!$E$19*Computations!D201+Computations!$D$19*Computations!D201^2+Computations!$C$19*Computations!D201^3 -> 1254.404891 | S201: =Computations!$J$15+Computations!$I$15*D201 -> 450000 | T201: =EXP(Computations!$J$16)*EXP(Computations!$I$16)^Computations!D201 -> 450000 | U201: =Computations!$J$17+Computations!$I$17*LN(Computations!D201) -> 450000 | V201: =Computations!$J$18+Computations!$I$18*Computations!D201+Computations!$H$18*Computations!D201^2 -> 450000 | W201: =Computations!$J$19+Computations!$I$19*Computations!D201+Computations!$H$19*Computations!D201^2+Computations!$G$19*Computations!D201^3 -> 450000
A202: 148 | B202: 0.05399023127 | C202: 0.05428207853 | D202: 0.0541361549 | E202: 0.1112665333 | F202: 0.001992083584 | G202: 1264.949407 | H202: 450000 | I202: =G202-H202/User_entry!$E$18 -> -235.0505934 | J202: 0 | L202: =HLOOKUP(User_entry!$B$56,Computations!$N$54:$R$1054,Computations!A202+1,FALSE) -> 1264.949407 | M202: =HLOOKUP(User_entry!$E$56,Computations!$S$54:$W$1054,Computations!A202+1,FALSE) -> 450000 | N202: =Computations!$F$15+Computations!$E$15*D202 -> 1264.949407 | O202: =EXP(Computations!$F$16)*EXP(Computations!$E$16)^Computations!D202 -> 1222.055216 | P202: =Computations!$F$17+Computations!$E$17*LN(Computations!D202) -> 1336.589864 | Q202: =Computations!$F$18+Computations!$E$18*Computations!D202+Computations!$D$18*Computations!D202^2 -> 1259.615116 | R202: =Computations!$F$19+Computations!$E$19*Computations!D202+Computations!$D$19*Computations!D202^2+Computations!$C$19*Computations!D202^3 -> 1259.615116 | S202: =Computations!$J$15+Computations!$I$15*D202 -> 450000 | T202: =EXP(Computations!$J$16)*EXP(Computations!$I$16)^Computations!D202 -> 450000 | U202: =Computations!$J$17+Computations!$I$17*LN(Computations!D202) -> 450000 | V202: =Computations!$J$18+Computations!$I$18*Computations!D202+Computations!$H$18*Computations!D202^2 -> 450000 | W202: =Computations!$J$19+Computations!$I$19*Computations!D202+Computations!$H$19*Computations!D202^2+Computations!$G$19*Computations!D202^3 -> 450000
A203: 149 | B203: 0.05428207853 | C203: 0.05457392578 | D203: 0.05442800216 | E203: 0.113277214 | F203: 0.00201068065 | G203: 1268.789502 | H203: 450000 | I203: =G203-H203/User_entry!$E$18 -> -231.2104979 | J203: 0 | L203: =HLOOKUP(User_entry!$B$56,Computations!$N$54:$R$1054,Computations!A203+1,FALSE) -> 1268.789502 | M203: =HLOOKUP(User_entry!$E$56,Computations!$S$54:$W$1054,Computations!A203+1,FALSE) -> 450000 | N203: =Computations!$F$15+Computations!$E$15*D203 -> 1268.789502 | O203: =EXP(Computations!$F$16)*EXP(Computations!$E$16)^Computations!D203 -> 1224.59063 | P203: =Computations!$F$17+Computations!$E$17*LN(Computations!D203) -> 1343.420397 | Q203: =Computations!$F$18+Computations!$E$18*Computations!D203+Computations!$D$18*Computations!D203^2 -> 1264.819032 | R203: =Computations!$F$19+Computations!$E$19*Computations!D203+Computations!$D$19*Computations!D203^2+Computations!$C$19*Computations!D203^3 -> 1264.819032 | S203: =Computations!$J$15+Computations!$I$15*D203 -> 450000 | T203: =EXP(Computations!$J$16)*EXP(Computations!$I$16)^Computations!D203 -> 450000 | U203: =Computations!$J$17+Computations!$I$17*LN(Computations!D203) -> 450000 | V203: =Computations!$J$18+Computations!$I$18*Computations!D203+Computations!$H$18*Computations!D203^2 -> 450000 | W203: =Computations!$J$19+Computations!$I$19*Computations!D203+Computations!$H$19*Computations!D203^2+Computations!$G$19*Computations!D203^3 -> 450000
A204: 150 | B204: 0.05457392578 | C204: 0.05486577304 | D204: 0.05471984941 | E204: 0.1153063919 | F204: 0.002029177889 | G204: 1272.629598 | H204: 450000 | I204: =G204-H204/User_entry!$E$18 -> -227.3704025 | J204: 0 | L204: =HLOOKUP(User_entry!$B$56,Computations!$N$54:$R$1054,Computations!A204+1,FALSE) -> 1272.629598 | M204: =HLOOKUP(User_entry!$E$56,Computations!$S$54:$W$1054,Computations!A204+1,FALSE) -> 450000 | N204: =Computations!$F$15+Computations!$E$15*D204 -> 1272.629598 | O204: =EXP(Computations!$F$16)*EXP(Computations!$E$16)^Computations!D204 -> 1227.131304 | P204: =Computations!$F$17+Computations!$E$17*LN(Computations!D204) -> 1350.214402 | Q204: =Computations!$F$18+Computations!$E$18*Computations!D204+Computations!$D$18*Computations!D204^2 -> 1270.016638 | R204: =Computations!$F$19+Computations!$E$19*Computations!D204+Computations!$D$19*Computations!D204^2+Computations!$C$19*Computations!D204^3 -> 1270.016638 | S204: =Computations!$J$15+Computations!$I$15*D204 -> 450000 | T204: =EXP(Computations!$J$16)*EXP(Computations!$I$16)^Computations!D204 -> 450000 | U204: =Computations!$J$17+Computations!$I$17*LN(Computations!D204) -> 450000 | V204: =Computations!$J$18+Computations!$I$18*Computations!D204+Computations!$H$18*Computations!D204^2 -> 450000 | W204: =Computations!$J$19+Computations!$I$19*Computations!D204+Computations!$H$19*Computations!D204^2+Computations!$G$19*Computations!D204^3 -> 450000
A205: 151 | B205: 0.05486577304 | C205: 0.0551576203 | D205: 0.05501169667 | E205: 0.1173539641 | F205: 0.002047572205 | G205: 1276.469693 | H205: 450000 | I205: =G205-H205/User_entry!$E$18 -> -223.530307 | J205: 0 | L205: =HLOOKUP(User_entry!$B$56,Computations!$N$54:$R$1054,Computations!A205+1,FALSE) -> 1276.469693 | M205: =HLOOKUP(User_entry!$E$56,Computations!$S$54:$W$1054,Computations!A205+1,FALSE) -> 450000 | N205: =Computations!$F$15+Computations!$E$15*D205 -> 1276.469693 | O205: =EXP(Computations!$F$16)*EXP(Computations!$E$16)^Computations!D205 -> 1229.67725 | P205: =Computations!$F$17+Computations!$E$17*LN(Computations!D205) -> 1356.972267 | Q205: =Computations!$F$18+Computations!$E$18*Computations!D205+Computations!$D$18*Computations!D205^2 -> 1275.207936 | R205: =Computations!$F$19+Computations!$E$19*Computations!D205+Computations!$D$19*Computations!D205^2+Computations!$C$19*Computations!D205^3 -> 1275.207936 | S205: =Computations!$J$15+Computations!$I$15*D205 -> 450000 | T205: =EXP(Computations!$J$16)*EXP(Computations!$I$16)^Computations!D205 -> 450000 | U205: =Computations!$J$17+Computations!$I$17*LN(Computations!D205) -> 450000 | V205: =Computations!$J$18+Computations!$I$18*Computations!D205+Computations!$H$18*Computations!D205^2 -> 450000 | W205: =Computations!$J$19+Computations!$I$19*Computations!D205+Computations!$H$19*Computations!D205^2+Computations!$G$19*Computations!D205^3 -> 450000
A206: 152 | B206: 0.0551576203 | C206: 0.05544946756 | D206: 0.05530354393 | E206: 0.1194198246 | F206: 0.002065860544 | G206: 1280.309789 | H206: 450000 | I206: =G206-H206/User_entry!$E$18 -> -219.6902115 | J206: 0 | L206: =HLOOKUP(User_entry!$B$56,Computations!$N$54:$R$1054,Computations!A206+1,FALSE) -> 1280.309789 | M206: =HLOOKUP(User_entry!$E$56,Computations!$S$54:$W$1054,Computations!A206+1,FALSE) -> 450000 | N206: =Computations!$F$15+Computations!$E$15*D206 -> 1280.309789 | O206: =EXP(Computations!$F$16)*EXP(Computations!$E$16)^Computations!D206 -> 1232.228477 | P206: =Computations!$F$17+Computations!$E$17*LN(Computations!D206) -> 1363.694375 | Q206: =Computations!$F$18+Computations!$E$18*Computations!D206+Computations!$D$18*Computations!D206^2 -> 1280.392924 | R206: =Computations!$F$19+Computations!$E$19*Computations!D206+Computations!$D$19*Computations!D206^2+Computations!$C$19*Computations!D206^3 -> 1280.392924 | S206: =Computations!$J$15+Computations!$I$15*D206 -> 450000 | T206: =EXP(Computations!$J$16)*EXP(Computations!$I$16)^Computations!D206 -> 450000 | U206: =Computations!$J$17+Computations!$I$17*LN(Computations!D206) -> 450000 | V206: =Computations!$J$18+Computations!$I$18*Computations!D206+Computations!$H$18*Computations!D206^2 -> 450000 | W206: =Computations!$J$19+Computations!$I$19*Computations!D206+Computations!$H$19*Computations!D206^2+Computations!$G$19*Computations!D206^3 -> 450000
A207: 153 | B207: 0.05544946756 | C207: 0.05574131481 | D207: 0.05559539118 | E207: 0.1215038645 | F207: 0.002084039899 | G207: 1284.149884 | H207: 450000 | I207: =G207-H207/User_entry!$E$18 -> -215.850116 | J207: 0 | L207: =HLOOKUP(User_entry!$B$56,Computations!$N$54:$R$1054,Computations!A207+1,FALSE) -> 1284.149884 | M207: =HLOOKUP(User_entry!$E$56,Computations!$S$54:$W$1054,Computations!A207+1,FALSE) -> 450000 | N207: =Computations!$F$15+Computations!$E$15*D207 -> 1284.149884 | O207: =EXP(Computations!$F$16)*EXP(Computations!$E$16)^Computations!D207 -> 1234.784998 | P207: =Computations!$F$17+Computations!$E$17*LN(Computations!D207) -> 1370.381103 | Q207: =Computations!$F$18+Computations!$E$18*Computations!D207+Computations!$D$18*Computations!D207^2 -> 1285.571603 | R207: =Computations!$F$19+Computations!$E$19*Computations!D207+Computations!$D$19*Computations!D207^2+Computations!$C$19*Computations!D207^3 -> 1285.571603 | S207: =Computations!$J$15+Computations!$I$15*D207 -> 450000 | T207: =EXP(Computations!$J$16)*EXP(Computations!$I$16)^Computations!D207 -> 450000 | U207: =Computations!$J$17+Computations!$I$17*LN(Computations!D207) -> 450000 | V207: =Computations!$J$18+Computations!$I$18*Computations!D207+Computations!$H$18*Computations!D207^2 -> 450000 | W207: =Computations!$J$19+Computations!$I$19*Computations!D207+Computations!$H$19*Computations!D207^2+Computations!$G$19*Computations!D207^3 -> 450000
A208: 154 | B208: 0.05574131481 | C208: 0.05603316207 | D208: 0.05588723844 | E208: 0.1236059718 | F208: 0.002102107307 | G208: 1287.989979 | H208: 450000 | I208: =G208-H208/User_entry!$E$18 -> -212.0100205 | J208: 0 | L208: =HLOOKUP(User_entry!$B$56,Computations!$N$54:$R$1054,Computations!A208+1,FALSE) -> 1287.989979 | M208: =HLOOKUP(User_entry!$E$56,Computations!$S$54:$W$1054,Computations!A208+1,FALSE) -> 450000 | N208: =Computations!$F$15+Computations!$E$15*D208 -> 1287.989979 | O208: =EXP(Computations!$F$16)*EXP(Computations!$E$16)^Computations!D208 -> 1237.346822 | P208: =Computations!$F$17+Computations!$E$17*LN(Computations!D208) -> 1377.032821 | Q208: =Computations!$F$18+Computations!$E$18*Computations!D208+Computations!$D$18*Computations!D208^2 -> 1290.743973 | R208: =Computations!$F$19+Computations!$E$19*Computations!D208+Computations!$D$19*Computations!D208^2+Computations!$C$19*Computations!D208^3 -> 1290.743973 | S208: =Computations!$J$15+Computations!$I$15*D208 -> 450000 | T208: =EXP(Computations!$J$16)*EXP(Computations!$I$16)^Computations!D208 -> 450000 | U208: =Computations!$J$17+Computations!$I$17*LN(Computations!D208) -> 450000 | V208: =Computations!$J$18+Computations!$I$18*Computations!D208+Computations!$H$18*Computations!D208^2 -> 450000 | W208: =Computations!$J$19+Computations!$I$19*Computations!D208+Computations!$H$19*Computations!D208^2+Computations!$G$19*Computations!D208^3 -> 450000
A209: 155 | B209: 0.05603316207 | C209: 0.05632500933 | D209: 0.0561790857 | E209: 0.1257260317 | F209: 0.002120059851 | G209: 1291.830075 | H209: 450000 | I209: =G209-H209/User_entry!$E$18 -> -208.169925 | J209: 0 | L209: =HLOOKUP(User_entry!$B$56,Computations!$N$54:$R$1054,Computations!A209+1,FALSE) -> 1291.830075 | M209: =HLOOKUP(User_entry!$E$56,Computations!$S$54:$W$1054,Computations!A209+1,FALSE) -> 450000 | N209: =Computations!$F$15+Computations!$E$15*D209 -> 1291.830075 | O209: =EXP(Computations!$F$16)*EXP(Computations!$E$16)^Computations!D209 -> 1239.913962 | P209: =Computations!$F$17+Computations!$E$17*LN(Computations!D209) -> 1383.649893 | Q209: =Computations!$F$18+Computations!$E$18*Computations!D209+Computations!$D$18*Computations!D209^2 -> 1295.910033 | R209: =Computations!$F$19+Computations!$E$19*Computations!D209+Computations!$D$19*Computations!D209^2+Computations!$C$19*Computations!D209^3 -> 1295.910033 | S209: =Computations!$J$15+Computations!$I$15*D209 -> 450000 | T209: =EXP(Computations!$J$16)*EXP(Computations!$I$16)^Computations!D209 -> 450000 | U209: =Computations!$J$17+Computations!$I$17*LN(Computations!D209) -> 450000 | V209: =Computations!$J$18+Computations!$I$18*Computations!D209+Computations!$H$18*Computations!D209^2 -> 450000 | W209: =Computations!$J$19+Computations!$I$19*Computations!D209+Computations!$H$19*Computations!D209^2+Computations!$G$19*Computations!D209^3 -> 450000
A210: 156 | B210: 0.05632500933 | C210: 0.05661685658 | D210: 0.05647093295 | E210: 0.1278639263 | F210: 0.00213789466 | G210: 1295.67017 | H210: 450000 | I210: =G210-H210/User_entry!$E$18 -> -204.3298295 | J210: 0 | L210: =HLOOKUP(User_entry!$B$56,Computations!$N$54:$R$1054,Computations!A210+1,FALSE) -> 1295.67017 | M210: =HLOOKUP(User_entry!$E$56,Computations!$S$54:$W$1054,Computations!A210+1,FALSE) -> 450000 | N210: =Computations!$F$15+Computations!$E$15*D210 -> 1295.67017 | O210: =EXP(Computations!$F$16)*EXP(Computations!$E$16)^Computations!D210 -> 1242.486428 | P210: =Computations!$F$17+Computations!$E$17*LN(Computations!D210) -> 1390.232679 | Q210: =Computations!$F$18+Computations!$E$18*Computations!D210+Computations!$D$18*Computations!D210^2 -> 1301.069784 | R210: =Computations!$F$19+Computations!$E$19*Computations!D210+Computations!$D$19*Computations!D210^2+Computations!$C$19*Computations!D210^3 -> 1301.069784 | S210: =Computations!$J$15+Computations!$I$15*D210 -> 450000 | T210: =EXP(Computations!$J$16)*EXP(Computations!$I$16)^Computations!D210 -> 450000 | U210: =Computations!$J$17+Computations!$I$17*LN(Computations!D210) -> 450000 | V210: =Computations!$J$18+Computations!$I$18*Computations!D210+Computations!$H$18*Computations!D210^2 -> 450000 | W210: =Computations!$J$19+Computations!$I$19*Computations!D210+Computations!$H$19*Computations!D210^2+Computations!$G$19*Computations!D210^3 -> 450000
A211: 157 | B211: 0.05661685658 | C211: 0.05690870384 | D211: 0.05676278021 | E211: 0.1300195352 | F211: 0.002155608911 | G211: 1299.510266 | H211: 450000 | I211: =G211-H211/User_entry!$E$18 -> -200.4897341 | J211: 0 | L211: =HLOOKUP(User_entry!$B$56,Computations!$N$54:$R$1054,Computations!A211+1,FALSE) -> 1299.510266 | M211: =HLOOKUP(User_entry!$E$56,Computations!$S$54:$W$1054,Computations!A211+1,FALSE) -> 450000 | N211: =Computations!$F$15+Computations!$E$15*D211 -> 1299.510266 | O211: =EXP(Computations!$F$16)*EXP(Computations!$E$16)^Computations!D211 -> 1245.064231 | P211: =Computations!$F$17+Computations!$E$17*LN(Computations!D211) -> 1396.781531 | Q211: =Computations!$F$18+Computations!$E$18*Computations!D211+Computations!$D$18*Computations!D211^2 -> 1306.223226 | R211: =Computations!$F$19+Computations!$E$19*Computations!D211+Computations!$D$19*Computations!D211^2+Computations!$C$19*Computations!D211^3 -> 1306.223226 | S211: =Computations!$J$15+Computations!$I$15*D211 -> 450000 | T211: =EXP(Computations!$J$16)*EXP(Computations!$I$16)^Computations!D211 -> 450000 | U211: =Computations!$J$17+Computations!$I$17*LN(Computations!D211) -> 450000 | V211: =Computations!$J$18+Computations!$I$18*Computations!D211+Computations!$H$18*Computations!D211^2 -> 450000 | W211: =Computations!$J$19+Computations!$I$19*Computations!D211+Computations!$H$19*Computations!D211^2+Computations!$G$19*Computations!D211^3 -> 450000
... 910 more rows

Sheet Controls
B2: Proportion or probability | C2: Beta
B3: Cost | C3: Gamma
B4: Hazard ratio, relative risk, odds ratio | C4: Lognorm
B5: Mean difference, change from baseline | C5: Normal
B7: One patient
B8: All patients
B10: Linear
B11: Exponential
B12: Logarithmic
B13: Polynomial - quadratic
B14: Polynomial - cubic
